{"text_format":"1","workbook":"xlsx","n_sheets":6,"sheets":["CUENTAS","LIBRO DIARIO","LIBRO MAYOR","BALANCE DE PRUEBA","BALANCE GENERAL","ESTADO DE RESULTADO"],"not_rendered":{"charts":0,"images":0,"macros":1,"external_links":0,"defined_names":2,"comments":0,"pivot_tables":0},"unopened":[],"bounds":{"document_bytes":16777216,"sheet_cells":100000,"rows_first":2000,"rows_last":500,"rows_between":2000,"halvings":0,"cell_chars":16384,"cell_head_chars":4096},"cells_cut":0,"cells_raw":0,"read":"whole","date_system":"1900"}

{"sheet":"CUENTAS","index":0,"n_rows":38,"n_cols":2,"rows_kept":38,"cut":false,"hidden":false,"merged":[]}
["CODIGO","CUENTAS POR COBRAR TRABAJADORES"]
[3115,"APORTES SOCIALES"]
[1105,"CAJA"]
[1516,"EDIFICIO"]
[1524,"EQUIPOS DE OFICINA"]
[1110,"BANCO"]
[1540,"VEHICULO"]
[1435,"MERCANCIAS NO FABRICADAS"]
[2205,"PROVEEDORES NACIONALES"]
[4135,"COMERCIO POR MAYOR POR MENOR"]
[1305,"CUENTAS POR COBRAR CLIENTES"]
[2380,"ACREEDORES VARIOS"]
[1365,"CUENTAS POR COBRAR TRABAJADORES"]
[2105,"BANCOS NACIONALES"]
[1504,"TERRENO"]
[5120,"GASTOS ARRENDAMIENTO"]
[5140,"GASTOS LEGALES"]
[4220,"ARRENDAMIENTOS"]
[1528,"EQUIPOS DE COMPUTO"]
[510518,"GASTOS COMISIONES"]
[510506,"GASTOS SALARIOS"]
[5145,"GASTOS MTTO"]
[1205,"ACCIONES"]
[1325,"CUENTAS POR COBRAR SOCIOS"]
[1520,"MAQUINARIA"]
[6205,"DE VENTAS"]
[5105,"GASTOS PERSONAL"]
[5110,"HONORARIOS"]
[3605,"UTILIDAD DEL EJERCICIO"]
[5135,"SERVICIOS PUBLICOS"]
[2408,"IVA X PAGAR"]
[135517,"IVA RETENIDO"]
[2365,"RETEFUENTE"]
[135515,"RETENCION EN LA FUENTE"]
[152405,"MUEBLES Y ENSERES"]
[530505,"GTOS BANCARIOS"]
[2195,"OBLIGACIONES FINANCIERAS"]
[422040,"FLOTA Y EQUI TRANSPORTE"]

{"sheet":"LIBRO DIARIO","index":1,"n_rows":34,"n_cols":6,"rows_kept":34,"cut":false,"hidden":false,"merged":[[22,0,23,0],[24,0,25,0],[26,0,27,0],[28,0,32,0],[22,1,23,1],[24,1,25,1],[26,1,27,1],[28,1,32,1],[2,0,5,0],[6,0,11,0],[12,0,14,0],[15,0,17,0],[18,0,19,0],[20,0,21,0],[2,1,5,1],[6,1,11,1],[12,1,14,1],[15,1,17,1],[18,1,19,1],[20,1,21,1]]}
[null,null,"LIBRO DIARIO","EMPRESA"]
["FECHA","DETALLE","CUENTA","CODIGO","DEBITO","CREDITO"]
["2015-06-01","CONSTITUCION EMPRESA NUTRIVITAL",{"$f":"IFERROR(VLOOKUP(D3,CUENTAS,2,0),\"\")","v":"CAJA"},1105,23000000]
[null,null,"MERCANCIAS NO FABRICADAS",1435,{"$f":"100*3000","v":300000}]
[null,null,"EDIFICIO",1516,90000000]
[null,null,"APORTES SOCIALES",3115,null,{"$f":"SUM(E3:E5)","v":113300000}]
["2015-06-02","VENTA A LOCATEL","COMERCIO POR MAYOR POR MENOR",4135,null,{"$f":"50*4500","v":225000}]
[null,null,"IVA X PAGAR",2408,null,{"$f":"F7*16%","v":36000}]
[null,null,"CUENTAS POR COBRAR CLIENTES",1305,{"$f":"SUM(F7:F8)*50%","v":130500}]
[null,null,"CAJA",1105,{"$f":"E9","v":130500}]
[null,null,"MERCANCIAS NO FABRICADAS",1435,null,{"$f":"50*3000","v":150000}]
[null,null,"DE VENTAS",6205,{"$f":"F11","v":150000}]
["2015-06-03","COMPRA A LACTEOS DEL SUR","MERCANCIAS NO FABRICADAS",1435,{"$f":"300*3000","v":900000}]
[null,null,"IVA X PAGAR",2408,{"$f":"E13*16%","v":144000}]
[null,null,"PROVEEDORES NACIONALES",2205,null,{"$f":"SUM(E13:E14)","v":1044000}]
["2015-06-04","PRESTAMO BANCO DEL CARIBE","BANCOS NACIONALES",2105,null,4000000]
[null,null,"BANCO",1110,2000000]
[null,null,"CAJA",1105,{"$f":"E17","v":2000000}]
["2015-06-05","ABONO LOCATEL","CUENTAS POR COBRAR CLIENTES",1305,null,{"$f":"E9*50%","v":65250}]
[null,null,"BANCO",1110,{"$f":"F19","v":65250}]
["2015-06-06","ABONO LACTEOS DEL SUR","PROVEEDORES NACIONALES",2205,{"$f":"F15*70%","v":730800}]
[null,null,"BANCO",1110,null,{"$f":"E21","v":730800}]
["2015-06-07","CONSIGNACION BANCO","CAJA",1105,null,5000000]
[null,null,"BANCO",1110,{"$f":"F23","v":5000000}]
["2015-06-08","ABONO BANCO DEL CARIBE","BANCOS NACIONALES",2105,1000000]
[null,null,"CAJA",1105,null,{"$f":"E25","v":1000000}]
["2015-06-09","COMPRA EQUIPO DE OFICINA","EQUIPOS DE OFICINA",1524,2000000]
[null,null,"ACREEDORES VARIOS",2380,null,{"$f":"E27","v":2000000}]
["2015-06-10","VENTA A LA VAQUITA","COMERCIO POR MAYOR POR MENOR",4135,null,{"$f":"150*5000","v":750000}]
[null,null,"IVA X PAGAR",2408,null,{"$f":"F29*16%","v":120000}]
[null,null,"BANCO",1110,{"$f":"SUM(F29:F30)","v":870000}]
[null,null,"MERCANCIAS NO FABRICADAS",1435,null,{"$f":"150*3000","v":450000}]
[null,null,"DE VENTAS",6205,{"$f":"F32","v":450000}]
[null,null,null,null,{"$f":"SUM(E3:E33)","v":128871050},{"$f":"SUM(F3:F33)","v":128871050}]

{"sheet":"LIBRO MAYOR","index":2,"n_rows":100,"n_cols":8,"rows_kept":100,"cut":false,"hidden":false,"merged":[]}
[1105,{"$f":"IFERROR(VLOOKUP(A1,CUENTAS,2,0),\"\")","v":"CAJA"},null,1435,{"$f":"IFERROR(VLOOKUP(D1,CUENTAS,2,0),\"\")","v":"MERCANCIAS NO FABRICADAS"},null,1516,{"$f":"IFERROR(VLOOKUP(G1,CUENTAS,2,0),\"\")","v":"EDIFICIO"}]
["DEBITO","CREDITO",null,"DEBITO","CREDITO",null,"DEBITO","CREDITO"]
[{"$f":"SUMIF('LIBRO DIARIO'!$D$3:$D$33,A1,'LIBRO DIARIO'!$E$3:$E$33)","v":25130500},{"$f":"SUMIF('LIBRO DIARIO'!$D$3:$D$33,A1,'LIBRO DIARIO'!$F$3:$F$33)","v":6000000},null,{"$f":"SUMIF('LIBRO DIARIO'!$D$3:$D$33,D1,'LIBRO DIARIO'!$E$3:$E$33)","v":1200000},{"$f":"SUMIF('LIBRO DIARIO'!$D$3:$D$33,D1,'LIBRO DIARIO'!$F$3:$F$33)","v":600000},null,{"$f":"SUMIF('LIBRO DIARIO'!$D$3:$D$33,G1,'LIBRO DIARIO'!$E$3:$E$33)","v":90000000},{"$f":"SUMIF('LIBRO DIARIO'!$D$3:$D$33,G1,'LIBRO DIARIO'!$F$3:$F$33)","v":0}]
[]
[]
[]
[]
[]
[]
[]
[{"$f":"SUM(A3:A10)","v":25130500},{"$f":"SUM(B3:B10)","v":6000000},null,{"$f":"SUM(D3:D10)","v":1200000},{"$f":"SUM(E3:E10)","v":600000},null,{"$f":"SUM(G3:G10)","v":90000000},{"$f":"SUM(H3:H10)","v":0}]
[{"$f":"IF(A11>B11,A11-B11,0)","v":19130500},{"$f":"IF(B11>A11,B11-A11,0)","v":0},null,{"$f":"IF(D11>E11,D11-E11,0)","v":600000},{"$f":"IF(E11>D11,E11-D11,0)","v":0},null,{"$f":"IF(G11>H11,G11-H11,0)","v":90000000},{"$f":"IF(H11>G11,H11-G11,0)","v":0}]
[3115,{"$f":"IFERROR(VLOOKUP(A13,CUENTAS,2,0),\"\")","v":"APORTES SOCIALES"},null,4135,{"$f":"IFERROR(VLOOKUP(D13,CUENTAS,2,0),\"\")","v":"COMERCIO POR MAYOR POR MENOR"},null,2408,{"$f":"IFERROR(VLOOKUP(G13,CUENTAS,2,0),\"\")","v":"IVA X PAGAR"}]
["DEBITO","CREDITO",null,"DEBITO","CREDITO",null,"DEBITO","CREDITO"]
[{"$f":"SUMIF('LIBRO DIARIO'!$D$3:$D$33,A13,'LIBRO DIARIO'!$E$3:$E$33)","v":0},{"$f":"SUMIF('LIBRO DIARIO'!$D$3:$D$33,A13,'LIBRO DIARIO'!$F$3:$F$33)","v":113300000},null,{"$f":"SUMIF('LIBRO DIARIO'!$D$3:$D$33,D13,'LIBRO DIARIO'!$E$3:$E$33)","v":0},{"$f":"SUMIF('LIBRO DIARIO'!$D$3:$D$33,D13,'LIBRO DIARIO'!$F$3:$F$33)","v":975000},null,{"$f":"SUMIF('LIBRO DIARIO'!$D$3:$D$33,G13,'LIBRO DIARIO'!$E$3:$E$33)","v":144000},{"$f":"SUMIF('LIBRO DIARIO'!$D$3:$D$33,G13,'LIBRO DIARIO'!$F$3:$F$33)","v":156000}]
[]
[]
[]
[]
[]
[]
[{"$f":"SUM(A15:A21)","v":0},{"$f":"SUM(B15:B21)","v":113300000},null,{"$f":"SUM(D15:D21)","v":0},{"$f":"SUM(E15:E21)","v":975000},null,{"$f":"SUM(G15:G21)","v":144000},{"$f":"SUM(H15:H21)","v":156000}]
[{"$f":"IF(A22>B22,A22-B22,0)","v":0},{"$f":"IF(B22>A22,B22-A22,0)","v":113300000},null,{"$f":"IF(D22>E22,D22-E22,0)","v":0},{"$f":"IF(E22>D22,E22-D22,0)","v":975000},null,{"$f":"IF(G22>H22,G22-H22,0)","v":0},{"$f":"IF(H22>G22,H22-G22,0)","v":12000}]
[1305,{"$f":"IFERROR(VLOOKUP(A24,CUENTAS,2,0),\"\")","v":"CUENTAS POR COBRAR CLIENTES"},null,6205,{"$f":"IFERROR(VLOOKUP(D24,CUENTAS,2,0),\"\")","v":"DE VENTAS"},null,2205,{"$f":"IFERROR(VLOOKUP(G24,CUENTAS,2,0),\"\")","v":"PROVEEDORES NACIONALES"}]
["DEBITO","CREDITO",null,"DEBITO","CREDITO",null,"DEBITO","CREDITO"]
[{"$f":"SUMIF('LIBRO DIARIO'!$D$3:$D$33,A24,'LIBRO DIARIO'!$E$3:$E$33)","v":130500},{"$f":"SUMIF('LIBRO DIARIO'!$D$3:$D$33,A24,'LIBRO DIARIO'!$F$3:$F$33)","v":65250},null,{"$f":"SUMIF('LIBRO DIARIO'!$D$3:$D$33,D24,'LIBRO DIARIO'!$E$3:$E$33)","v":600000},{"$f":"SUMIF('LIBRO DIARIO'!$D$3:$D$33,D24,'LIBRO DIARIO'!$F$3:$F$33)","v":0},null,{"$f":"SUMIF('LIBRO DIARIO'!$D$3:$D$33,G24,'LIBRO DIARIO'!$E$3:$E$33)","v":730800},{"$f":"SUMIF('LIBRO DIARIO'!$D$3:$D$33,G24,'LIBRO DIARIO'!$F$3:$F$33)","v":1044000}]
[]
[]
[]
[]
[]
[]
[{"$f":"SUM(A26:A32)","v":130500},{"$f":"SUM(B26:B32)","v":65250},null,{"$f":"SUM(D26:D32)","v":600000},{"$f":"SUM(E26:E32)","v":0},null,{"$f":"SUM(G26:G32)","v":730800},{"$f":"SUM(H26:H32)","v":1044000}]
[{"$f":"IF(A33>B33,A33-B33,0)","v":65250},{"$f":"IF(B33>A33,B33-A33,0)","v":0},null,{"$f":"IF(D33>E33,D33-E33,0)","v":600000},{"$f":"IF(E33>D33,E33-D33,0)","v":0},null,{"$f":"IF(G33>H33,G33-H33,0)","v":0},{"$f":"IF(H33>G33,H33-G33,0)","v":313200}]
[2105,{"$f":"IFERROR(VLOOKUP(A35,CUENTAS,2,0),\"\")","v":"BANCOS NACIONALES"},null,1110,{"$f":"IFERROR(VLOOKUP(D35,CUENTAS,2,0),\"\")","v":"BANCO"},null,1524,{"$f":"IFERROR(VLOOKUP(G35,CUENTAS,2,0),\"\")","v":"EQUIPOS DE OFICINA"}]
["DEBITO","CREDITO",null,"DEBITO","CREDITO",null,"DEBITO","CREDITO"]
[{"$f":"SUMIF('LIBRO DIARIO'!$D$3:$D$33,A35,'LIBRO DIARIO'!$E$3:$E$33)","v":1000000},{"$f":"SUMIF('LIBRO DIARIO'!$D$3:$D$33,A35,'LIBRO DIARIO'!$F$3:$F$33)","v":4000000},null,{"$f":"SUMIF('LIBRO DIARIO'!$D$3:$D$33,D35,'LIBRO DIARIO'!$E$3:$E$33)","v":7935250},{"$f":"SUMIF('LIBRO DIARIO'!$D$3:$D$33,D35,'LIBRO DIARIO'!$F$3:$F$33)","v":730800},null,{"$f":"SUMIF('LIBRO DIARIO'!$D$3:$D$33,G35,'LIBRO DIARIO'!$E$3:$E$33)","v":2000000},{"$f":"SUMIF('LIBRO DIARIO'!$D$3:$D$33,G35,'LIBRO DIARIO'!$F$3:$F$33)","v":0}]
[]
[]
[]
[]
[]
[]
[{"$f":"SUM(A37:A43)","v":1000000},{"$f":"SUM(B37:B43)","v":4000000},null,{"$f":"SUM(D37:D43)","v":7935250},{"$f":"SUM(E37:E43)","v":730800},null,{"$f":"SUM(G37:G43)","v":2000000},{"$f":"SUM(H37:H43)","v":0}]
[{"$f":"IF(A44>B44,A44-B44,0)","v":0},{"$f":"IF(B44>A44,B44-A44,0)","v":3000000},null,{"$f":"IF(D44>E44,D44-E44,0)","v":7204450},{"$f":"IF(E44>D44,E44-D44,0)","v":0},null,{"$f":"IF(G44>H44,G44-H44,0)","v":2000000},{"$f":"IF(H44>G44,H44-G44,0)","v":0}]
[2380,{"$f":"IFERROR(VLOOKUP(A46,CUENTAS,2,0),\"\")","v":"ACREEDORES VARIOS"},null,null,{"$f":"IFERROR(VLOOKUP(D46,CUENTAS,2,0),\"\")","v":""},null,null,{"$f":"IFERROR(VLOOKUP(G46,CUENTAS,2,0),\"\")","v":""}]
["DEBITO","CREDITO",null,"DEBITO","CREDITO",null,"DEBITO","CREDITO"]
[{"$f":"SUMIF('LIBRO DIARIO'!$D$3:$D$33,A46,'LIBRO DIARIO'!$E$3:$E$33)","v":0},{"$f":"SUMIF('LIBRO DIARIO'!$D$3:$D$33,A46,'LIBRO DIARIO'!$F$3:$F$33)","v":2000000},null,{"$f":"SUMIF('LIBRO DIARIO'!$D$3:$D$33,D46,'LIBRO DIARIO'!$E$3:$E$33)","v":0},{"$f":"SUMIF('LIBRO DIARIO'!$D$3:$D$33,D46,'LIBRO DIARIO'!$F$3:$F$33)","v":0},null,{"$f":"SUMIF('LIBRO DIARIO'!$D$3:$D$33,G46,'LIBRO DIARIO'!$E$3:$E$33)","v":0},{"$f":"SUMIF('LIBRO DIARIO'!$D$3:$D$33,G46,'LIBRO DIARIO'!$F$3:$F$33)","v":0}]
[]
[]
[]
[]
[]
[]
[{"$f":"SUM(A48:A54)","v":0},{"$f":"SUM(B48:B54)","v":2000000},null,{"$f":"SUM(D48:D54)","v":0},{"$f":"SUM(E48:E54)","v":0},null,{"$f":"SUM(G48:G54)","v":0},{"$f":"SUM(H48:H54)","v":0}]
[{"$f":"IF(A55>B55,A55-B55,0)","v":0},{"$f":"IF(B55>A55,B55-A55,0)","v":2000000},null,{"$f":"IF(D55>E55,D55-E55,0)","v":0},{"$f":"IF(E55>D55,E55-D55,0)","v":0},null,{"$f":"IF(G55>H55,G55-H55,0)","v":0},{"$f":"IF(H55>G55,H55-G55,0)","v":0}]
[null,{"$f":"IFERROR(VLOOKUP(A57,CUENTAS,2,0),\"\")","v":""},null,null,{"$f":"IFERROR(VLOOKUP(D57,CUENTAS,2,0),\"\")","v":""},null,null,{"$f":"IFERROR(VLOOKUP(G57,CUENTAS,2,0),\"\")","v":""}]
["DEBITO","CREDITO",null,"DEBITO","CREDITO",null,"DEBITO","CREDITO"]
[{"$f":"SUMIF('LIBRO DIARIO'!$D$3:$D$33,A57,'LIBRO DIARIO'!$E$3:$E$33)","v":0},{"$f":"SUMIF('LIBRO DIARIO'!$D$3:$D$33,A57,'LIBRO DIARIO'!$F$3:$F$33)","v":0},null,{"$f":"SUMIF('LIBRO DIARIO'!$D$3:$D$33,D57,'LIBRO DIARIO'!$E$3:$E$33)","v":0},{"$f":"SUMIF('LIBRO DIARIO'!$D$3:$D$33,D57,'LIBRO DIARIO'!$F$3:$F$33)","v":0},null,{"$f":"SUMIF('LIBRO DIARIO'!$D$3:$D$33,G57,'LIBRO DIARIO'!$E$3:$E$33)","v":0},{"$f":"SUMIF('LIBRO DIARIO'!$D$3:$D$33,G57,'LIBRO DIARIO'!$F$3:$F$33)","v":0}]
[]
[]
[]
[]
[]
[]
[{"$f":"SUM(A59:A65)","v":0},{"$f":"SUM(B59:B65)","v":0},null,{"$f":"SUM(D59:D65)","v":0},{"$f":"SUM(E59:E65)","v":0},null,{"$f":"SUM(G59:G65)","v":0},{"$f":"SUM(H59:H65)","v":0}]
[{"$f":"IF(A66>B66,A66-B66,0)","v":0},{"$f":"IF(B66>A66,B66-A66,0)","v":0},null,{"$f":"IF(D66>E66,D66-E66,0)","v":0},{"$f":"IF(E66>D66,E66-D66,0)","v":0},null,{"$f":"IF(G66>H66,G66-H66,0)","v":0},{"$f":"IF(H66>G66,H66-G66,0)","v":0}]
[null,{"$f":"IFERROR(VLOOKUP(A68,CUENTAS,2,0),\"\")","v":""},null,null,{"$f":"IFERROR(VLOOKUP(D68,CUENTAS,2,0),\"\")","v":""},null,null,{"$f":"IFERROR(VLOOKUP(G68,CUENTAS,2,0),\"\")","v":""}]
["DEBITO","CREDITO",null,"DEBITO","CREDITO",null,"DEBITO","CREDITO"]
[{"$f":"SUMIF('LIBRO DIARIO'!$D$3:$D$33,A68,'LIBRO DIARIO'!$E$3:$E$33)","v":0},{"$f":"SUMIF('LIBRO DIARIO'!$D$3:$D$33,A68,'LIBRO DIARIO'!$F$3:$F$33)","v":0},null,{"$f":"SUMIF('LIBRO DIARIO'!$D$3:$D$33,D68,'LIBRO DIARIO'!$E$3:$E$33)","v":0},{"$f":"SUMIF('LIBRO DIARIO'!$D$3:$D$33,D68,'LIBRO DIARIO'!$F$3:$F$33)","v":0},null,{"$f":"SUMIF('LIBRO DIARIO'!$D$3:$D$33,G68,'LIBRO DIARIO'!$E$3:$E$33)","v":0},{"$f":"SUMIF('LIBRO DIARIO'!$D$3:$D$33,G68,'LIBRO DIARIO'!$F$3:$F$33)","v":0}]
[]
[]
[]
[]
[]
[]
[{"$f":"SUM(A70:A76)","v":0},{"$f":"SUM(B70:B76)","v":0},null,{"$f":"SUM(D70:D76)","v":0},{"$f":"SUM(E70:E76)","v":0},null,{"$f":"SUM(G70:G76)","v":0},{"$f":"SUM(H70:H76)","v":0}]
[{"$f":"IF(A77>B77,A77-B77,0)","v":0},{"$f":"IF(B77>A77,B77-A77,0)","v":0},null,{"$f":"IF(D77>E77,D77-E77,0)","v":0},{"$f":"IF(E77>D77,E77-D77,0)","v":0},null,{"$f":"IF(G77>H77,G77-H77,0)","v":0},{"$f":"IF(H77>G77,H77-G77,0)","v":0}]
[null,{"$f":"IFERROR(VLOOKUP(A79,CUENTAS,2,0),\"\")","v":""},null,null,{"$f":"IFERROR(VLOOKUP(D79,CUENTAS,2,0),\"\")","v":""},null,null,{"$f":"IFERROR(VLOOKUP(G79,CUENTAS,2,0),\"\")","v":""}]
["DEBITO","CREDITO",null,"DEBITO","CREDITO",null,"DEBITO","CREDITO"]
[{"$f":"SUMIF('LIBRO DIARIO'!$D$3:$D$33,A79,'LIBRO DIARIO'!$E$3:$E$33)","v":0},{"$f":"SUMIF('LIBRO DIARIO'!$D$3:$D$33,A79,'LIBRO DIARIO'!$F$3:$F$33)","v":0},null,{"$f":"SUMIF('LIBRO DIARIO'!$D$3:$D$33,D79,'LIBRO DIARIO'!$E$3:$E$33)","v":0},{"$f":"SUMIF('LIBRO DIARIO'!$D$3:$D$33,D79,'LIBRO DIARIO'!$F$3:$F$33)","v":0},null,{"$f":"SUMIF('LIBRO DIARIO'!$D$3:$D$33,G79,'LIBRO DIARIO'!$E$3:$E$33)","v":0},{"$f":"SUMIF('LIBRO DIARIO'!$D$3:$D$33,G79,'LIBRO DIARIO'!$F$3:$F$33)","v":0}]
[]
[]
[]
[]
[]
[]
[{"$f":"SUM(A81:A87)","v":0},{"$f":"SUM(B81:B87)","v":0},null,{"$f":"SUM(D81:D87)","v":0},{"$f":"SUM(E81:E87)","v":0},null,{"$f":"SUM(G81:G87)","v":0},{"$f":"SUM(H81:H87)","v":0}]
[{"$f":"IF(A88>B88,A88-B88,0)","v":0},{"$f":"IF(B88>A88,B88-A88,0)","v":0},null,{"$f":"IF(D88>E88,D88-E88,0)","v":0},{"$f":"IF(E88>D88,E88-D88,0)","v":0},null,{"$f":"IF(G88>H88,G88-H88,0)","v":0},{"$f":"IF(H88>G88,H88-G88,0)","v":0}]
[null,{"$f":"IFERROR(VLOOKUP(A90,CUENTAS,2,0),\"\")","v":""},null,null,{"$f":"IFERROR(VLOOKUP(D90,CUENTAS,2,0),\"\")","v":""},null,null,{"$f":"IFERROR(VLOOKUP(G90,CUENTAS,2,0),\"\")","v":""}]
["DEBITO","CREDITO",null,"DEBITO","CREDITO",null,"DEBITO","CREDITO"]
[{"$f":"SUMIF('LIBRO DIARIO'!$D$3:$D$33,A90,'LIBRO DIARIO'!$E$3:$E$33)","v":0},{"$f":"SUMIF('LIBRO DIARIO'!$D$3:$D$33,A90,'LIBRO DIARIO'!$F$3:$F$33)","v":0},null,{"$f":"SUMIF('LIBRO DIARIO'!$D$3:$D$33,D90,'LIBRO DIARIO'!$E$3:$E$33)","v":0},{"$f":"SUMIF('LIBRO DIARIO'!$D$3:$D$33,D90,'LIBRO DIARIO'!$F$3:$F$33)","v":0},null,{"$f":"SUMIF('LIBRO DIARIO'!$D$3:$D$33,G90,'LIBRO DIARIO'!$E$3:$E$33)","v":0},{"$f":"SUMIF('LIBRO DIARIO'!$D$3:$D$33,G90,'LIBRO DIARIO'!$F$3:$F$33)","v":0}]
[]
[]
[]
[]
[]
[]
[{"$f":"SUM(A92:A98)","v":0},{"$f":"SUM(B92:B98)","v":0},null,{"$f":"SUM(D92:D98)","v":0},{"$f":"SUM(E92:E98)","v":0},null,{"$f":"SUM(G92:G98)","v":0},{"$f":"SUM(H92:H98)","v":0}]
[{"$f":"IF(A99>B99,A99-B99,0)","v":0},{"$f":"IF(B99>A99,B99-A99,0)","v":0},null,{"$f":"IF(D99>E99,D99-E99,0)","v":0},{"$f":"IF(E99>D99,E99-D99,0)","v":0},null,{"$f":"IF(G99>H99,G99-H99,0)","v":0},{"$f":"IF(H99>G99,H99-G99,0)","v":0}]

{"sheet":"BALANCE DE PRUEBA","index":3,"n_rows":29,"n_cols":5,"rows_kept":29,"cut":false,"hidden":false,"merged":[[28,2,28,3]]}
["CODIGO","CUENTA","DEBITO","CREDITO","SALDO CUENTA"]
[1105,{"$f":"IFERROR(VLOOKUP(A2,CUENTAS,2,0),\"\")","v":"CAJA"},{"$f":"IF($A$2='LIBRO MAYOR'!$A$1,'LIBRO MAYOR'!A12,IF('BALANCE DE PRUEBA'!$A$2='LIBRO MAYOR'!$D$1,'LIBRO MAYOR'!D12,IF('BALANCE DE PRUEBA'!$A$2='LIBRO MAYOR'!$G$1,'LIBRO MAYOR'!G12,IF('BALANCE DE PRUEBA'!$A$2='LIBRO MAYOR'!$A$13,'LIBRO MAYOR'!A23,IF('BALANCE DE PRUEBA'!$A$2='LIBRO MAYOR'!$D$13,'LIBRO MAYOR'!D23,IF('BALANCE DE PRUEBA'!$A$2='LIBRO MAYOR'!$G$13,'LIBRO MAYOR'!G23,IF('BALANCE DE PRUEBA'!$A$2='LIBRO MAYOR'!$A$24,'LIBRO MAYOR'!A34,IF('BALANCE DE PRUEBA'!$A$2='LIBRO MAYOR'!$D$24,'LIBRO MAYOR'!D34,IF('BALANCE DE PRUEBA'!$A$2='LIBRO MAYOR'!$G$24,'LIBRO MAYOR'!G34,IF('BALANCE DE PRUEBA'!$A$2='LIBRO MAYOR'!$A$35,'LIBRO MAYOR'!A45,IF('BALANCE DE PRUEBA'!$A$2='LIBRO MAYOR'!$D$35,'LIBRO MAYOR'!D45,IF('BALANCE DE PRUEBA'!$A$2='LIBRO MAYOR'!$G$35,'LIBRO MAYOR'!G45,IF('BALANCE DE PRUEBA'!$A$2='LIBRO MAYOR'!$A$46,'LIBRO MAYOR'!A56,IF('BALANCE DE PRUEBA'!$A$2='LIBRO MAYOR'!$D$46,'LIBRO MAYOR'!D56,IF('BALANCE DE PRUEBA'!$A$2='LIBRO MAYOR'!$G$46,'LIBRO MAYOR'!G56,IF('BALANCE DE PRUEBA'!$A$2='LIBRO MAYOR'!$A$57,'LIBRO MAYOR'!A67,IF('BALANCE DE PRUEBA'!$A$2='LIBRO MAYOR'!$D$57,'LIBRO MAYOR'!D67,IF('BALANCE DE PRUEBA'!$A$2='LIBRO MAYOR'!$G$57,'LIBRO MAYOR'!G67,IF($A$2='LIBRO MAYOR'!$A$68,'LIBRO MAYOR'!A78,IF('BALANCE DE PRUEBA'!$A$2='LIBRO MAYOR'!$D$68,'LIBRO MAYOR'!D78,IF('BALANCE DE PRUEBA'!A2='LIBRO MAYOR'!$G$68,'LIBRO MAYOR'!$G$78,IF('BALANCE DE PRUEBA'!A2='LIBRO MAYOR'!$A$79,'LIBRO MAYOR'!$A$89,IF('BALANCE DE PRUEBA'!$A$2='LIBRO MAYOR'!$D$79,'LIBRO MAYOR'!D89,IF('BALANCE DE PRUEBA'!$A$2='LIBRO MAYOR'!$G$79,'LIBRO MAYOR'!G89,IF('BALANCE DE PRUEBA'!$A$2='LIBRO MAYOR'!$A$90,'LIBRO MAYOR'!A100,IF('BALANCE DE PRUEBA'!$A$2='LIBRO MAYOR'!$D$90,'LIBRO MAYOR'!D100,IF('BALANCE DE PRUEBA'!$A$2='LIBRO MAYOR'!$G$90,'LIBRO MAYOR'!G100,0)))))))))))))))))))))))))))","v":19130500},{"$f":"IF(A2='LIBRO MAYOR'!$A$1,'LIBRO MAYOR'!$B$12,IF('BALANCE DE PRUEBA'!A2='LIBRO MAYOR'!$D$1,'LIBRO MAYOR'!$E$12,IF('BALANCE DE PRUEBA'!A2='LIBRO MAYOR'!$G$1,'LIBRO MAYOR'!$H$12,IF('BALANCE DE PRUEBA'!A2='LIBRO MAYOR'!$A$13,'LIBRO MAYOR'!$B$23,IF('BALANCE DE PRUEBA'!A2='LIBRO MAYOR'!$D$13,'LIBRO MAYOR'!$E$23,IF('BALANCE DE PRUEBA'!A2='LIBRO MAYOR'!$G$13,'LIBRO MAYOR'!$H$23,IF('BALANCE DE PRUEBA'!A2='LIBRO MAYOR'!$A$24,'LIBRO MAYOR'!$B$34,IF('BALANCE DE PRUEBA'!A2='LIBRO MAYOR'!$D$24,'LIBRO MAYOR'!$E$34,IF('BALANCE DE PRUEBA'!A2='LIBRO MAYOR'!$G$24,'LIBRO MAYOR'!$H$34,IF('BALANCE DE PRUEBA'!A2='LIBRO MAYOR'!$A$35,'LIBRO MAYOR'!$B$45,IF('BALANCE DE PRUEBA'!A2='LIBRO MAYOR'!$D$35,'LIBRO MAYOR'!$E$45,IF('BALANCE DE PRUEBA'!A2='LIBRO MAYOR'!$G$35,'LIBRO MAYOR'!$H$45,IF('BALANCE DE PRUEBA'!A2='LIBRO MAYOR'!$A$46,'LIBRO MAYOR'!$B$56,IF('BALANCE DE PRUEBA'!A2='LIBRO MAYOR'!$D$46,'LIBRO MAYOR'!$E$56,IF('BALANCE DE PRUEBA'!A2='LIBRO MAYOR'!$G$46,'LIBRO MAYOR'!$H$56,IF('BALANCE DE PRUEBA'!A2='LIBRO MAYOR'!$A$57,'LIBRO MAYOR'!$B$67,IF('BALANCE DE PRUEBA'!A2='LIBRO MAYOR'!$D$57,'LIBRO MAYOR'!$E$67,IF('BALANCE DE PRUEBA'!A2='LIBRO MAYOR'!$G$57,'LIBRO MAYOR'!$H$67,IF(A2='LIBRO MAYOR'!$A$68,'LIBRO MAYOR'!$B$78,IF('BALANCE DE PRUEBA'!A2='LIBRO MAYOR'!$D$68,'LIBRO MAYOR'!$E$78,IF('BALANCE DE PRUEBA'!A2='LIBRO MAYOR'!$G$68,'LIBRO MAYOR'!$H$78,IF('BALANCE DE PRUEBA'!A2='LIBRO MAYOR'!$A$79,'LIBRO MAYOR'!$B$89,IF('BALANCE DE PRUEBA'!A2='LIBRO MAYOR'!$D$79,'LIBRO MAYOR'!$E$89,IF('BALANCE DE PRUEBA'!A2='LIBRO MAYOR'!$G$79,'LIBRO MAYOR'!$H$89,IF('BALANCE DE PRUEBA'!A2='LIBRO MAYOR'!$A$90,'LIBRO MAYOR'!$B$100,IF('BALANCE DE PRUEBA'!A2='LIBRO MAYOR'!$D$90,'LIBRO MAYOR'!$E$100,IF('BALANCE DE PRUEBA'!A2='LIBRO MAYOR'!$G$90,'LIBRO MAYOR'!$H$100,0)))))))))))))))))))))))))))","v":0},{"$f":"SUM(C2+D2)","v":19130500}]
[1435,"MERCANCIAS NO FABRICADAS",{"$f":"IF(A3='LIBRO MAYOR'!$A$1,'LIBRO MAYOR'!$A$12,IF('BALANCE DE PRUEBA'!A3='LIBRO MAYOR'!$D$1,'LIBRO MAYOR'!$D$12,IF('BALANCE DE PRUEBA'!A3='LIBRO MAYOR'!$G$1,'LIBRO MAYOR'!$G$12,IF('BALANCE DE PRUEBA'!A3='LIBRO MAYOR'!$A$13,'LIBRO MAYOR'!$A$23,IF('BALANCE DE PRUEBA'!A3='LIBRO MAYOR'!$D$13,'LIBRO MAYOR'!$D$23,IF('BALANCE DE PRUEBA'!A3='LIBRO MAYOR'!$G$13,'LIBRO MAYOR'!$G$23,IF('BALANCE DE PRUEBA'!A3='LIBRO MAYOR'!$A$24,'LIBRO MAYOR'!$A$34,IF('BALANCE DE PRUEBA'!A3='LIBRO MAYOR'!$D$24,'LIBRO MAYOR'!$D$34,IF('BALANCE DE PRUEBA'!A3='LIBRO MAYOR'!$G$24,'LIBRO MAYOR'!$G$34,IF('BALANCE DE PRUEBA'!A3='LIBRO MAYOR'!$A$35,'LIBRO MAYOR'!$A$45,IF('BALANCE DE PRUEBA'!A3='LIBRO MAYOR'!$D$35,'LIBRO MAYOR'!$D$45,IF('BALANCE DE PRUEBA'!A3='LIBRO MAYOR'!$G$35,'LIBRO MAYOR'!$G$45,IF('BALANCE DE PRUEBA'!A3='LIBRO MAYOR'!$A$46,'LIBRO MAYOR'!$A$56,IF('BALANCE DE PRUEBA'!A3='LIBRO MAYOR'!$D$46,'LIBRO MAYOR'!$D$56,IF('BALANCE DE PRUEBA'!A3='LIBRO MAYOR'!$G$46,'LIBRO MAYOR'!$G$56,IF('BALANCE DE PRUEBA'!A3='LIBRO MAYOR'!$A$57,'LIBRO MAYOR'!$A$67,IF('BALANCE DE PRUEBA'!A3='LIBRO MAYOR'!$D$57,'LIBRO MAYOR'!$D$67,IF('BALANCE DE PRUEBA'!A3='LIBRO MAYOR'!$G$57,'LIBRO MAYOR'!$G$67,IF(A3='LIBRO MAYOR'!$A$68,'LIBRO MAYOR'!$A$78,IF('BALANCE DE PRUEBA'!A3='LIBRO MAYOR'!$D$68,'LIBRO MAYOR'!$D$78,IF('BALANCE DE PRUEBA'!A3='LIBRO MAYOR'!$G$68,'LIBRO MAYOR'!$G$78,IF('BALANCE DE PRUEBA'!A3='LIBRO MAYOR'!$A$79,'LIBRO MAYOR'!$A$89,IF('BALANCE DE PRUEBA'!A3='LIBRO MAYOR'!$D$79,'LIBRO MAYOR'!$D$89,IF('BALANCE DE PRUEBA'!A3='LIBRO MAYOR'!$G$79,'LIBRO MAYOR'!$G$89,IF('BALANCE DE PRUEBA'!A3='LIBRO MAYOR'!$A$90,'LIBRO MAYOR'!$A$100,IF('BALANCE DE PRUEBA'!A3='LIBRO MAYOR'!$D$90,'LIBRO MAYOR'!$D$100,IF('BALANCE DE PRUEBA'!A3='LIBRO MAYOR'!$G$90,'LIBRO MAYOR'!$G$100,0)))))))))))))))))))))))))))","v":600000},{"$f":"IF(A3='LIBRO MAYOR'!$A$1,'LIBRO MAYOR'!$B$12,IF('BALANCE DE PRUEBA'!A3='LIBRO MAYOR'!$D$1,'LIBRO MAYOR'!$E$12,IF('BALANCE DE PRUEBA'!A3='LIBRO MAYOR'!$G$1,'LIBRO MAYOR'!$H$12,IF('BALANCE DE PRUEBA'!A3='LIBRO MAYOR'!$A$13,'LIBRO MAYOR'!$B$23,IF('BALANCE DE PRUEBA'!A3='LIBRO MAYOR'!$D$13,'LIBRO MAYOR'!$E$23,IF('BALANCE DE PRUEBA'!A3='LIBRO MAYOR'!$G$13,'LIBRO MAYOR'!$H$23,IF('BALANCE DE PRUEBA'!A3='LIBRO MAYOR'!$A$24,'LIBRO MAYOR'!$B$34,IF('BALANCE DE PRUEBA'!A3='LIBRO MAYOR'!$D$24,'LIBRO MAYOR'!$E$34,IF('BALANCE DE PRUEBA'!A3='LIBRO MAYOR'!$G$24,'LIBRO MAYOR'!$H$34,IF('BALANCE DE PRUEBA'!A3='LIBRO MAYOR'!$A$35,'LIBRO MAYOR'!$B$45,IF('BALANCE DE PRUEBA'!A3='LIBRO MAYOR'!$D$35,'LIBRO MAYOR'!$E$45,IF('BALANCE DE PRUEBA'!A3='LIBRO MAYOR'!$G$35,'LIBRO MAYOR'!$H$45,IF('BALANCE DE PRUEBA'!A3='LIBRO MAYOR'!$A$46,'LIBRO MAYOR'!$B$56,IF('BALANCE DE PRUEBA'!A3='LIBRO MAYOR'!$D$46,'LIBRO MAYOR'!$E$56,IF('BALANCE DE PRUEBA'!A3='LIBRO MAYOR'!$G$46,'LIBRO MAYOR'!$H$56,IF('BALANCE DE PRUEBA'!A3='LIBRO MAYOR'!$A$57,'LIBRO MAYOR'!$B$67,IF('BALANCE DE PRUEBA'!A3='LIBRO MAYOR'!$D$57,'LIBRO MAYOR'!$E$67,IF('BALANCE DE PRUEBA'!A3='LIBRO MAYOR'!$G$57,'LIBRO MAYOR'!$H$67,IF(A3='LIBRO MAYOR'!$A$68,'LIBRO MAYOR'!$B$78,IF('BALANCE DE PRUEBA'!A3='LIBRO MAYOR'!$D$68,'LIBRO MAYOR'!$E$78,IF('BALANCE DE PRUEBA'!A3='LIBRO MAYOR'!$G$68,'LIBRO MAYOR'!$H$78,IF('BALANCE DE PRUEBA'!A3='LIBRO MAYOR'!$A$79,'LIBRO MAYOR'!$B$89,IF('BALANCE DE PRUEBA'!A3='LIBRO MAYOR'!$D$79,'LIBRO MAYOR'!$E$89,IF('BALANCE DE PRUEBA'!A3='LIBRO MAYOR'!$G$79,'LIBRO MAYOR'!$H$89,IF('BALANCE DE PRUEBA'!A3='LIBRO MAYOR'!$A$90,'LIBRO MAYOR'!$B$100,IF('BALANCE DE PRUEBA'!A3='LIBRO MAYOR'!$D$90,'LIBRO MAYOR'!$E$100,IF('BALANCE DE PRUEBA'!A3='LIBRO MAYOR'!$G$90,'LIBRO MAYOR'!$H$100,0)))))))))))))))))))))))))))","v":0},{"$f":"SUM(C3+D3)","v":600000}]
[1516,"EDIFICIO",{"$f":"IF(A4='LIBRO MAYOR'!$A$1,'LIBRO MAYOR'!$A$12,IF('BALANCE DE PRUEBA'!A4='LIBRO MAYOR'!$D$1,'LIBRO MAYOR'!$D$12,IF('BALANCE DE PRUEBA'!A4='LIBRO MAYOR'!$G$1,'LIBRO MAYOR'!$G$12,IF('BALANCE DE PRUEBA'!A4='LIBRO MAYOR'!$A$13,'LIBRO MAYOR'!$A$23,IF('BALANCE DE PRUEBA'!A4='LIBRO MAYOR'!$D$13,'LIBRO MAYOR'!$D$23,IF('BALANCE DE PRUEBA'!A4='LIBRO MAYOR'!$G$13,'LIBRO MAYOR'!$G$23,IF('BALANCE DE PRUEBA'!A4='LIBRO MAYOR'!$A$24,'LIBRO MAYOR'!$A$34,IF('BALANCE DE PRUEBA'!A4='LIBRO MAYOR'!$D$24,'LIBRO MAYOR'!$D$34,IF('BALANCE DE PRUEBA'!A4='LIBRO MAYOR'!$G$24,'LIBRO MAYOR'!$G$34,IF('BALANCE DE PRUEBA'!A4='LIBRO MAYOR'!$A$35,'LIBRO MAYOR'!$A$45,IF('BALANCE DE PRUEBA'!A4='LIBRO MAYOR'!$D$35,'LIBRO MAYOR'!$D$45,IF('BALANCE DE PRUEBA'!A4='LIBRO MAYOR'!$G$35,'LIBRO MAYOR'!$G$45,IF('BALANCE DE PRUEBA'!A4='LIBRO MAYOR'!$A$46,'LIBRO MAYOR'!$A$56,IF('BALANCE DE PRUEBA'!A4='LIBRO MAYOR'!$D$46,'LIBRO MAYOR'!$D$56,IF('BALANCE DE PRUEBA'!A4='LIBRO MAYOR'!$G$46,'LIBRO MAYOR'!$G$56,IF('BALANCE DE PRUEBA'!A4='LIBRO MAYOR'!$A$57,'LIBRO MAYOR'!$A$67,IF('BALANCE DE PRUEBA'!A4='LIBRO MAYOR'!$D$57,'LIBRO MAYOR'!$D$67,IF('BALANCE DE PRUEBA'!A4='LIBRO MAYOR'!$G$57,'LIBRO MAYOR'!$G$67,IF(A4='LIBRO MAYOR'!$A$68,'LIBRO MAYOR'!$A$78,IF('BALANCE DE PRUEBA'!A4='LIBRO MAYOR'!$D$68,'LIBRO MAYOR'!$D$78,IF('BALANCE DE PRUEBA'!A4='LIBRO MAYOR'!$G$68,'LIBRO MAYOR'!$G$78,IF('BALANCE DE PRUEBA'!A4='LIBRO MAYOR'!$A$79,'LIBRO MAYOR'!$A$89,IF('BALANCE DE PRUEBA'!A4='LIBRO MAYOR'!$D$79,'LIBRO MAYOR'!$D$89,IF('BALANCE DE PRUEBA'!A4='LIBRO MAYOR'!$G$79,'LIBRO MAYOR'!$G$89,IF('BALANCE DE PRUEBA'!A4='LIBRO MAYOR'!$A$90,'LIBRO MAYOR'!$A$100,IF('BALANCE DE PRUEBA'!A4='LIBRO MAYOR'!$D$90,'LIBRO MAYOR'!$D$100,IF('BALANCE DE PRUEBA'!A4='LIBRO MAYOR'!$G$90,'LIBRO MAYOR'!$G$100,0)))))))))))))))))))))))))))","v":90000000},{"$f":"IF(A4='LIBRO MAYOR'!$A$1,'LIBRO MAYOR'!$B$12,IF('BALANCE DE PRUEBA'!A4='LIBRO MAYOR'!$D$1,'LIBRO MAYOR'!$E$12,IF('BALANCE DE PRUEBA'!A4='LIBRO MAYOR'!$G$1,'LIBRO MAYOR'!$H$12,IF('BALANCE DE PRUEBA'!A4='LIBRO MAYOR'!$A$13,'LIBRO MAYOR'!$B$23,IF('BALANCE DE PRUEBA'!A4='LIBRO MAYOR'!$D$13,'LIBRO MAYOR'!$E$23,IF('BALANCE DE PRUEBA'!A4='LIBRO MAYOR'!$G$13,'LIBRO MAYOR'!$H$23,IF('BALANCE DE PRUEBA'!A4='LIBRO MAYOR'!$A$24,'LIBRO MAYOR'!$B$34,IF('BALANCE DE PRUEBA'!A4='LIBRO MAYOR'!$D$24,'LIBRO MAYOR'!$E$34,IF('BALANCE DE PRUEBA'!A4='LIBRO MAYOR'!$G$24,'LIBRO MAYOR'!$H$34,IF('BALANCE DE PRUEBA'!A4='LIBRO MAYOR'!$A$35,'LIBRO MAYOR'!$B$45,IF('BALANCE DE PRUEBA'!A4='LIBRO MAYOR'!$D$35,'LIBRO MAYOR'!$E$45,IF('BALANCE DE PRUEBA'!A4='LIBRO MAYOR'!$G$35,'LIBRO MAYOR'!$H$45,IF('BALANCE DE PRUEBA'!A4='LIBRO MAYOR'!$A$46,'LIBRO MAYOR'!$B$56,IF('BALANCE DE PRUEBA'!A4='LIBRO MAYOR'!$D$46,'LIBRO MAYOR'!$E$56,IF('BALANCE DE PRUEBA'!A4='LIBRO MAYOR'!$G$46,'LIBRO MAYOR'!$H$56,IF('BALANCE DE PRUEBA'!A4='LIBRO MAYOR'!$A$57,'LIBRO MAYOR'!$B$67,IF('BALANCE DE PRUEBA'!A4='LIBRO MAYOR'!$D$57,'LIBRO MAYOR'!$E$67,IF('BALANCE DE PRUEBA'!A4='LIBRO MAYOR'!$G$57,'LIBRO MAYOR'!$H$67,IF(A4='LIBRO MAYOR'!$A$68,'LIBRO MAYOR'!$B$78,IF('BALANCE DE PRUEBA'!A4='LIBRO MAYOR'!$D$68,'LIBRO MAYOR'!$E$78,IF('BALANCE DE PRUEBA'!A4='LIBRO MAYOR'!$G$68,'LIBRO MAYOR'!$H$78,IF('BALANCE DE PRUEBA'!A4='LIBRO MAYOR'!$A$79,'LIBRO MAYOR'!$B$89,IF('BALANCE DE PRUEBA'!A4='LIBRO MAYOR'!$D$79,'LIBRO MAYOR'!$E$89,IF('BALANCE DE PRUEBA'!A4='LIBRO MAYOR'!$G$79,'LIBRO MAYOR'!$H$89,IF('BALANCE DE PRUEBA'!A4='LIBRO MAYOR'!$A$90,'LIBRO MAYOR'!$B$100,IF('BALANCE DE PRUEBA'!A4='LIBRO MAYOR'!$D$90,'LIBRO MAYOR'!$E$100,IF('BALANCE DE PRUEBA'!A4='LIBRO MAYOR'!$G$90,'LIBRO MAYOR'!$H$100,0)))))))))))))))))))))))))))","v":0},90000000]
[3115,"APORTES SOCIALES",{"$f":"IF(A5='LIBRO MAYOR'!$A$1,'LIBRO MAYOR'!$A$12,IF('BALANCE DE PRUEBA'!A5='LIBRO MAYOR'!$D$1,'LIBRO MAYOR'!$D$12,IF('BALANCE DE PRUEBA'!A5='LIBRO MAYOR'!$G$1,'LIBRO MAYOR'!$G$12,IF('BALANCE DE PRUEBA'!A5='LIBRO MAYOR'!$A$13,'LIBRO MAYOR'!$A$23,IF('BALANCE DE PRUEBA'!A5='LIBRO MAYOR'!$D$13,'LIBRO MAYOR'!$D$23,IF('BALANCE DE PRUEBA'!A5='LIBRO MAYOR'!$G$13,'LIBRO MAYOR'!$G$23,IF('BALANCE DE PRUEBA'!A5='LIBRO MAYOR'!$A$24,'LIBRO MAYOR'!$A$34,IF('BALANCE DE PRUEBA'!A5='LIBRO MAYOR'!$D$24,'LIBRO MAYOR'!$D$34,IF('BALANCE DE PRUEBA'!A5='LIBRO MAYOR'!$G$24,'LIBRO MAYOR'!$G$34,IF('BALANCE DE PRUEBA'!A5='LIBRO MAYOR'!$A$35,'LIBRO MAYOR'!$A$45,IF('BALANCE DE PRUEBA'!A5='LIBRO MAYOR'!$D$35,'LIBRO MAYOR'!$D$45,IF('BALANCE DE PRUEBA'!A5='LIBRO MAYOR'!$G$35,'LIBRO MAYOR'!$G$45,IF('BALANCE DE PRUEBA'!A5='LIBRO MAYOR'!$A$46,'LIBRO MAYOR'!$A$56,IF('BALANCE DE PRUEBA'!A5='LIBRO MAYOR'!$D$46,'LIBRO MAYOR'!$D$56,IF('BALANCE DE PRUEBA'!A5='LIBRO MAYOR'!$G$46,'LIBRO MAYOR'!$G$56,IF('BALANCE DE PRUEBA'!A5='LIBRO MAYOR'!$A$57,'LIBRO MAYOR'!$A$67,IF('BALANCE DE PRUEBA'!A5='LIBRO MAYOR'!$D$57,'LIBRO MAYOR'!$D$67,IF('BALANCE DE PRUEBA'!A5='LIBRO MAYOR'!$G$57,'LIBRO MAYOR'!$G$67,IF(A5='LIBRO MAYOR'!$A$68,'LIBRO MAYOR'!$A$78,IF('BALANCE DE PRUEBA'!A5='LIBRO MAYOR'!$D$68,'LIBRO MAYOR'!$D$78,IF('BALANCE DE PRUEBA'!A5='LIBRO MAYOR'!$G$68,'LIBRO MAYOR'!$G$78,IF('BALANCE DE PRUEBA'!A5='LIBRO MAYOR'!$A$79,'LIBRO MAYOR'!$A$89,IF('BALANCE DE PRUEBA'!A5='LIBRO MAYOR'!$D$79,'LIBRO MAYOR'!$D$89,IF('BALANCE DE PRUEBA'!A5='LIBRO MAYOR'!$G$79,'LIBRO MAYOR'!$G$89,IF('BALANCE DE PRUEBA'!A5='LIBRO MAYOR'!$A$90,'LIBRO MAYOR'!$A$100,IF('BALANCE DE PRUEBA'!A5='LIBRO MAYOR'!$D$90,'LIBRO MAYOR'!$D$100,IF('BALANCE DE PRUEBA'!A5='LIBRO MAYOR'!$G$90,'LIBRO MAYOR'!$G$100,0)))))))))))))))))))))))))))","v":0},{"$f":"IF(A5='LIBRO MAYOR'!$A$1,'LIBRO MAYOR'!$B$12,IF('BALANCE DE PRUEBA'!A5='LIBRO MAYOR'!$D$1,'LIBRO MAYOR'!$E$12,IF('BALANCE DE PRUEBA'!A5='LIBRO MAYOR'!$G$1,'LIBRO MAYOR'!$H$12,IF('BALANCE DE PRUEBA'!A5='LIBRO MAYOR'!$A$13,'LIBRO MAYOR'!$B$23,IF('BALANCE DE PRUEBA'!A5='LIBRO MAYOR'!$D$13,'LIBRO MAYOR'!$E$23,IF('BALANCE DE PRUEBA'!A5='LIBRO MAYOR'!$G$13,'LIBRO MAYOR'!$H$23,IF('BALANCE DE PRUEBA'!A5='LIBRO MAYOR'!$A$24,'LIBRO MAYOR'!$B$34,IF('BALANCE DE PRUEBA'!A5='LIBRO MAYOR'!$D$24,'LIBRO MAYOR'!$E$34,IF('BALANCE DE PRUEBA'!A5='LIBRO MAYOR'!$G$24,'LIBRO MAYOR'!$H$34,IF('BALANCE DE PRUEBA'!A5='LIBRO MAYOR'!$A$35,'LIBRO MAYOR'!$B$45,IF('BALANCE DE PRUEBA'!A5='LIBRO MAYOR'!$D$35,'LIBRO MAYOR'!$E$45,IF('BALANCE DE PRUEBA'!A5='LIBRO MAYOR'!$G$35,'LIBRO MAYOR'!$H$45,IF('BALANCE DE PRUEBA'!A5='LIBRO MAYOR'!$A$46,'LIBRO MAYOR'!$B$56,IF('BALANCE DE PRUEBA'!A5='LIBRO MAYOR'!$D$46,'LIBRO MAYOR'!$E$56,IF('BALANCE DE PRUEBA'!A5='LIBRO MAYOR'!$G$46,'LIBRO MAYOR'!$H$56,IF('BALANCE DE PRUEBA'!A5='LIBRO MAYOR'!$A$57,'LIBRO MAYOR'!$B$67,IF('BALANCE DE PRUEBA'!A5='LIBRO MAYOR'!$D$57,'LIBRO MAYOR'!$E$67,IF('BALANCE DE PRUEBA'!A5='LIBRO MAYOR'!$G$57,'LIBRO MAYOR'!$H$67,IF(A5='LIBRO MAYOR'!$A$68,'LIBRO MAYOR'!$B$78,IF('BALANCE DE PRUEBA'!A5='LIBRO MAYOR'!$D$68,'LIBRO MAYOR'!$E$78,IF('BALANCE DE PRUEBA'!A5='LIBRO MAYOR'!$G$68,'LIBRO MAYOR'!$H$78,IF('BALANCE DE PRUEBA'!A5='LIBRO MAYOR'!$A$79,'LIBRO MAYOR'!$B$89,IF('BALANCE DE PRUEBA'!A5='LIBRO MAYOR'!$D$79,'LIBRO MAYOR'!$E$89,IF('BALANCE DE PRUEBA'!A5='LIBRO MAYOR'!$G$79,'LIBRO MAYOR'!$H$89,IF('BALANCE DE PRUEBA'!A5='LIBRO MAYOR'!$A$90,'LIBRO MAYOR'!$B$100,IF('BALANCE DE PRUEBA'!A5='LIBRO MAYOR'!$D$90,'LIBRO MAYOR'!$E$100,IF('BALANCE DE PRUEBA'!A5='LIBRO MAYOR'!$G$90,'LIBRO MAYOR'!$H$100,0)))))))))))))))))))))))))))","v":113300000},113300000]
[4135,"COMERCIO POR MAYOR POR MENOR",{"$f":"IF(A6='LIBRO MAYOR'!$A$1,'LIBRO MAYOR'!$A$12,IF('BALANCE DE PRUEBA'!A6='LIBRO MAYOR'!$D$1,'LIBRO MAYOR'!$D$12,IF('BALANCE DE PRUEBA'!A6='LIBRO MAYOR'!$G$1,'LIBRO MAYOR'!$G$12,IF('BALANCE DE PRUEBA'!A6='LIBRO MAYOR'!$A$13,'LIBRO MAYOR'!$A$23,IF('BALANCE DE PRUEBA'!A6='LIBRO MAYOR'!$D$13,'LIBRO MAYOR'!$D$23,IF('BALANCE DE PRUEBA'!A6='LIBRO MAYOR'!$G$13,'LIBRO MAYOR'!$G$23,IF('BALANCE DE PRUEBA'!A6='LIBRO MAYOR'!$A$24,'LIBRO MAYOR'!$A$34,IF('BALANCE DE PRUEBA'!A6='LIBRO MAYOR'!$D$24,'LIBRO MAYOR'!$D$34,IF('BALANCE DE PRUEBA'!A6='LIBRO MAYOR'!$G$24,'LIBRO MAYOR'!$G$34,IF('BALANCE DE PRUEBA'!A6='LIBRO MAYOR'!$A$35,'LIBRO MAYOR'!$A$45,IF('BALANCE DE PRUEBA'!A6='LIBRO MAYOR'!$D$35,'LIBRO MAYOR'!$D$45,IF('BALANCE DE PRUEBA'!A6='LIBRO MAYOR'!$G$35,'LIBRO MAYOR'!$G$45,IF('BALANCE DE PRUEBA'!A6='LIBRO MAYOR'!$A$46,'LIBRO MAYOR'!$A$56,IF('BALANCE DE PRUEBA'!A6='LIBRO MAYOR'!$D$46,'LIBRO MAYOR'!$D$56,IF('BALANCE DE PRUEBA'!A6='LIBRO MAYOR'!$G$46,'LIBRO MAYOR'!$G$56,IF('BALANCE DE PRUEBA'!A6='LIBRO MAYOR'!$A$57,'LIBRO MAYOR'!$A$67,IF('BALANCE DE PRUEBA'!A6='LIBRO MAYOR'!$D$57,'LIBRO MAYOR'!$D$67,IF('BALANCE DE PRUEBA'!A6='LIBRO MAYOR'!$G$57,'LIBRO MAYOR'!$G$67,IF(A6='LIBRO MAYOR'!$A$68,'LIBRO MAYOR'!$A$78,IF('BALANCE DE PRUEBA'!A6='LIBRO MAYOR'!$D$68,'LIBRO MAYOR'!$D$78,IF('BALANCE DE PRUEBA'!A6='LIBRO MAYOR'!$G$68,'LIBRO MAYOR'!$G$78,IF('BALANCE DE PRUEBA'!A6='LIBRO MAYOR'!$A$79,'LIBRO MAYOR'!$A$89,IF('BALANCE DE PRUEBA'!A6='LIBRO MAYOR'!$D$79,'LIBRO MAYOR'!$D$89,IF('BALANCE DE PRUEBA'!A6='LIBRO MAYOR'!$G$79,'LIBRO MAYOR'!$G$89,IF('BALANCE DE PRUEBA'!A6='LIBRO MAYOR'!$A$90,'LIBRO MAYOR'!$A$100,IF('BALANCE DE PRUEBA'!A6='LIBRO MAYOR'!$D$90,'LIBRO MAYOR'!$D$100,IF('BALANCE DE PRUEBA'!A6='LIBRO MAYOR'!$G$90,'LIBRO MAYOR'!$G$100,0)))))))))))))))))))))))))))","v":0},{"$f":"IF(A6='LIBRO MAYOR'!$A$1,'LIBRO MAYOR'!$B$12,IF('BALANCE DE PRUEBA'!A6='LIBRO MAYOR'!$D$1,'LIBRO MAYOR'!$E$12,IF('BALANCE DE PRUEBA'!A6='LIBRO MAYOR'!$G$1,'LIBRO MAYOR'!$H$12,IF('BALANCE DE PRUEBA'!A6='LIBRO MAYOR'!$A$13,'LIBRO MAYOR'!$B$23,IF('BALANCE DE PRUEBA'!A6='LIBRO MAYOR'!$D$13,'LIBRO MAYOR'!$E$23,IF('BALANCE DE PRUEBA'!A6='LIBRO MAYOR'!$G$13,'LIBRO MAYOR'!$H$23,IF('BALANCE DE PRUEBA'!A6='LIBRO MAYOR'!$A$24,'LIBRO MAYOR'!$B$34,IF('BALANCE DE PRUEBA'!A6='LIBRO MAYOR'!$D$24,'LIBRO MAYOR'!$E$34,IF('BALANCE DE PRUEBA'!A6='LIBRO MAYOR'!$G$24,'LIBRO MAYOR'!$H$34,IF('BALANCE DE PRUEBA'!A6='LIBRO MAYOR'!$A$35,'LIBRO MAYOR'!$B$45,IF('BALANCE DE PRUEBA'!A6='LIBRO MAYOR'!$D$35,'LIBRO MAYOR'!$E$45,IF('BALANCE DE PRUEBA'!A6='LIBRO MAYOR'!$G$35,'LIBRO MAYOR'!$H$45,IF('BALANCE DE PRUEBA'!A6='LIBRO MAYOR'!$A$46,'LIBRO MAYOR'!$B$56,IF('BALANCE DE PRUEBA'!A6='LIBRO MAYOR'!$D$46,'LIBRO MAYOR'!$E$56,IF('BALANCE DE PRUEBA'!A6='LIBRO MAYOR'!$G$46,'LIBRO MAYOR'!$H$56,IF('BALANCE DE PRUEBA'!A6='LIBRO MAYOR'!$A$57,'LIBRO MAYOR'!$B$67,IF('BALANCE DE PRUEBA'!A6='LIBRO MAYOR'!$D$57,'LIBRO MAYOR'!$E$67,IF('BALANCE DE PRUEBA'!A6='LIBRO MAYOR'!$G$57,'LIBRO MAYOR'!$H$67,IF(A6='LIBRO MAYOR'!$A$68,'LIBRO MAYOR'!$B$78,IF('BALANCE DE PRUEBA'!A6='LIBRO MAYOR'!$D$68,'LIBRO MAYOR'!$E$78,IF('BALANCE DE PRUEBA'!A6='LIBRO MAYOR'!$G$68,'LIBRO MAYOR'!$H$78,IF('BALANCE DE PRUEBA'!A6='LIBRO MAYOR'!$A$79,'LIBRO MAYOR'!$B$89,IF('BALANCE DE PRUEBA'!A6='LIBRO MAYOR'!$D$79,'LIBRO MAYOR'!$E$89,IF('BALANCE DE PRUEBA'!A6='LIBRO MAYOR'!$G$79,'LIBRO MAYOR'!$H$89,IF('BALANCE DE PRUEBA'!A6='LIBRO MAYOR'!$A$90,'LIBRO MAYOR'!$B$100,IF('BALANCE DE PRUEBA'!A6='LIBRO MAYOR'!$D$90,'LIBRO MAYOR'!$E$100,IF('BALANCE DE PRUEBA'!A6='LIBRO MAYOR'!$G$90,'LIBRO MAYOR'!$H$100,0)))))))))))))))))))))))))))","v":975000},975000]
[2408,"IVA X PAGAR",{"$f":"IF(A7='LIBRO MAYOR'!$A$1,'LIBRO MAYOR'!$A$12,IF('BALANCE DE PRUEBA'!A7='LIBRO MAYOR'!$D$1,'LIBRO MAYOR'!$D$12,IF('BALANCE DE PRUEBA'!A7='LIBRO MAYOR'!$G$1,'LIBRO MAYOR'!$G$12,IF('BALANCE DE PRUEBA'!A7='LIBRO MAYOR'!$A$13,'LIBRO MAYOR'!$A$23,IF('BALANCE DE PRUEBA'!A7='LIBRO MAYOR'!$D$13,'LIBRO MAYOR'!$D$23,IF('BALANCE DE PRUEBA'!A7='LIBRO MAYOR'!$G$13,'LIBRO MAYOR'!$G$23,IF('BALANCE DE PRUEBA'!A7='LIBRO MAYOR'!$A$24,'LIBRO MAYOR'!$A$34,IF('BALANCE DE PRUEBA'!A7='LIBRO MAYOR'!$D$24,'LIBRO MAYOR'!$D$34,IF('BALANCE DE PRUEBA'!A7='LIBRO MAYOR'!$G$24,'LIBRO MAYOR'!$G$34,IF('BALANCE DE PRUEBA'!A7='LIBRO MAYOR'!$A$35,'LIBRO MAYOR'!$A$45,IF('BALANCE DE PRUEBA'!A7='LIBRO MAYOR'!$D$35,'LIBRO MAYOR'!$D$45,IF('BALANCE DE PRUEBA'!A7='LIBRO MAYOR'!$G$35,'LIBRO MAYOR'!$G$45,IF('BALANCE DE PRUEBA'!A7='LIBRO MAYOR'!$A$46,'LIBRO MAYOR'!$A$56,IF('BALANCE DE PRUEBA'!A7='LIBRO MAYOR'!$D$46,'LIBRO MAYOR'!$D$56,IF('BALANCE DE PRUEBA'!A7='LIBRO MAYOR'!$G$46,'LIBRO MAYOR'!$G$56,IF('BALANCE DE PRUEBA'!A7='LIBRO MAYOR'!$A$57,'LIBRO MAYOR'!$A$67,IF('BALANCE DE PRUEBA'!A7='LIBRO MAYOR'!$D$57,'LIBRO MAYOR'!$D$67,IF('BALANCE DE PRUEBA'!A7='LIBRO MAYOR'!$G$57,'LIBRO MAYOR'!$G$67,IF(A7='LIBRO MAYOR'!$A$68,'LIBRO MAYOR'!$A$78,IF('BALANCE DE PRUEBA'!A7='LIBRO MAYOR'!$D$68,'LIBRO MAYOR'!$D$78,IF('BALANCE DE PRUEBA'!A7='LIBRO MAYOR'!$G$68,'LIBRO MAYOR'!$G$78,IF('BALANCE DE PRUEBA'!A7='LIBRO MAYOR'!$A$79,'LIBRO MAYOR'!$A$89,IF('BALANCE DE PRUEBA'!A7='LIBRO MAYOR'!$D$79,'LIBRO MAYOR'!$D$89,IF('BALANCE DE PRUEBA'!A7='LIBRO MAYOR'!$G$79,'LIBRO MAYOR'!$G$89,IF('BALANCE DE PRUEBA'!A7='LIBRO MAYOR'!$A$90,'LIBRO MAYOR'!$A$100,IF('BALANCE DE PRUEBA'!A7='LIBRO MAYOR'!$D$90,'LIBRO MAYOR'!$D$100,IF('BALANCE DE PRUEBA'!A7='LIBRO MAYOR'!$G$90,'LIBRO MAYOR'!$G$100,0)))))))))))))))))))))))))))","v":0},{"$f":"IF(A7='LIBRO MAYOR'!$A$1,'LIBRO MAYOR'!$B$12,IF('BALANCE DE PRUEBA'!A7='LIBRO MAYOR'!$D$1,'LIBRO MAYOR'!$E$12,IF('BALANCE DE PRUEBA'!A7='LIBRO MAYOR'!$G$1,'LIBRO MAYOR'!$H$12,IF('BALANCE DE PRUEBA'!A7='LIBRO MAYOR'!$A$13,'LIBRO MAYOR'!$B$23,IF('BALANCE DE PRUEBA'!A7='LIBRO MAYOR'!$D$13,'LIBRO MAYOR'!$E$23,IF('BALANCE DE PRUEBA'!A7='LIBRO MAYOR'!$G$13,'LIBRO MAYOR'!$H$23,IF('BALANCE DE PRUEBA'!A7='LIBRO MAYOR'!$A$24,'LIBRO MAYOR'!$B$34,IF('BALANCE DE PRUEBA'!A7='LIBRO MAYOR'!$D$24,'LIBRO MAYOR'!$E$34,IF('BALANCE DE PRUEBA'!A7='LIBRO MAYOR'!$G$24,'LIBRO MAYOR'!$H$34,IF('BALANCE DE PRUEBA'!A7='LIBRO MAYOR'!$A$35,'LIBRO MAYOR'!$B$45,IF('BALANCE DE PRUEBA'!A7='LIBRO MAYOR'!$D$35,'LIBRO MAYOR'!$E$45,IF('BALANCE DE PRUEBA'!A7='LIBRO MAYOR'!$G$35,'LIBRO MAYOR'!$H$45,IF('BALANCE DE PRUEBA'!A7='LIBRO MAYOR'!$A$46,'LIBRO MAYOR'!$B$56,IF('BALANCE DE PRUEBA'!A7='LIBRO MAYOR'!$D$46,'LIBRO MAYOR'!$E$56,IF('BALANCE DE PRUEBA'!A7='LIBRO MAYOR'!$G$46,'LIBRO MAYOR'!$H$56,IF('BALANCE DE PRUEBA'!A7='LIBRO MAYOR'!$A$57,'LIBRO MAYOR'!$B$67,IF('BALANCE DE PRUEBA'!A7='LIBRO MAYOR'!$D$57,'LIBRO MAYOR'!$E$67,IF('BALANCE DE PRUEBA'!A7='LIBRO MAYOR'!$G$57,'LIBRO MAYOR'!$H$67,IF(A7='LIBRO MAYOR'!$A$68,'LIBRO MAYOR'!$B$78,IF('BALANCE DE PRUEBA'!A7='LIBRO MAYOR'!$D$68,'LIBRO MAYOR'!$E$78,IF('BALANCE DE PRUEBA'!A7='LIBRO MAYOR'!$G$68,'LIBRO MAYOR'!$H$78,IF('BALANCE DE PRUEBA'!A7='LIBRO MAYOR'!$A$79,'LIBRO MAYOR'!$B$89,IF('BALANCE DE PRUEBA'!A7='LIBRO MAYOR'!$D$79,'LIBRO MAYOR'!$E$89,IF('BALANCE DE PRUEBA'!A7='LIBRO MAYOR'!$G$79,'LIBRO MAYOR'!$H$89,IF('BALANCE DE PRUEBA'!A7='LIBRO MAYOR'!$A$90,'LIBRO MAYOR'!$B$100,IF('BALANCE DE PRUEBA'!A7='LIBRO MAYOR'!$D$90,'LIBRO MAYOR'!$E$100,IF('BALANCE DE PRUEBA'!A7='LIBRO MAYOR'!$G$90,'LIBRO MAYOR'!$H$100,0)))))))))))))))))))))))))))","v":12000},12000]
[1305,"CUENTAS POR COBRAR CLIENTES",{"$f":"IF(A8='LIBRO MAYOR'!$A$1,'LIBRO MAYOR'!$A$12,IF('BALANCE DE PRUEBA'!A8='LIBRO MAYOR'!$D$1,'LIBRO MAYOR'!$D$12,IF('BALANCE DE PRUEBA'!A8='LIBRO MAYOR'!$G$1,'LIBRO MAYOR'!$G$12,IF('BALANCE DE PRUEBA'!A8='LIBRO MAYOR'!$A$13,'LIBRO MAYOR'!$A$23,IF('BALANCE DE PRUEBA'!A8='LIBRO MAYOR'!$D$13,'LIBRO MAYOR'!$D$23,IF('BALANCE DE PRUEBA'!A8='LIBRO MAYOR'!$G$13,'LIBRO MAYOR'!$G$23,IF('BALANCE DE PRUEBA'!A8='LIBRO MAYOR'!$A$24,'LIBRO MAYOR'!$A$34,IF('BALANCE DE PRUEBA'!A8='LIBRO MAYOR'!$D$24,'LIBRO MAYOR'!$D$34,IF('BALANCE DE PRUEBA'!A8='LIBRO MAYOR'!$G$24,'LIBRO MAYOR'!$G$34,IF('BALANCE DE PRUEBA'!A8='LIBRO MAYOR'!$A$35,'LIBRO MAYOR'!$A$45,IF('BALANCE DE PRUEBA'!A8='LIBRO MAYOR'!$D$35,'LIBRO MAYOR'!$D$45,IF('BALANCE DE PRUEBA'!A8='LIBRO MAYOR'!$G$35,'LIBRO MAYOR'!$G$45,IF('BALANCE DE PRUEBA'!A8='LIBRO MAYOR'!$A$46,'LIBRO MAYOR'!$A$56,IF('BALANCE DE PRUEBA'!A8='LIBRO MAYOR'!$D$46,'LIBRO MAYOR'!$D$56,IF('BALANCE DE PRUEBA'!A8='LIBRO MAYOR'!$G$46,'LIBRO MAYOR'!$G$56,IF('BALANCE DE PRUEBA'!A8='LIBRO MAYOR'!$A$57,'LIBRO MAYOR'!$A$67,IF('BALANCE DE PRUEBA'!A8='LIBRO MAYOR'!$D$57,'LIBRO MAYOR'!$D$67,IF('BALANCE DE PRUEBA'!A8='LIBRO MAYOR'!$G$57,'LIBRO MAYOR'!$G$67,IF(A8='LIBRO MAYOR'!$A$68,'LIBRO MAYOR'!$A$78,IF('BALANCE DE PRUEBA'!A8='LIBRO MAYOR'!$D$68,'LIBRO MAYOR'!$D$78,IF('BALANCE DE PRUEBA'!A8='LIBRO MAYOR'!$G$68,'LIBRO MAYOR'!$G$78,IF('BALANCE DE PRUEBA'!A8='LIBRO MAYOR'!$A$79,'LIBRO MAYOR'!$A$89,IF('BALANCE DE PRUEBA'!A8='LIBRO MAYOR'!$D$79,'LIBRO MAYOR'!$D$89,IF('BALANCE DE PRUEBA'!A8='LIBRO MAYOR'!$G$79,'LIBRO MAYOR'!$G$89,IF('BALANCE DE PRUEBA'!A8='LIBRO MAYOR'!$A$90,'LIBRO MAYOR'!$A$100,IF('BALANCE DE PRUEBA'!A8='LIBRO MAYOR'!$D$90,'LIBRO MAYOR'!$D$100,IF('BALANCE DE PRUEBA'!A8='LIBRO MAYOR'!$G$90,'LIBRO MAYOR'!$G$100,0)))))))))))))))))))))))))))","v":65250},{"$f":"IF(A8='LIBRO MAYOR'!$A$1,'LIBRO MAYOR'!$B$12,IF('BALANCE DE PRUEBA'!A8='LIBRO MAYOR'!$D$1,'LIBRO MAYOR'!$E$12,IF('BALANCE DE PRUEBA'!A8='LIBRO MAYOR'!$G$1,'LIBRO MAYOR'!$H$12,IF('BALANCE DE PRUEBA'!A8='LIBRO MAYOR'!$A$13,'LIBRO MAYOR'!$B$23,IF('BALANCE DE PRUEBA'!A8='LIBRO MAYOR'!$D$13,'LIBRO MAYOR'!$E$23,IF('BALANCE DE PRUEBA'!A8='LIBRO MAYOR'!$G$13,'LIBRO MAYOR'!$H$23,IF('BALANCE DE PRUEBA'!A8='LIBRO MAYOR'!$A$24,'LIBRO MAYOR'!$B$34,IF('BALANCE DE PRUEBA'!A8='LIBRO MAYOR'!$D$24,'LIBRO MAYOR'!$E$34,IF('BALANCE DE PRUEBA'!A8='LIBRO MAYOR'!$G$24,'LIBRO MAYOR'!$H$34,IF('BALANCE DE PRUEBA'!A8='LIBRO MAYOR'!$A$35,'LIBRO MAYOR'!$B$45,IF('BALANCE DE PRUEBA'!A8='LIBRO MAYOR'!$D$35,'LIBRO MAYOR'!$E$45,IF('BALANCE DE PRUEBA'!A8='LIBRO MAYOR'!$G$35,'LIBRO MAYOR'!$H$45,IF('BALANCE DE PRUEBA'!A8='LIBRO MAYOR'!$A$46,'LIBRO MAYOR'!$B$56,IF('BALANCE DE PRUEBA'!A8='LIBRO MAYOR'!$D$46,'LIBRO MAYOR'!$E$56,IF('BALANCE DE PRUEBA'!A8='LIBRO MAYOR'!$G$46,'LIBRO MAYOR'!$H$56,IF('BALANCE DE PRUEBA'!A8='LIBRO MAYOR'!$A$57,'LIBRO MAYOR'!$B$67,IF('BALANCE DE PRUEBA'!A8='LIBRO MAYOR'!$D$57,'LIBRO MAYOR'!$E$67,IF('BALANCE DE PRUEBA'!A8='LIBRO MAYOR'!$G$57,'LIBRO MAYOR'!$H$67,IF(A8='LIBRO MAYOR'!$A$68,'LIBRO MAYOR'!$B$78,IF('BALANCE DE PRUEBA'!A8='LIBRO MAYOR'!$D$68,'LIBRO MAYOR'!$E$78,IF('BALANCE DE PRUEBA'!A8='LIBRO MAYOR'!$G$68,'LIBRO MAYOR'!$H$78,IF('BALANCE DE PRUEBA'!A8='LIBRO MAYOR'!$A$79,'LIBRO MAYOR'!$B$89,IF('BALANCE DE PRUEBA'!A8='LIBRO MAYOR'!$D$79,'LIBRO MAYOR'!$E$89,IF('BALANCE DE PRUEBA'!A8='LIBRO MAYOR'!$G$79,'LIBRO MAYOR'!$H$89,IF('BALANCE DE PRUEBA'!A8='LIBRO MAYOR'!$A$90,'LIBRO MAYOR'!$B$100,IF('BALANCE DE PRUEBA'!A8='LIBRO MAYOR'!$D$90,'LIBRO MAYOR'!$E$100,IF('BALANCE DE PRUEBA'!A8='LIBRO MAYOR'!$G$90,'LIBRO MAYOR'!$H$100,0)))))))))))))))))))))))))))","v":0},65250]
[6205,"DE VENTAS",{"$f":"IF(A9='LIBRO MAYOR'!$A$1,'LIBRO MAYOR'!$A$12,IF('BALANCE DE PRUEBA'!A9='LIBRO MAYOR'!$D$1,'LIBRO MAYOR'!$D$12,IF('BALANCE DE PRUEBA'!A9='LIBRO MAYOR'!$G$1,'LIBRO MAYOR'!$G$12,IF('BALANCE DE PRUEBA'!A9='LIBRO MAYOR'!$A$13,'LIBRO MAYOR'!$A$23,IF('BALANCE DE PRUEBA'!A9='LIBRO MAYOR'!$D$13,'LIBRO MAYOR'!$D$23,IF('BALANCE DE PRUEBA'!A9='LIBRO MAYOR'!$G$13,'LIBRO MAYOR'!$G$23,IF('BALANCE DE PRUEBA'!A9='LIBRO MAYOR'!$A$24,'LIBRO MAYOR'!$A$34,IF('BALANCE DE PRUEBA'!A9='LIBRO MAYOR'!$D$24,'LIBRO MAYOR'!$D$34,IF('BALANCE DE PRUEBA'!A9='LIBRO MAYOR'!$G$24,'LIBRO MAYOR'!$G$34,IF('BALANCE DE PRUEBA'!A9='LIBRO MAYOR'!$A$35,'LIBRO MAYOR'!$A$45,IF('BALANCE DE PRUEBA'!A9='LIBRO MAYOR'!$D$35,'LIBRO MAYOR'!$D$45,IF('BALANCE DE PRUEBA'!A9='LIBRO MAYOR'!$G$35,'LIBRO MAYOR'!$G$45,IF('BALANCE DE PRUEBA'!A9='LIBRO MAYOR'!$A$46,'LIBRO MAYOR'!$A$56,IF('BALANCE DE PRUEBA'!A9='LIBRO MAYOR'!$D$46,'LIBRO MAYOR'!$D$56,IF('BALANCE DE PRUEBA'!A9='LIBRO MAYOR'!$G$46,'LIBRO MAYOR'!$G$56,IF('BALANCE DE PRUEBA'!A9='LIBRO MAYOR'!$A$57,'LIBRO MAYOR'!$A$67,IF('BALANCE DE PRUEBA'!A9='LIBRO MAYOR'!$D$57,'LIBRO MAYOR'!$D$67,IF('BALANCE DE PRUEBA'!A9='LIBRO MAYOR'!$G$57,'LIBRO MAYOR'!$G$67,IF(A9='LIBRO MAYOR'!$A$68,'LIBRO MAYOR'!$A$78,IF('BALANCE DE PRUEBA'!A9='LIBRO MAYOR'!$D$68,'LIBRO MAYOR'!$D$78,IF('BALANCE DE PRUEBA'!A9='LIBRO MAYOR'!$G$68,'LIBRO MAYOR'!$G$78,IF('BALANCE DE PRUEBA'!A9='LIBRO MAYOR'!$A$79,'LIBRO MAYOR'!$A$89,IF('BALANCE DE PRUEBA'!A9='LIBRO MAYOR'!$D$79,'LIBRO MAYOR'!$D$89,IF('BALANCE DE PRUEBA'!A9='LIBRO MAYOR'!$G$79,'LIBRO MAYOR'!$G$89,IF('BALANCE DE PRUEBA'!A9='LIBRO MAYOR'!$A$90,'LIBRO MAYOR'!$A$100,IF('BALANCE DE PRUEBA'!A9='LIBRO MAYOR'!$D$90,'LIBRO MAYOR'!$D$100,IF('BALANCE DE PRUEBA'!A9='LIBRO MAYOR'!$G$90,'LIBRO MAYOR'!$G$100,0)))))))))))))))))))))))))))","v":600000},{"$f":"IF(A9='LIBRO MAYOR'!$A$1,'LIBRO MAYOR'!$B$12,IF('BALANCE DE PRUEBA'!A9='LIBRO MAYOR'!$D$1,'LIBRO MAYOR'!$E$12,IF('BALANCE DE PRUEBA'!A9='LIBRO MAYOR'!$G$1,'LIBRO MAYOR'!$H$12,IF('BALANCE DE PRUEBA'!A9='LIBRO MAYOR'!$A$13,'LIBRO MAYOR'!$B$23,IF('BALANCE DE PRUEBA'!A9='LIBRO MAYOR'!$D$13,'LIBRO MAYOR'!$E$23,IF('BALANCE DE PRUEBA'!A9='LIBRO MAYOR'!$G$13,'LIBRO MAYOR'!$H$23,IF('BALANCE DE PRUEBA'!A9='LIBRO MAYOR'!$A$24,'LIBRO MAYOR'!$B$34,IF('BALANCE DE PRUEBA'!A9='LIBRO MAYOR'!$D$24,'LIBRO MAYOR'!$E$34,IF('BALANCE DE PRUEBA'!A9='LIBRO MAYOR'!$G$24,'LIBRO MAYOR'!$H$34,IF('BALANCE DE PRUEBA'!A9='LIBRO MAYOR'!$A$35,'LIBRO MAYOR'!$B$45,IF('BALANCE DE PRUEBA'!A9='LIBRO MAYOR'!$D$35,'LIBRO MAYOR'!$E$45,IF('BALANCE DE PRUEBA'!A9='LIBRO MAYOR'!$G$35,'LIBRO MAYOR'!$H$45,IF('BALANCE DE PRUEBA'!A9='LIBRO MAYOR'!$A$46,'LIBRO MAYOR'!$B$56,IF('BALANCE DE PRUEBA'!A9='LIBRO MAYOR'!$D$46,'LIBRO MAYOR'!$E$56,IF('BALANCE DE PRUEBA'!A9='LIBRO MAYOR'!$G$46,'LIBRO MAYOR'!$H$56,IF('BALANCE DE PRUEBA'!A9='LIBRO MAYOR'!$A$57,'LIBRO MAYOR'!$B$67,IF('BALANCE DE PRUEBA'!A9='LIBRO MAYOR'!$D$57,'LIBRO MAYOR'!$E$67,IF('BALANCE DE PRUEBA'!A9='LIBRO MAYOR'!$G$57,'LIBRO MAYOR'!$H$67,IF(A9='LIBRO MAYOR'!$A$68,'LIBRO MAYOR'!$B$78,IF('BALANCE DE PRUEBA'!A9='LIBRO MAYOR'!$D$68,'LIBRO MAYOR'!$E$78,IF('BALANCE DE PRUEBA'!A9='LIBRO MAYOR'!$G$68,'LIBRO MAYOR'!$H$78,IF('BALANCE DE PRUEBA'!A9='LIBRO MAYOR'!$A$79,'LIBRO MAYOR'!$B$89,IF('BALANCE DE PRUEBA'!A9='LIBRO MAYOR'!$D$79,'LIBRO MAYOR'!$E$89,IF('BALANCE DE PRUEBA'!A9='LIBRO MAYOR'!$G$79,'LIBRO MAYOR'!$H$89,IF('BALANCE DE PRUEBA'!A9='LIBRO MAYOR'!$A$90,'LIBRO MAYOR'!$B$100,IF('BALANCE DE PRUEBA'!A9='LIBRO MAYOR'!$D$90,'LIBRO MAYOR'!$E$100,IF('BALANCE DE PRUEBA'!A9='LIBRO MAYOR'!$G$90,'LIBRO MAYOR'!$H$100,0)))))))))))))))))))))))))))","v":0},600000]
[2205,"PROVEEDORES NACIONALES",{"$f":"IF(A10='LIBRO MAYOR'!$A$1,'LIBRO MAYOR'!$A$12,IF('BALANCE DE PRUEBA'!A10='LIBRO MAYOR'!$D$1,'LIBRO MAYOR'!$D$12,IF('BALANCE DE PRUEBA'!A10='LIBRO MAYOR'!$G$1,'LIBRO MAYOR'!$G$12,IF('BALANCE DE PRUEBA'!A10='LIBRO MAYOR'!$A$13,'LIBRO MAYOR'!$A$23,IF('BALANCE DE PRUEBA'!A10='LIBRO MAYOR'!$D$13,'LIBRO MAYOR'!$D$23,IF('BALANCE DE PRUEBA'!A10='LIBRO MAYOR'!$G$13,'LIBRO MAYOR'!$G$23,IF('BALANCE DE PRUEBA'!A10='LIBRO MAYOR'!$A$24,'LIBRO MAYOR'!$A$34,IF('BALANCE DE PRUEBA'!A10='LIBRO MAYOR'!$D$24,'LIBRO MAYOR'!$D$34,IF('BALANCE DE PRUEBA'!A10='LIBRO MAYOR'!$G$24,'LIBRO MAYOR'!$G$34,IF('BALANCE DE PRUEBA'!A10='LIBRO MAYOR'!$A$35,'LIBRO MAYOR'!$A$45,IF('BALANCE DE PRUEBA'!A10='LIBRO MAYOR'!$D$35,'LIBRO MAYOR'!$D$45,IF('BALANCE DE PRUEBA'!A10='LIBRO MAYOR'!$G$35,'LIBRO MAYOR'!$G$45,IF('BALANCE DE PRUEBA'!A10='LIBRO MAYOR'!$A$46,'LIBRO MAYOR'!$A$56,IF('BALANCE DE PRUEBA'!A10='LIBRO MAYOR'!$D$46,'LIBRO MAYOR'!$D$56,IF('BALANCE DE PRUEBA'!A10='LIBRO MAYOR'!$G$46,'LIBRO MAYOR'!$G$56,IF('BALANCE DE PRUEBA'!A10='LIBRO MAYOR'!$A$57,'LIBRO MAYOR'!$A$67,IF('BALANCE DE PRUEBA'!A10='LIBRO MAYOR'!$D$57,'LIBRO MAYOR'!$D$67,IF('BALANCE DE PRUEBA'!A10='LIBRO MAYOR'!$G$57,'LIBRO MAYOR'!$G$67,IF(A10='LIBRO MAYOR'!$A$68,'LIBRO MAYOR'!$A$78,IF('BALANCE DE PRUEBA'!A10='LIBRO MAYOR'!$D$68,'LIBRO MAYOR'!$D$78,IF('BALANCE DE PRUEBA'!A10='LIBRO MAYOR'!$G$68,'LIBRO MAYOR'!$G$78,IF('BALANCE DE PRUEBA'!A10='LIBRO MAYOR'!$A$79,'LIBRO MAYOR'!$A$89,IF('BALANCE DE PRUEBA'!A10='LIBRO MAYOR'!$D$79,'LIBRO MAYOR'!$D$89,IF('BALANCE DE PRUEBA'!A10='LIBRO MAYOR'!$G$79,'LIBRO MAYOR'!$G$89,IF('BALANCE DE PRUEBA'!A10='LIBRO MAYOR'!$A$90,'LIBRO MAYOR'!$A$100,IF('BALANCE DE PRUEBA'!A10='LIBRO MAYOR'!$D$90,'LIBRO MAYOR'!$D$100,IF('BALANCE DE PRUEBA'!A10='LIBRO MAYOR'!$G$90,'LIBRO MAYOR'!$G$100,0)))))))))))))))))))))))))))","v":0},{"$f":"IF(A10='LIBRO MAYOR'!$A$1,'LIBRO MAYOR'!$B$12,IF('BALANCE DE PRUEBA'!A10='LIBRO MAYOR'!$D$1,'LIBRO MAYOR'!$E$12,IF('BALANCE DE PRUEBA'!A10='LIBRO MAYOR'!$G$1,'LIBRO MAYOR'!$H$12,IF('BALANCE DE PRUEBA'!A10='LIBRO MAYOR'!$A$13,'LIBRO MAYOR'!$B$23,IF('BALANCE DE PRUEBA'!A10='LIBRO MAYOR'!$D$13,'LIBRO MAYOR'!$E$23,IF('BALANCE DE PRUEBA'!A10='LIBRO MAYOR'!$G$13,'LIBRO MAYOR'!$H$23,IF('BALANCE DE PRUEBA'!A10='LIBRO MAYOR'!$A$24,'LIBRO MAYOR'!$B$34,IF('BALANCE DE PRUEBA'!A10='LIBRO MAYOR'!$D$24,'LIBRO MAYOR'!$E$34,IF('BALANCE DE PRUEBA'!A10='LIBRO MAYOR'!$G$24,'LIBRO MAYOR'!$H$34,IF('BALANCE DE PRUEBA'!A10='LIBRO MAYOR'!$A$35,'LIBRO MAYOR'!$B$45,IF('BALANCE DE PRUEBA'!A10='LIBRO MAYOR'!$D$35,'LIBRO MAYOR'!$E$45,IF('BALANCE DE PRUEBA'!A10='LIBRO MAYOR'!$G$35,'LIBRO MAYOR'!$H$45,IF('BALANCE DE PRUEBA'!A10='LIBRO MAYOR'!$A$46,'LIBRO MAYOR'!$B$56,IF('BALANCE DE PRUEBA'!A10='LIBRO MAYOR'!$D$46,'LIBRO MAYOR'!$E$56,IF('BALANCE DE PRUEBA'!A10='LIBRO MAYOR'!$G$46,'LIBRO MAYOR'!$H$56,IF('BALANCE DE PRUEBA'!A10='LIBRO MAYOR'!$A$57,'LIBRO MAYOR'!$B$67,IF('BALANCE DE PRUEBA'!A10='LIBRO MAYOR'!$D$57,'LIBRO MAYOR'!$E$67,IF('BALANCE DE PRUEBA'!A10='LIBRO MAYOR'!$G$57,'LIBRO MAYOR'!$H$67,IF(A10='LIBRO MAYOR'!$A$68,'LIBRO MAYOR'!$B$78,IF('BALANCE DE PRUEBA'!A10='LIBRO MAYOR'!$D$68,'LIBRO MAYOR'!$E$78,IF('BALANCE DE PRUEBA'!A10='LIBRO MAYOR'!$G$68,'LIBRO MAYOR'!$H$78,IF('BALANCE DE PRUEBA'!A10='LIBRO MAYOR'!$A$79,'LIBRO MAYOR'!$B$89,IF('BALANCE DE PRUEBA'!A10='LIBRO MAYOR'!$D$79,'LIBRO MAYOR'!$E$89,IF('BALANCE DE PRUEBA'!A10='LIBRO MAYOR'!$G$79,'LIBRO MAYOR'!$H$89,IF('BALANCE DE PRUEBA'!A10='LIBRO MAYOR'!$A$90,'LIBRO MAYOR'!$B$100,IF('BALANCE DE PRUEBA'!A10='LIBRO MAYOR'!$D$90,'LIBRO MAYOR'!$E$100,IF('BALANCE DE PRUEBA'!A10='LIBRO MAYOR'!$G$90,'LIBRO MAYOR'!$H$100,0)))))))))))))))))))))))))))","v":313200},313200]
[2105,"BANCOS NACIONALES",{"$f":"IF(A11='LIBRO MAYOR'!$A$1,'LIBRO MAYOR'!$A$12,IF('BALANCE DE PRUEBA'!A11='LIBRO MAYOR'!$D$1,'LIBRO MAYOR'!$D$12,IF('BALANCE DE PRUEBA'!A11='LIBRO MAYOR'!$G$1,'LIBRO MAYOR'!$G$12,IF('BALANCE DE PRUEBA'!A11='LIBRO MAYOR'!$A$13,'LIBRO MAYOR'!$A$23,IF('BALANCE DE PRUEBA'!A11='LIBRO MAYOR'!$D$13,'LIBRO MAYOR'!$D$23,IF('BALANCE DE PRUEBA'!A11='LIBRO MAYOR'!$G$13,'LIBRO MAYOR'!$G$23,IF('BALANCE DE PRUEBA'!A11='LIBRO MAYOR'!$A$24,'LIBRO MAYOR'!$A$34,IF('BALANCE DE PRUEBA'!A11='LIBRO MAYOR'!$D$24,'LIBRO MAYOR'!$D$34,IF('BALANCE DE PRUEBA'!A11='LIBRO MAYOR'!$G$24,'LIBRO MAYOR'!$G$34,IF('BALANCE DE PRUEBA'!A11='LIBRO MAYOR'!$A$35,'LIBRO MAYOR'!$A$45,IF('BALANCE DE PRUEBA'!A11='LIBRO MAYOR'!$D$35,'LIBRO MAYOR'!$D$45,IF('BALANCE DE PRUEBA'!A11='LIBRO MAYOR'!$G$35,'LIBRO MAYOR'!$G$45,IF('BALANCE DE PRUEBA'!A11='LIBRO MAYOR'!$A$46,'LIBRO MAYOR'!$A$56,IF('BALANCE DE PRUEBA'!A11='LIBRO MAYOR'!$D$46,'LIBRO MAYOR'!$D$56,IF('BALANCE DE PRUEBA'!A11='LIBRO MAYOR'!$G$46,'LIBRO MAYOR'!$G$56,IF('BALANCE DE PRUEBA'!A11='LIBRO MAYOR'!$A$57,'LIBRO MAYOR'!$A$67,IF('BALANCE DE PRUEBA'!A11='LIBRO MAYOR'!$D$57,'LIBRO MAYOR'!$D$67,IF('BALANCE DE PRUEBA'!A11='LIBRO MAYOR'!$G$57,'LIBRO MAYOR'!$G$67,IF(A11='LIBRO MAYOR'!$A$68,'LIBRO MAYOR'!$A$78,IF('BALANCE DE PRUEBA'!A11='LIBRO MAYOR'!$D$68,'LIBRO MAYOR'!$D$78,IF('BALANCE DE PRUEBA'!A11='LIBRO MAYOR'!$G$68,'LIBRO MAYOR'!$G$78,IF('BALANCE DE PRUEBA'!A11='LIBRO MAYOR'!$A$79,'LIBRO MAYOR'!$A$89,IF('BALANCE DE PRUEBA'!A11='LIBRO MAYOR'!$D$79,'LIBRO MAYOR'!$D$89,IF('BALANCE DE PRUEBA'!A11='LIBRO MAYOR'!$G$79,'LIBRO MAYOR'!$G$89,IF('BALANCE DE PRUEBA'!A11='LIBRO MAYOR'!$A$90,'LIBRO MAYOR'!$A$100,IF('BALANCE DE PRUEBA'!A11='LIBRO MAYOR'!$D$90,'LIBRO MAYOR'!$D$100,IF('BALANCE DE PRUEBA'!A11='LIBRO MAYOR'!$G$90,'LIBRO MAYOR'!$G$100,0)))))))))))))))))))))))))))","v":0},{"$f":"IF(A11='LIBRO MAYOR'!$A$1,'LIBRO MAYOR'!$B$12,IF('BALANCE DE PRUEBA'!A11='LIBRO MAYOR'!$D$1,'LIBRO MAYOR'!$E$12,IF('BALANCE DE PRUEBA'!A11='LIBRO MAYOR'!$G$1,'LIBRO MAYOR'!$H$12,IF('BALANCE DE PRUEBA'!A11='LIBRO MAYOR'!$A$13,'LIBRO MAYOR'!$B$23,IF('BALANCE DE PRUEBA'!A11='LIBRO MAYOR'!$D$13,'LIBRO MAYOR'!$E$23,IF('BALANCE DE PRUEBA'!A11='LIBRO MAYOR'!$G$13,'LIBRO MAYOR'!$H$23,IF('BALANCE DE PRUEBA'!A11='LIBRO MAYOR'!$A$24,'LIBRO MAYOR'!$B$34,IF('BALANCE DE PRUEBA'!A11='LIBRO MAYOR'!$D$24,'LIBRO MAYOR'!$E$34,IF('BALANCE DE PRUEBA'!A11='LIBRO MAYOR'!$G$24,'LIBRO MAYOR'!$H$34,IF('BALANCE DE PRUEBA'!A11='LIBRO MAYOR'!$A$35,'LIBRO MAYOR'!$B$45,IF('BALANCE DE PRUEBA'!A11='LIBRO MAYOR'!$D$35,'LIBRO MAYOR'!$E$45,IF('BALANCE DE PRUEBA'!A11='LIBRO MAYOR'!$G$35,'LIBRO MAYOR'!$H$45,IF('BALANCE DE PRUEBA'!A11='LIBRO MAYOR'!$A$46,'LIBRO MAYOR'!$B$56,IF('BALANCE DE PRUEBA'!A11='LIBRO MAYOR'!$D$46,'LIBRO MAYOR'!$E$56,IF('BALANCE DE PRUEBA'!A11='LIBRO MAYOR'!$G$46,'LIBRO MAYOR'!$H$56,IF('BALANCE DE PRUEBA'!A11='LIBRO MAYOR'!$A$57,'LIBRO MAYOR'!$B$67,IF('BALANCE DE PRUEBA'!A11='LIBRO MAYOR'!$D$57,'LIBRO MAYOR'!$E$67,IF('BALANCE DE PRUEBA'!A11='LIBRO MAYOR'!$G$57,'LIBRO MAYOR'!$H$67,IF(A11='LIBRO MAYOR'!$A$68,'LIBRO MAYOR'!$B$78,IF('BALANCE DE PRUEBA'!A11='LIBRO MAYOR'!$D$68,'LIBRO MAYOR'!$E$78,IF('BALANCE DE PRUEBA'!A11='LIBRO MAYOR'!$G$68,'LIBRO MAYOR'!$H$78,IF('BALANCE DE PRUEBA'!A11='LIBRO MAYOR'!$A$79,'LIBRO MAYOR'!$B$89,IF('BALANCE DE PRUEBA'!A11='LIBRO MAYOR'!$D$79,'LIBRO MAYOR'!$E$89,IF('BALANCE DE PRUEBA'!A11='LIBRO MAYOR'!$G$79,'LIBRO MAYOR'!$H$89,IF('BALANCE DE PRUEBA'!A11='LIBRO MAYOR'!$A$90,'LIBRO MAYOR'!$B$100,IF('BALANCE DE PRUEBA'!A11='LIBRO MAYOR'!$D$90,'LIBRO MAYOR'!$E$100,IF('BALANCE DE PRUEBA'!A11='LIBRO MAYOR'!$G$90,'LIBRO MAYOR'!$H$100,0)))))))))))))))))))))))))))","v":3000000},3000000]
[1110,"BANCO",{"$f":"IF(A12='LIBRO MAYOR'!$A$1,'LIBRO MAYOR'!$A$12,IF('BALANCE DE PRUEBA'!A12='LIBRO MAYOR'!$D$1,'LIBRO MAYOR'!$D$12,IF('BALANCE DE PRUEBA'!A12='LIBRO MAYOR'!$G$1,'LIBRO MAYOR'!$G$12,IF('BALANCE DE PRUEBA'!A12='LIBRO MAYOR'!$A$13,'LIBRO MAYOR'!$A$23,IF('BALANCE DE PRUEBA'!A12='LIBRO MAYOR'!$D$13,'LIBRO MAYOR'!$D$23,IF('BALANCE DE PRUEBA'!A12='LIBRO MAYOR'!$G$13,'LIBRO MAYOR'!$G$23,IF('BALANCE DE PRUEBA'!A12='LIBRO MAYOR'!$A$24,'LIBRO MAYOR'!$A$34,IF('BALANCE DE PRUEBA'!A12='LIBRO MAYOR'!$D$24,'LIBRO MAYOR'!$D$34,IF('BALANCE DE PRUEBA'!A12='LIBRO MAYOR'!$G$24,'LIBRO MAYOR'!$G$34,IF('BALANCE DE PRUEBA'!A12='LIBRO MAYOR'!$A$35,'LIBRO MAYOR'!$A$45,IF('BALANCE DE PRUEBA'!A12='LIBRO MAYOR'!$D$35,'LIBRO MAYOR'!$D$45,IF('BALANCE DE PRUEBA'!A12='LIBRO MAYOR'!$G$35,'LIBRO MAYOR'!$G$45,IF('BALANCE DE PRUEBA'!A12='LIBRO MAYOR'!$A$46,'LIBRO MAYOR'!$A$56,IF('BALANCE DE PRUEBA'!A12='LIBRO MAYOR'!$D$46,'LIBRO MAYOR'!$D$56,IF('BALANCE DE PRUEBA'!A12='LIBRO MAYOR'!$G$46,'LIBRO MAYOR'!$G$56,IF('BALANCE DE PRUEBA'!A12='LIBRO MAYOR'!$A$57,'LIBRO MAYOR'!$A$67,IF('BALANCE DE PRUEBA'!A12='LIBRO MAYOR'!$D$57,'LIBRO MAYOR'!$D$67,IF('BALANCE DE PRUEBA'!A12='LIBRO MAYOR'!$G$57,'LIBRO MAYOR'!$G$67,IF(A12='LIBRO MAYOR'!$A$68,'LIBRO MAYOR'!$A$78,IF('BALANCE DE PRUEBA'!A12='LIBRO MAYOR'!$D$68,'LIBRO MAYOR'!$D$78,IF('BALANCE DE PRUEBA'!A12='LIBRO MAYOR'!$G$68,'LIBRO MAYOR'!$G$78,IF('BALANCE DE PRUEBA'!A12='LIBRO MAYOR'!$A$79,'LIBRO MAYOR'!$A$89,IF('BALANCE DE PRUEBA'!A12='LIBRO MAYOR'!$D$79,'LIBRO MAYOR'!$D$89,IF('BALANCE DE PRUEBA'!A12='LIBRO MAYOR'!$G$79,'LIBRO MAYOR'!$G$89,IF('BALANCE DE PRUEBA'!A12='LIBRO MAYOR'!$A$90,'LIBRO MAYOR'!$A$100,IF('BALANCE DE PRUEBA'!A12='LIBRO MAYOR'!$D$90,'LIBRO MAYOR'!$D$100,IF('BALANCE DE PRUEBA'!A12='LIBRO MAYOR'!$G$90,'LIBRO MAYOR'!$G$100,0)))))))))))))))))))))))))))","v":7204450},{"$f":"IF(A12='LIBRO MAYOR'!$A$1,'LIBRO MAYOR'!$B$12,IF('BALANCE DE PRUEBA'!A12='LIBRO MAYOR'!$D$1,'LIBRO MAYOR'!$E$12,IF('BALANCE DE PRUEBA'!A12='LIBRO MAYOR'!$G$1,'LIBRO MAYOR'!$H$12,IF('BALANCE DE PRUEBA'!A12='LIBRO MAYOR'!$A$13,'LIBRO MAYOR'!$B$23,IF('BALANCE DE PRUEBA'!A12='LIBRO MAYOR'!$D$13,'LIBRO MAYOR'!$E$23,IF('BALANCE DE PRUEBA'!A12='LIBRO MAYOR'!$G$13,'LIBRO MAYOR'!$H$23,IF('BALANCE DE PRUEBA'!A12='LIBRO MAYOR'!$A$24,'LIBRO MAYOR'!$B$34,IF('BALANCE DE PRUEBA'!A12='LIBRO MAYOR'!$D$24,'LIBRO MAYOR'!$E$34,IF('BALANCE DE PRUEBA'!A12='LIBRO MAYOR'!$G$24,'LIBRO MAYOR'!$H$34,IF('BALANCE DE PRUEBA'!A12='LIBRO MAYOR'!$A$35,'LIBRO MAYOR'!$B$45,IF('BALANCE DE PRUEBA'!A12='LIBRO MAYOR'!$D$35,'LIBRO MAYOR'!$E$45,IF('BALANCE DE PRUEBA'!A12='LIBRO MAYOR'!$G$35,'LIBRO MAYOR'!$H$45,IF('BALANCE DE PRUEBA'!A12='LIBRO MAYOR'!$A$46,'LIBRO MAYOR'!$B$56,IF('BALANCE DE PRUEBA'!A12='LIBRO MAYOR'!$D$46,'LIBRO MAYOR'!$E$56,IF('BALANCE DE PRUEBA'!A12='LIBRO MAYOR'!$G$46,'LIBRO MAYOR'!$H$56,IF('BALANCE DE PRUEBA'!A12='LIBRO MAYOR'!$A$57,'LIBRO MAYOR'!$B$67,IF('BALANCE DE PRUEBA'!A12='LIBRO MAYOR'!$D$57,'LIBRO MAYOR'!$E$67,IF('BALANCE DE PRUEBA'!A12='LIBRO MAYOR'!$G$57,'LIBRO MAYOR'!$H$67,IF(A12='LIBRO MAYOR'!$A$68,'LIBRO MAYOR'!$B$78,IF('BALANCE DE PRUEBA'!A12='LIBRO MAYOR'!$D$68,'LIBRO MAYOR'!$E$78,IF('BALANCE DE PRUEBA'!A12='LIBRO MAYOR'!$G$68,'LIBRO MAYOR'!$H$78,IF('BALANCE DE PRUEBA'!A12='LIBRO MAYOR'!$A$79,'LIBRO MAYOR'!$B$89,IF('BALANCE DE PRUEBA'!A12='LIBRO MAYOR'!$D$79,'LIBRO MAYOR'!$E$89,IF('BALANCE DE PRUEBA'!A12='LIBRO MAYOR'!$G$79,'LIBRO MAYOR'!$H$89,IF('BALANCE DE PRUEBA'!A12='LIBRO MAYOR'!$A$90,'LIBRO MAYOR'!$B$100,IF('BALANCE DE PRUEBA'!A12='LIBRO MAYOR'!$D$90,'LIBRO MAYOR'!$E$100,IF('BALANCE DE PRUEBA'!A12='LIBRO MAYOR'!$G$90,'LIBRO MAYOR'!$H$100,0)))))))))))))))))))))))))))","v":0},7204450]
[1524,"EQUIPOS DE OFICINA",{"$f":"IF(A13='LIBRO MAYOR'!$A$1,'LIBRO MAYOR'!$A$12,IF('BALANCE DE PRUEBA'!A13='LIBRO MAYOR'!$D$1,'LIBRO MAYOR'!$D$12,IF('BALANCE DE PRUEBA'!A13='LIBRO MAYOR'!$G$1,'LIBRO MAYOR'!$G$12,IF('BALANCE DE PRUEBA'!A13='LIBRO MAYOR'!$A$13,'LIBRO MAYOR'!$A$23,IF('BALANCE DE PRUEBA'!A13='LIBRO MAYOR'!$D$13,'LIBRO MAYOR'!$D$23,IF('BALANCE DE PRUEBA'!A13='LIBRO MAYOR'!$G$13,'LIBRO MAYOR'!$G$23,IF('BALANCE DE PRUEBA'!A13='LIBRO MAYOR'!$A$24,'LIBRO MAYOR'!$A$34,IF('BALANCE DE PRUEBA'!A13='LIBRO MAYOR'!$D$24,'LIBRO MAYOR'!$D$34,IF('BALANCE DE PRUEBA'!A13='LIBRO MAYOR'!$G$24,'LIBRO MAYOR'!$G$34,IF('BALANCE DE PRUEBA'!A13='LIBRO MAYOR'!$A$35,'LIBRO MAYOR'!$A$45,IF('BALANCE DE PRUEBA'!A13='LIBRO MAYOR'!$D$35,'LIBRO MAYOR'!$D$45,IF('BALANCE DE PRUEBA'!A13='LIBRO MAYOR'!$G$35,'LIBRO MAYOR'!$G$45,IF('BALANCE DE PRUEBA'!A13='LIBRO MAYOR'!$A$46,'LIBRO MAYOR'!$A$56,IF('BALANCE DE PRUEBA'!A13='LIBRO MAYOR'!$D$46,'LIBRO MAYOR'!$D$56,IF('BALANCE DE PRUEBA'!A13='LIBRO MAYOR'!$G$46,'LIBRO MAYOR'!$G$56,IF('BALANCE DE PRUEBA'!A13='LIBRO MAYOR'!$A$57,'LIBRO MAYOR'!$A$67,IF('BALANCE DE PRUEBA'!A13='LIBRO MAYOR'!$D$57,'LIBRO MAYOR'!$D$67,IF('BALANCE DE PRUEBA'!A13='LIBRO MAYOR'!$G$57,'LIBRO MAYOR'!$G$67,IF(A13='LIBRO MAYOR'!$A$68,'LIBRO MAYOR'!$A$78,IF('BALANCE DE PRUEBA'!A13='LIBRO MAYOR'!$D$68,'LIBRO MAYOR'!$D$78,IF('BALANCE DE PRUEBA'!A13='LIBRO MAYOR'!$G$68,'LIBRO MAYOR'!$G$78,IF('BALANCE DE PRUEBA'!A13='LIBRO MAYOR'!$A$79,'LIBRO MAYOR'!$A$89,IF('BALANCE DE PRUEBA'!A13='LIBRO MAYOR'!$D$79,'LIBRO MAYOR'!$D$89,IF('BALANCE DE PRUEBA'!A13='LIBRO MAYOR'!$G$79,'LIBRO MAYOR'!$G$89,IF('BALANCE DE PRUEBA'!A13='LIBRO MAYOR'!$A$90,'LIBRO MAYOR'!$A$100,IF('BALANCE DE PRUEBA'!A13='LIBRO MAYOR'!$D$90,'LIBRO MAYOR'!$D$100,IF('BALANCE DE PRUEBA'!A13='LIBRO MAYOR'!$G$90,'LIBRO MAYOR'!$G$100,0)))))))))))))))))))))))))))","v":2000000},{"$f":"IF(A13='LIBRO MAYOR'!$A$1,'LIBRO MAYOR'!$B$12,IF('BALANCE DE PRUEBA'!A13='LIBRO MAYOR'!$D$1,'LIBRO MAYOR'!$E$12,IF('BALANCE DE PRUEBA'!A13='LIBRO MAYOR'!$G$1,'LIBRO MAYOR'!$H$12,IF('BALANCE DE PRUEBA'!A13='LIBRO MAYOR'!$A$13,'LIBRO MAYOR'!$B$23,IF('BALANCE DE PRUEBA'!A13='LIBRO MAYOR'!$D$13,'LIBRO MAYOR'!$E$23,IF('BALANCE DE PRUEBA'!A13='LIBRO MAYOR'!$G$13,'LIBRO MAYOR'!$H$23,IF('BALANCE DE PRUEBA'!A13='LIBRO MAYOR'!$A$24,'LIBRO MAYOR'!$B$34,IF('BALANCE DE PRUEBA'!A13='LIBRO MAYOR'!$D$24,'LIBRO MAYOR'!$E$34,IF('BALANCE DE PRUEBA'!A13='LIBRO MAYOR'!$G$24,'LIBRO MAYOR'!$H$34,IF('BALANCE DE PRUEBA'!A13='LIBRO MAYOR'!$A$35,'LIBRO MAYOR'!$B$45,IF('BALANCE DE PRUEBA'!A13='LIBRO MAYOR'!$D$35,'LIBRO MAYOR'!$E$45,IF('BALANCE DE PRUEBA'!A13='LIBRO MAYOR'!$G$35,'LIBRO MAYOR'!$H$45,IF('BALANCE DE PRUEBA'!A13='LIBRO MAYOR'!$A$46,'LIBRO MAYOR'!$B$56,IF('BALANCE DE PRUEBA'!A13='LIBRO MAYOR'!$D$46,'LIBRO MAYOR'!$E$56,IF('BALANCE DE PRUEBA'!A13='LIBRO MAYOR'!$G$46,'LIBRO MAYOR'!$H$56,IF('BALANCE DE PRUEBA'!A13='LIBRO MAYOR'!$A$57,'LIBRO MAYOR'!$B$67,IF('BALANCE DE PRUEBA'!A13='LIBRO MAYOR'!$D$57,'LIBRO MAYOR'!$E$67,IF('BALANCE DE PRUEBA'!A13='LIBRO MAYOR'!$G$57,'LIBRO MAYOR'!$H$67,IF(A13='LIBRO MAYOR'!$A$68,'LIBRO MAYOR'!$B$78,IF('BALANCE DE PRUEBA'!A13='LIBRO MAYOR'!$D$68,'LIBRO MAYOR'!$E$78,IF('BALANCE DE PRUEBA'!A13='LIBRO MAYOR'!$G$68,'LIBRO MAYOR'!$H$78,IF('BALANCE DE PRUEBA'!A13='LIBRO MAYOR'!$A$79,'LIBRO MAYOR'!$B$89,IF('BALANCE DE PRUEBA'!A13='LIBRO MAYOR'!$D$79,'LIBRO MAYOR'!$E$89,IF('BALANCE DE PRUEBA'!A13='LIBRO MAYOR'!$G$79,'LIBRO MAYOR'!$H$89,IF('BALANCE DE PRUEBA'!A13='LIBRO MAYOR'!$A$90,'LIBRO MAYOR'!$B$100,IF('BALANCE DE PRUEBA'!A13='LIBRO MAYOR'!$D$90,'LIBRO MAYOR'!$E$100,IF('BALANCE DE PRUEBA'!A13='LIBRO MAYOR'!$G$90,'LIBRO MAYOR'!$H$100,0)))))))))))))))))))))))))))","v":0},2000000]
[2380,"ACREEDORES VARIOS",{"$f":"IF(A14='LIBRO MAYOR'!$A$1,'LIBRO MAYOR'!$A$12,IF('BALANCE DE PRUEBA'!A14='LIBRO MAYOR'!$D$1,'LIBRO MAYOR'!$D$12,IF('BALANCE DE PRUEBA'!A14='LIBRO MAYOR'!$G$1,'LIBRO MAYOR'!$G$12,IF('BALANCE DE PRUEBA'!A14='LIBRO MAYOR'!$A$13,'LIBRO MAYOR'!$A$23,IF('BALANCE DE PRUEBA'!A14='LIBRO MAYOR'!$D$13,'LIBRO MAYOR'!$D$23,IF('BALANCE DE PRUEBA'!A14='LIBRO MAYOR'!$G$13,'LIBRO MAYOR'!$G$23,IF('BALANCE DE PRUEBA'!A14='LIBRO MAYOR'!$A$24,'LIBRO MAYOR'!$A$34,IF('BALANCE DE PRUEBA'!A14='LIBRO MAYOR'!$D$24,'LIBRO MAYOR'!$D$34,IF('BALANCE DE PRUEBA'!A14='LIBRO MAYOR'!$G$24,'LIBRO MAYOR'!$G$34,IF('BALANCE DE PRUEBA'!A14='LIBRO MAYOR'!$A$35,'LIBRO MAYOR'!$A$45,IF('BALANCE DE PRUEBA'!A14='LIBRO MAYOR'!$D$35,'LIBRO MAYOR'!$D$45,IF('BALANCE DE PRUEBA'!A14='LIBRO MAYOR'!$G$35,'LIBRO MAYOR'!$G$45,IF('BALANCE DE PRUEBA'!A14='LIBRO MAYOR'!$A$46,'LIBRO MAYOR'!$A$56,IF('BALANCE DE PRUEBA'!A14='LIBRO MAYOR'!$D$46,'LIBRO MAYOR'!$D$56,IF('BALANCE DE PRUEBA'!A14='LIBRO MAYOR'!$G$46,'LIBRO MAYOR'!$G$56,IF('BALANCE DE PRUEBA'!A14='LIBRO MAYOR'!$A$57,'LIBRO MAYOR'!$A$67,IF('BALANCE DE PRUEBA'!A14='LIBRO MAYOR'!$D$57,'LIBRO MAYOR'!$D$67,IF('BALANCE DE PRUEBA'!A14='LIBRO MAYOR'!$G$57,'LIBRO MAYOR'!$G$67,IF(A14='LIBRO MAYOR'!$A$68,'LIBRO MAYOR'!$A$78,IF('BALANCE DE PRUEBA'!A14='LIBRO MAYOR'!$D$68,'LIBRO MAYOR'!$D$78,IF('BALANCE DE PRUEBA'!A14='LIBRO MAYOR'!$G$68,'LIBRO MAYOR'!$G$78,IF('BALANCE DE PRUEBA'!A14='LIBRO MAYOR'!$A$79,'LIBRO MAYOR'!$A$89,IF('BALANCE DE PRUEBA'!A14='LIBRO MAYOR'!$D$79,'LIBRO MAYOR'!$D$89,IF('BALANCE DE PRUEBA'!A14='LIBRO MAYOR'!$G$79,'LIBRO MAYOR'!$G$89,IF('BALANCE DE PRUEBA'!A14='LIBRO MAYOR'!$A$90,'LIBRO MAYOR'!$A$100,IF('BALANCE DE PRUEBA'!A14='LIBRO MAYOR'!$D$90,'LIBRO MAYOR'!$D$100,IF('BALANCE DE PRUEBA'!A14='LIBRO MAYOR'!$G$90,'LIBRO MAYOR'!$G$100,0)))))))))))))))))))))))))))","v":0},{"$f":"IF(A14='LIBRO MAYOR'!$A$1,'LIBRO MAYOR'!$B$12,IF('BALANCE DE PRUEBA'!A14='LIBRO MAYOR'!$D$1,'LIBRO MAYOR'!$E$12,IF('BALANCE DE PRUEBA'!A14='LIBRO MAYOR'!$G$1,'LIBRO MAYOR'!$H$12,IF('BALANCE DE PRUEBA'!A14='LIBRO MAYOR'!$A$13,'LIBRO MAYOR'!$B$23,IF('BALANCE DE PRUEBA'!A14='LIBRO MAYOR'!$D$13,'LIBRO MAYOR'!$E$23,IF('BALANCE DE PRUEBA'!A14='LIBRO MAYOR'!$G$13,'LIBRO MAYOR'!$H$23,IF('BALANCE DE PRUEBA'!A14='LIBRO MAYOR'!$A$24,'LIBRO MAYOR'!$B$34,IF('BALANCE DE PRUEBA'!A14='LIBRO MAYOR'!$D$24,'LIBRO MAYOR'!$E$34,IF('BALANCE DE PRUEBA'!A14='LIBRO MAYOR'!$G$24,'LIBRO MAYOR'!$H$34,IF('BALANCE DE PRUEBA'!A14='LIBRO MAYOR'!$A$35,'LIBRO MAYOR'!$B$45,IF('BALANCE DE PRUEBA'!A14='LIBRO MAYOR'!$D$35,'LIBRO MAYOR'!$E$45,IF('BALANCE DE PRUEBA'!A14='LIBRO MAYOR'!$G$35,'LIBRO MAYOR'!$H$45,IF('BALANCE DE PRUEBA'!A14='LIBRO MAYOR'!$A$46,'LIBRO MAYOR'!$B$56,IF('BALANCE DE PRUEBA'!A14='LIBRO MAYOR'!$D$46,'LIBRO MAYOR'!$E$56,IF('BALANCE DE PRUEBA'!A14='LIBRO MAYOR'!$G$46,'LIBRO MAYOR'!$H$56,IF('BALANCE DE PRUEBA'!A14='LIBRO MAYOR'!$A$57,'LIBRO MAYOR'!$B$67,IF('BALANCE DE PRUEBA'!A14='LIBRO MAYOR'!$D$57,'LIBRO MAYOR'!$E$67,IF('BALANCE DE PRUEBA'!A14='LIBRO MAYOR'!$G$57,'LIBRO MAYOR'!$H$67,IF(A14='LIBRO MAYOR'!$A$68,'LIBRO MAYOR'!$B$78,IF('BALANCE DE PRUEBA'!A14='LIBRO MAYOR'!$D$68,'LIBRO MAYOR'!$E$78,IF('BALANCE DE PRUEBA'!A14='LIBRO MAYOR'!$G$68,'LIBRO MAYOR'!$H$78,IF('BALANCE DE PRUEBA'!A14='LIBRO MAYOR'!$A$79,'LIBRO MAYOR'!$B$89,IF('BALANCE DE PRUEBA'!A14='LIBRO MAYOR'!$D$79,'LIBRO MAYOR'!$E$89,IF('BALANCE DE PRUEBA'!A14='LIBRO MAYOR'!$G$79,'LIBRO MAYOR'!$H$89,IF('BALANCE DE PRUEBA'!A14='LIBRO MAYOR'!$A$90,'LIBRO MAYOR'!$B$100,IF('BALANCE DE PRUEBA'!A14='LIBRO MAYOR'!$D$90,'LIBRO MAYOR'!$E$100,IF('BALANCE DE PRUEBA'!A14='LIBRO MAYOR'!$G$90,'LIBRO MAYOR'!$H$100,0)))))))))))))))))))))))))))","v":2000000},2000000]
[null,"",{"$f":"IF(A15='LIBRO MAYOR'!$A$1,'LIBRO MAYOR'!$A$12,IF('BALANCE DE PRUEBA'!A15='LIBRO MAYOR'!$D$1,'LIBRO MAYOR'!$D$12,IF('BALANCE DE PRUEBA'!A15='LIBRO MAYOR'!$G$1,'LIBRO MAYOR'!$G$12,IF('BALANCE DE PRUEBA'!A15='LIBRO MAYOR'!$A$13,'LIBRO MAYOR'!$A$23,IF('BALANCE DE PRUEBA'!A15='LIBRO MAYOR'!$D$13,'LIBRO MAYOR'!$D$23,IF('BALANCE DE PRUEBA'!A15='LIBRO MAYOR'!$G$13,'LIBRO MAYOR'!$G$23,IF('BALANCE DE PRUEBA'!A15='LIBRO MAYOR'!$A$24,'LIBRO MAYOR'!$A$34,IF('BALANCE DE PRUEBA'!A15='LIBRO MAYOR'!$D$24,'LIBRO MAYOR'!$D$34,IF('BALANCE DE PRUEBA'!A15='LIBRO MAYOR'!$G$24,'LIBRO MAYOR'!$G$34,IF('BALANCE DE PRUEBA'!A15='LIBRO MAYOR'!$A$35,'LIBRO MAYOR'!$A$45,IF('BALANCE DE PRUEBA'!A15='LIBRO MAYOR'!$D$35,'LIBRO MAYOR'!$D$45,IF('BALANCE DE PRUEBA'!A15='LIBRO MAYOR'!$G$35,'LIBRO MAYOR'!$G$45,IF('BALANCE DE PRUEBA'!A15='LIBRO MAYOR'!$A$46,'LIBRO MAYOR'!$A$56,IF('BALANCE DE PRUEBA'!A15='LIBRO MAYOR'!$D$46,'LIBRO MAYOR'!$D$56,IF('BALANCE DE PRUEBA'!A15='LIBRO MAYOR'!$G$46,'LIBRO MAYOR'!$G$56,IF('BALANCE DE PRUEBA'!A15='LIBRO MAYOR'!$A$57,'LIBRO MAYOR'!$A$67,IF('BALANCE DE PRUEBA'!A15='LIBRO MAYOR'!$D$57,'LIBRO MAYOR'!$D$67,IF('BALANCE DE PRUEBA'!A15='LIBRO MAYOR'!$G$57,'LIBRO MAYOR'!$G$67,IF(A15='LIBRO MAYOR'!$A$68,'LIBRO MAYOR'!$A$78,IF('BALANCE DE PRUEBA'!A15='LIBRO MAYOR'!$D$68,'LIBRO MAYOR'!$D$78,IF('BALANCE DE PRUEBA'!A15='LIBRO MAYOR'!$G$68,'LIBRO MAYOR'!$G$78,IF('BALANCE DE PRUEBA'!A15='LIBRO MAYOR'!$A$79,'LIBRO MAYOR'!$A$89,IF('BALANCE DE PRUEBA'!A15='LIBRO MAYOR'!$D$79,'LIBRO MAYOR'!$D$89,IF('BALANCE DE PRUEBA'!A15='LIBRO MAYOR'!$G$79,'LIBRO MAYOR'!$G$89,IF('BALANCE DE PRUEBA'!A15='LIBRO MAYOR'!$A$90,'LIBRO MAYOR'!$A$100,IF('BALANCE DE PRUEBA'!A15='LIBRO MAYOR'!$D$90,'LIBRO MAYOR'!$D$100,IF('BALANCE DE PRUEBA'!A15='LIBRO MAYOR'!$G$90,'LIBRO MAYOR'!$G$100,0)))))))))))))))))))))))))))","v":0},{"$f":"IF(A15='LIBRO MAYOR'!$A$1,'LIBRO MAYOR'!$B$12,IF('BALANCE DE PRUEBA'!A15='LIBRO MAYOR'!$D$1,'LIBRO MAYOR'!$E$12,IF('BALANCE DE PRUEBA'!A15='LIBRO MAYOR'!$G$1,'LIBRO MAYOR'!$H$12,IF('BALANCE DE PRUEBA'!A15='LIBRO MAYOR'!$A$13,'LIBRO MAYOR'!$B$23,IF('BALANCE DE PRUEBA'!A15='LIBRO MAYOR'!$D$13,'LIBRO MAYOR'!$E$23,IF('BALANCE DE PRUEBA'!A15='LIBRO MAYOR'!$G$13,'LIBRO MAYOR'!$H$23,IF('BALANCE DE PRUEBA'!A15='LIBRO MAYOR'!$A$24,'LIBRO MAYOR'!$B$34,IF('BALANCE DE PRUEBA'!A15='LIBRO MAYOR'!$D$24,'LIBRO MAYOR'!$E$34,IF('BALANCE DE PRUEBA'!A15='LIBRO MAYOR'!$G$24,'LIBRO MAYOR'!$H$34,IF('BALANCE DE PRUEBA'!A15='LIBRO MAYOR'!$A$35,'LIBRO MAYOR'!$B$45,IF('BALANCE DE PRUEBA'!A15='LIBRO MAYOR'!$D$35,'LIBRO MAYOR'!$E$45,IF('BALANCE DE PRUEBA'!A15='LIBRO MAYOR'!$G$35,'LIBRO MAYOR'!$H$45,IF('BALANCE DE PRUEBA'!A15='LIBRO MAYOR'!$A$46,'LIBRO MAYOR'!$B$56,IF('BALANCE DE PRUEBA'!A15='LIBRO MAYOR'!$D$46,'LIBRO MAYOR'!$E$56,IF('BALANCE DE PRUEBA'!A15='LIBRO MAYOR'!$G$46,'LIBRO MAYOR'!$H$56,IF('BALANCE DE PRUEBA'!A15='LIBRO MAYOR'!$A$57,'LIBRO MAYOR'!$B$67,IF('BALANCE DE PRUEBA'!A15='LIBRO MAYOR'!$D$57,'LIBRO MAYOR'!$E$67,IF('BALANCE DE PRUEBA'!A15='LIBRO MAYOR'!$G$57,'LIBRO MAYOR'!$H$67,IF(A15='LIBRO MAYOR'!$A$68,'LIBRO MAYOR'!$B$78,IF('BALANCE DE PRUEBA'!A15='LIBRO MAYOR'!$D$68,'LIBRO MAYOR'!$E$78,IF('BALANCE DE PRUEBA'!A15='LIBRO MAYOR'!$G$68,'LIBRO MAYOR'!$H$78,IF('BALANCE DE PRUEBA'!A15='LIBRO MAYOR'!$A$79,'LIBRO MAYOR'!$B$89,IF('BALANCE DE PRUEBA'!A15='LIBRO MAYOR'!$D$79,'LIBRO MAYOR'!$E$89,IF('BALANCE DE PRUEBA'!A15='LIBRO MAYOR'!$G$79,'LIBRO MAYOR'!$H$89,IF('BALANCE DE PRUEBA'!A15='LIBRO MAYOR'!$A$90,'LIBRO MAYOR'!$B$100,IF('BALANCE DE PRUEBA'!A15='LIBRO MAYOR'!$D$90,'LIBRO MAYOR'!$E$100,IF('BALANCE DE PRUEBA'!A15='LIBRO MAYOR'!$G$90,'LIBRO MAYOR'!$H$100,0)))))))))))))))))))))))))))","v":0},0]
[null,"",{"$f":"IF(A16='LIBRO MAYOR'!$A$1,'LIBRO MAYOR'!$A$12,IF('BALANCE DE PRUEBA'!A16='LIBRO MAYOR'!$D$1,'LIBRO MAYOR'!$D$12,IF('BALANCE DE PRUEBA'!A16='LIBRO MAYOR'!$G$1,'LIBRO MAYOR'!$G$12,IF('BALANCE DE PRUEBA'!A16='LIBRO MAYOR'!$A$13,'LIBRO MAYOR'!$A$23,IF('BALANCE DE PRUEBA'!A16='LIBRO MAYOR'!$D$13,'LIBRO MAYOR'!$D$23,IF('BALANCE DE PRUEBA'!A16='LIBRO MAYOR'!$G$13,'LIBRO MAYOR'!$G$23,IF('BALANCE DE PRUEBA'!A16='LIBRO MAYOR'!$A$24,'LIBRO MAYOR'!$A$34,IF('BALANCE DE PRUEBA'!A16='LIBRO MAYOR'!$D$24,'LIBRO MAYOR'!$D$34,IF('BALANCE DE PRUEBA'!A16='LIBRO MAYOR'!$G$24,'LIBRO MAYOR'!$G$34,IF('BALANCE DE PRUEBA'!A16='LIBRO MAYOR'!$A$35,'LIBRO MAYOR'!$A$45,IF('BALANCE DE PRUEBA'!A16='LIBRO MAYOR'!$D$35,'LIBRO MAYOR'!$D$45,IF('BALANCE DE PRUEBA'!A16='LIBRO MAYOR'!$G$35,'LIBRO MAYOR'!$G$45,IF('BALANCE DE PRUEBA'!A16='LIBRO MAYOR'!$A$46,'LIBRO MAYOR'!$A$56,IF('BALANCE DE PRUEBA'!A16='LIBRO MAYOR'!$D$46,'LIBRO MAYOR'!$D$56,IF('BALANCE DE PRUEBA'!A16='LIBRO MAYOR'!$G$46,'LIBRO MAYOR'!$G$56,IF('BALANCE DE PRUEBA'!A16='LIBRO MAYOR'!$A$57,'LIBRO MAYOR'!$A$67,IF('BALANCE DE PRUEBA'!A16='LIBRO MAYOR'!$D$57,'LIBRO MAYOR'!$D$67,IF('BALANCE DE PRUEBA'!A16='LIBRO MAYOR'!$G$57,'LIBRO MAYOR'!$G$67,IF(A16='LIBRO MAYOR'!$A$68,'LIBRO MAYOR'!$A$78,IF('BALANCE DE PRUEBA'!A16='LIBRO MAYOR'!$D$68,'LIBRO MAYOR'!$D$78,IF('BALANCE DE PRUEBA'!A16='LIBRO MAYOR'!$G$68,'LIBRO MAYOR'!$G$78,IF('BALANCE DE PRUEBA'!A16='LIBRO MAYOR'!$A$79,'LIBRO MAYOR'!$A$89,IF('BALANCE DE PRUEBA'!A16='LIBRO MAYOR'!$D$79,'LIBRO MAYOR'!$D$89,IF('BALANCE DE PRUEBA'!A16='LIBRO MAYOR'!$G$79,'LIBRO MAYOR'!$G$89,IF('BALANCE DE PRUEBA'!A16='LIBRO MAYOR'!$A$90,'LIBRO MAYOR'!$A$100,IF('BALANCE DE PRUEBA'!A16='LIBRO MAYOR'!$D$90,'LIBRO MAYOR'!$D$100,IF('BALANCE DE PRUEBA'!A16='LIBRO MAYOR'!$G$90,'LIBRO MAYOR'!$G$100,0)))))))))))))))))))))))))))","v":0},{"$f":"IF(A16='LIBRO MAYOR'!$A$1,'LIBRO MAYOR'!$B$12,IF('BALANCE DE PRUEBA'!A16='LIBRO MAYOR'!$D$1,'LIBRO MAYOR'!$E$12,IF('BALANCE DE PRUEBA'!A16='LIBRO MAYOR'!$G$1,'LIBRO MAYOR'!$H$12,IF('BALANCE DE PRUEBA'!A16='LIBRO MAYOR'!$A$13,'LIBRO MAYOR'!$B$23,IF('BALANCE DE PRUEBA'!A16='LIBRO MAYOR'!$D$13,'LIBRO MAYOR'!$E$23,IF('BALANCE DE PRUEBA'!A16='LIBRO MAYOR'!$G$13,'LIBRO MAYOR'!$H$23,IF('BALANCE DE PRUEBA'!A16='LIBRO MAYOR'!$A$24,'LIBRO MAYOR'!$B$34,IF('BALANCE DE PRUEBA'!A16='LIBRO MAYOR'!$D$24,'LIBRO MAYOR'!$E$34,IF('BALANCE DE PRUEBA'!A16='LIBRO MAYOR'!$G$24,'LIBRO MAYOR'!$H$34,IF('BALANCE DE PRUEBA'!A16='LIBRO MAYOR'!$A$35,'LIBRO MAYOR'!$B$45,IF('BALANCE DE PRUEBA'!A16='LIBRO MAYOR'!$D$35,'LIBRO MAYOR'!$E$45,IF('BALANCE DE PRUEBA'!A16='LIBRO MAYOR'!$G$35,'LIBRO MAYOR'!$H$45,IF('BALANCE DE PRUEBA'!A16='LIBRO MAYOR'!$A$46,'LIBRO MAYOR'!$B$56,IF('BALANCE DE PRUEBA'!A16='LIBRO MAYOR'!$D$46,'LIBRO MAYOR'!$E$56,IF('BALANCE DE PRUEBA'!A16='LIBRO MAYOR'!$G$46,'LIBRO MAYOR'!$H$56,IF('BALANCE DE PRUEBA'!A16='LIBRO MAYOR'!$A$57,'LIBRO MAYOR'!$B$67,IF('BALANCE DE PRUEBA'!A16='LIBRO MAYOR'!$D$57,'LIBRO MAYOR'!$E$67,IF('BALANCE DE PRUEBA'!A16='LIBRO MAYOR'!$G$57,'LIBRO MAYOR'!$H$67,IF(A16='LIBRO MAYOR'!$A$68,'LIBRO MAYOR'!$B$78,IF('BALANCE DE PRUEBA'!A16='LIBRO MAYOR'!$D$68,'LIBRO MAYOR'!$E$78,IF('BALANCE DE PRUEBA'!A16='LIBRO MAYOR'!$G$68,'LIBRO MAYOR'!$H$78,IF('BALANCE DE PRUEBA'!A16='LIBRO MAYOR'!$A$79,'LIBRO MAYOR'!$B$89,IF('BALANCE DE PRUEBA'!A16='LIBRO MAYOR'!$D$79,'LIBRO MAYOR'!$E$89,IF('BALANCE DE PRUEBA'!A16='LIBRO MAYOR'!$G$79,'LIBRO MAYOR'!$H$89,IF('BALANCE DE PRUEBA'!A16='LIBRO MAYOR'!$A$90,'LIBRO MAYOR'!$B$100,IF('BALANCE DE PRUEBA'!A16='LIBRO MAYOR'!$D$90,'LIBRO MAYOR'!$E$100,IF('BALANCE DE PRUEBA'!A16='LIBRO MAYOR'!$G$90,'LIBRO MAYOR'!$H$100,0)))))))))))))))))))))))))))","v":0},0]
[null,"",{"$f":"IF(A17='LIBRO MAYOR'!$A$1,'LIBRO MAYOR'!$A$12,IF('BALANCE DE PRUEBA'!A17='LIBRO MAYOR'!$D$1,'LIBRO MAYOR'!$D$12,IF('BALANCE DE PRUEBA'!A17='LIBRO MAYOR'!$G$1,'LIBRO MAYOR'!$G$12,IF('BALANCE DE PRUEBA'!A17='LIBRO MAYOR'!$A$13,'LIBRO MAYOR'!$A$23,IF('BALANCE DE PRUEBA'!A17='LIBRO MAYOR'!$D$13,'LIBRO MAYOR'!$D$23,IF('BALANCE DE PRUEBA'!A17='LIBRO MAYOR'!$G$13,'LIBRO MAYOR'!$G$23,IF('BALANCE DE PRUEBA'!A17='LIBRO MAYOR'!$A$24,'LIBRO MAYOR'!$A$34,IF('BALANCE DE PRUEBA'!A17='LIBRO MAYOR'!$D$24,'LIBRO MAYOR'!$D$34,IF('BALANCE DE PRUEBA'!A17='LIBRO MAYOR'!$G$24,'LIBRO MAYOR'!$G$34,IF('BALANCE DE PRUEBA'!A17='LIBRO MAYOR'!$A$35,'LIBRO MAYOR'!$A$45,IF('BALANCE DE PRUEBA'!A17='LIBRO MAYOR'!$D$35,'LIBRO MAYOR'!$D$45,IF('BALANCE DE PRUEBA'!A17='LIBRO MAYOR'!$G$35,'LIBRO MAYOR'!$G$45,IF('BALANCE DE PRUEBA'!A17='LIBRO MAYOR'!$A$46,'LIBRO MAYOR'!$A$56,IF('BALANCE DE PRUEBA'!A17='LIBRO MAYOR'!$D$46,'LIBRO MAYOR'!$D$56,IF('BALANCE DE PRUEBA'!A17='LIBRO MAYOR'!$G$46,'LIBRO MAYOR'!$G$56,IF('BALANCE DE PRUEBA'!A17='LIBRO MAYOR'!$A$57,'LIBRO MAYOR'!$A$67,IF('BALANCE DE PRUEBA'!A17='LIBRO MAYOR'!$D$57,'LIBRO MAYOR'!$D$67,IF('BALANCE DE PRUEBA'!A17='LIBRO MAYOR'!$G$57,'LIBRO MAYOR'!$G$67,IF(A17='LIBRO MAYOR'!$A$68,'LIBRO MAYOR'!$A$78,IF('BALANCE DE PRUEBA'!A17='LIBRO MAYOR'!$D$68,'LIBRO MAYOR'!$D$78,IF('BALANCE DE PRUEBA'!A17='LIBRO MAYOR'!$G$68,'LIBRO MAYOR'!$G$78,IF('BALANCE DE PRUEBA'!A17='LIBRO MAYOR'!$A$79,'LIBRO MAYOR'!$A$89,IF('BALANCE DE PRUEBA'!A17='LIBRO MAYOR'!$D$79,'LIBRO MAYOR'!$D$89,IF('BALANCE DE PRUEBA'!A17='LIBRO MAYOR'!$G$79,'LIBRO MAYOR'!$G$89,IF('BALANCE DE PRUEBA'!A17='LIBRO MAYOR'!$A$90,'LIBRO MAYOR'!$A$100,IF('BALANCE DE PRUEBA'!A17='LIBRO MAYOR'!$D$90,'LIBRO MAYOR'!$D$100,IF('BALANCE DE PRUEBA'!A17='LIBRO MAYOR'!$G$90,'LIBRO MAYOR'!$G$100,0)))))))))))))))))))))))))))","v":0},{"$f":"IF(A17='LIBRO MAYOR'!$A$1,'LIBRO MAYOR'!$B$12,IF('BALANCE DE PRUEBA'!A17='LIBRO MAYOR'!$D$1,'LIBRO MAYOR'!$E$12,IF('BALANCE DE PRUEBA'!A17='LIBRO MAYOR'!$G$1,'LIBRO MAYOR'!$H$12,IF('BALANCE DE PRUEBA'!A17='LIBRO MAYOR'!$A$13,'LIBRO MAYOR'!$B$23,IF('BALANCE DE PRUEBA'!A17='LIBRO MAYOR'!$D$13,'LIBRO MAYOR'!$E$23,IF('BALANCE DE PRUEBA'!A17='LIBRO MAYOR'!$G$13,'LIBRO MAYOR'!$H$23,IF('BALANCE DE PRUEBA'!A17='LIBRO MAYOR'!$A$24,'LIBRO MAYOR'!$B$34,IF('BALANCE DE PRUEBA'!A17='LIBRO MAYOR'!$D$24,'LIBRO MAYOR'!$E$34,IF('BALANCE DE PRUEBA'!A17='LIBRO MAYOR'!$G$24,'LIBRO MAYOR'!$H$34,IF('BALANCE DE PRUEBA'!A17='LIBRO MAYOR'!$A$35,'LIBRO MAYOR'!$B$45,IF('BALANCE DE PRUEBA'!A17='LIBRO MAYOR'!$D$35,'LIBRO MAYOR'!$E$45,IF('BALANCE DE PRUEBA'!A17='LIBRO MAYOR'!$G$35,'LIBRO MAYOR'!$H$45,IF('BALANCE DE PRUEBA'!A17='LIBRO MAYOR'!$A$46,'LIBRO MAYOR'!$B$56,IF('BALANCE DE PRUEBA'!A17='LIBRO MAYOR'!$D$46,'LIBRO MAYOR'!$E$56,IF('BALANCE DE PRUEBA'!A17='LIBRO MAYOR'!$G$46,'LIBRO MAYOR'!$H$56,IF('BALANCE DE PRUEBA'!A17='LIBRO MAYOR'!$A$57,'LIBRO MAYOR'!$B$67,IF('BALANCE DE PRUEBA'!A17='LIBRO MAYOR'!$D$57,'LIBRO MAYOR'!$E$67,IF('BALANCE DE PRUEBA'!A17='LIBRO MAYOR'!$G$57,'LIBRO MAYOR'!$H$67,IF(A17='LIBRO MAYOR'!$A$68,'LIBRO MAYOR'!$B$78,IF('BALANCE DE PRUEBA'!A17='LIBRO MAYOR'!$D$68,'LIBRO MAYOR'!$E$78,IF('BALANCE DE PRUEBA'!A17='LIBRO MAYOR'!$G$68,'LIBRO MAYOR'!$H$78,IF('BALANCE DE PRUEBA'!A17='LIBRO MAYOR'!$A$79,'LIBRO MAYOR'!$B$89,IF('BALANCE DE PRUEBA'!A17='LIBRO MAYOR'!$D$79,'LIBRO MAYOR'!$E$89,IF('BALANCE DE PRUEBA'!A17='LIBRO MAYOR'!$G$79,'LIBRO MAYOR'!$H$89,IF('BALANCE DE PRUEBA'!A17='LIBRO MAYOR'!$A$90,'LIBRO MAYOR'!$B$100,IF('BALANCE DE PRUEBA'!A17='LIBRO MAYOR'!$D$90,'LIBRO MAYOR'!$E$100,IF('BALANCE DE PRUEBA'!A17='LIBRO MAYOR'!$G$90,'LIBRO MAYOR'!$H$100,0)))))))))))))))))))))))))))","v":0},0]
[null,"",{"$f":"IF(A18='LIBRO MAYOR'!$A$1,'LIBRO MAYOR'!$A$12,IF('BALANCE DE PRUEBA'!A18='LIBRO MAYOR'!$D$1,'LIBRO MAYOR'!$D$12,IF('BALANCE DE PRUEBA'!A18='LIBRO MAYOR'!$G$1,'LIBRO MAYOR'!$G$12,IF('BALANCE DE PRUEBA'!A18='LIBRO MAYOR'!$A$13,'LIBRO MAYOR'!$A$23,IF('BALANCE DE PRUEBA'!A18='LIBRO MAYOR'!$D$13,'LIBRO MAYOR'!$D$23,IF('BALANCE DE PRUEBA'!A18='LIBRO MAYOR'!$G$13,'LIBRO MAYOR'!$G$23,IF('BALANCE DE PRUEBA'!A18='LIBRO MAYOR'!$A$24,'LIBRO MAYOR'!$A$34,IF('BALANCE DE PRUEBA'!A18='LIBRO MAYOR'!$D$24,'LIBRO MAYOR'!$D$34,IF('BALANCE DE PRUEBA'!A18='LIBRO MAYOR'!$G$24,'LIBRO MAYOR'!$G$34,IF('BALANCE DE PRUEBA'!A18='LIBRO MAYOR'!$A$35,'LIBRO MAYOR'!$A$45,IF('BALANCE DE PRUEBA'!A18='LIBRO MAYOR'!$D$35,'LIBRO MAYOR'!$D$45,IF('BALANCE DE PRUEBA'!A18='LIBRO MAYOR'!$G$35,'LIBRO MAYOR'!$G$45,IF('BALANCE DE PRUEBA'!A18='LIBRO MAYOR'!$A$46,'LIBRO MAYOR'!$A$56,IF('BALANCE DE PRUEBA'!A18='LIBRO MAYOR'!$D$46,'LIBRO MAYOR'!$D$56,IF('BALANCE DE PRUEBA'!A18='LIBRO MAYOR'!$G$46,'LIBRO MAYOR'!$G$56,IF('BALANCE DE PRUEBA'!A18='LIBRO MAYOR'!$A$57,'LIBRO MAYOR'!$A$67,IF('BALANCE DE PRUEBA'!A18='LIBRO MAYOR'!$D$57,'LIBRO MAYOR'!$D$67,IF('BALANCE DE PRUEBA'!A18='LIBRO MAYOR'!$G$57,'LIBRO MAYOR'!$G$67,IF(A18='LIBRO MAYOR'!$A$68,'LIBRO MAYOR'!$A$78,IF('BALANCE DE PRUEBA'!A18='LIBRO MAYOR'!$D$68,'LIBRO MAYOR'!$D$78,IF('BALANCE DE PRUEBA'!A18='LIBRO MAYOR'!$G$68,'LIBRO MAYOR'!$G$78,IF('BALANCE DE PRUEBA'!A18='LIBRO MAYOR'!$A$79,'LIBRO MAYOR'!$A$89,IF('BALANCE DE PRUEBA'!A18='LIBRO MAYOR'!$D$79,'LIBRO MAYOR'!$D$89,IF('BALANCE DE PRUEBA'!A18='LIBRO MAYOR'!$G$79,'LIBRO MAYOR'!$G$89,IF('BALANCE DE PRUEBA'!A18='LIBRO MAYOR'!$A$90,'LIBRO MAYOR'!$A$100,IF('BALANCE DE PRUEBA'!A18='LIBRO MAYOR'!$D$90,'LIBRO MAYOR'!$D$100,IF('BALANCE DE PRUEBA'!A18='LIBRO MAYOR'!$G$90,'LIBRO MAYOR'!$G$100,0)))))))))))))))))))))))))))","v":0},{"$f":"IF(A18='LIBRO MAYOR'!$A$1,'LIBRO MAYOR'!$B$12,IF('BALANCE DE PRUEBA'!A18='LIBRO MAYOR'!$D$1,'LIBRO MAYOR'!$E$12,IF('BALANCE DE PRUEBA'!A18='LIBRO MAYOR'!$G$1,'LIBRO MAYOR'!$H$12,IF('BALANCE DE PRUEBA'!A18='LIBRO MAYOR'!$A$13,'LIBRO MAYOR'!$B$23,IF('BALANCE DE PRUEBA'!A18='LIBRO MAYOR'!$D$13,'LIBRO MAYOR'!$E$23,IF('BALANCE DE PRUEBA'!A18='LIBRO MAYOR'!$G$13,'LIBRO MAYOR'!$H$23,IF('BALANCE DE PRUEBA'!A18='LIBRO MAYOR'!$A$24,'LIBRO MAYOR'!$B$34,IF('BALANCE DE PRUEBA'!A18='LIBRO MAYOR'!$D$24,'LIBRO MAYOR'!$E$34,IF('BALANCE DE PRUEBA'!A18='LIBRO MAYOR'!$G$24,'LIBRO MAYOR'!$H$34,IF('BALANCE DE PRUEBA'!A18='LIBRO MAYOR'!$A$35,'LIBRO MAYOR'!$B$45,IF('BALANCE DE PRUEBA'!A18='LIBRO MAYOR'!$D$35,'LIBRO MAYOR'!$E$45,IF('BALANCE DE PRUEBA'!A18='LIBRO MAYOR'!$G$35,'LIBRO MAYOR'!$H$45,IF('BALANCE DE PRUEBA'!A18='LIBRO MAYOR'!$A$46,'LIBRO MAYOR'!$B$56,IF('BALANCE DE PRUEBA'!A18='LIBRO MAYOR'!$D$46,'LIBRO MAYOR'!$E$56,IF('BALANCE DE PRUEBA'!A18='LIBRO MAYOR'!$G$46,'LIBRO MAYOR'!$H$56,IF('BALANCE DE PRUEBA'!A18='LIBRO MAYOR'!$A$57,'LIBRO MAYOR'!$B$67,IF('BALANCE DE PRUEBA'!A18='LIBRO MAYOR'!$D$57,'LIBRO MAYOR'!$E$67,IF('BALANCE DE PRUEBA'!A18='LIBRO MAYOR'!$G$57,'LIBRO MAYOR'!$H$67,IF(A18='LIBRO MAYOR'!$A$68,'LIBRO MAYOR'!$B$78,IF('BALANCE DE PRUEBA'!A18='LIBRO MAYOR'!$D$68,'LIBRO MAYOR'!$E$78,IF('BALANCE DE PRUEBA'!A18='LIBRO MAYOR'!$G$68,'LIBRO MAYOR'!$H$78,IF('BALANCE DE PRUEBA'!A18='LIBRO MAYOR'!$A$79,'LIBRO MAYOR'!$B$89,IF('BALANCE DE PRUEBA'!A18='LIBRO MAYOR'!$D$79,'LIBRO MAYOR'!$E$89,IF('BALANCE DE PRUEBA'!A18='LIBRO MAYOR'!$G$79,'LIBRO MAYOR'!$H$89,IF('BALANCE DE PRUEBA'!A18='LIBRO MAYOR'!$A$90,'LIBRO MAYOR'!$B$100,IF('BALANCE DE PRUEBA'!A18='LIBRO MAYOR'!$D$90,'LIBRO MAYOR'!$E$100,IF('BALANCE DE PRUEBA'!A18='LIBRO MAYOR'!$G$90,'LIBRO MAYOR'!$H$100,0)))))))))))))))))))))))))))","v":0},0]
[null,"",{"$f":"IF(A19='LIBRO MAYOR'!$A$1,'LIBRO MAYOR'!$A$12,IF('BALANCE DE PRUEBA'!A19='LIBRO MAYOR'!$D$1,'LIBRO MAYOR'!$D$12,IF('BALANCE DE PRUEBA'!A19='LIBRO MAYOR'!$G$1,'LIBRO MAYOR'!$G$12,IF('BALANCE DE PRUEBA'!A19='LIBRO MAYOR'!$A$13,'LIBRO MAYOR'!$A$23,IF('BALANCE DE PRUEBA'!A19='LIBRO MAYOR'!$D$13,'LIBRO MAYOR'!$D$23,IF('BALANCE DE PRUEBA'!A19='LIBRO MAYOR'!$G$13,'LIBRO MAYOR'!$G$23,IF('BALANCE DE PRUEBA'!A19='LIBRO MAYOR'!$A$24,'LIBRO MAYOR'!$A$34,IF('BALANCE DE PRUEBA'!A19='LIBRO MAYOR'!$D$24,'LIBRO MAYOR'!$D$34,IF('BALANCE DE PRUEBA'!A19='LIBRO MAYOR'!$G$24,'LIBRO MAYOR'!$G$34,IF('BALANCE DE PRUEBA'!A19='LIBRO MAYOR'!$A$35,'LIBRO MAYOR'!$A$45,IF('BALANCE DE PRUEBA'!A19='LIBRO MAYOR'!$D$35,'LIBRO MAYOR'!$D$45,IF('BALANCE DE PRUEBA'!A19='LIBRO MAYOR'!$G$35,'LIBRO MAYOR'!$G$45,IF('BALANCE DE PRUEBA'!A19='LIBRO MAYOR'!$A$46,'LIBRO MAYOR'!$A$56,IF('BALANCE DE PRUEBA'!A19='LIBRO MAYOR'!$D$46,'LIBRO MAYOR'!$D$56,IF('BALANCE DE PRUEBA'!A19='LIBRO MAYOR'!$G$46,'LIBRO MAYOR'!$G$56,IF('BALANCE DE PRUEBA'!A19='LIBRO MAYOR'!$A$57,'LIBRO MAYOR'!$A$67,IF('BALANCE DE PRUEBA'!A19='LIBRO MAYOR'!$D$57,'LIBRO MAYOR'!$D$67,IF('BALANCE DE PRUEBA'!A19='LIBRO MAYOR'!$G$57,'LIBRO MAYOR'!$G$67,IF(A19='LIBRO MAYOR'!$A$68,'LIBRO MAYOR'!$A$78,IF('BALANCE DE PRUEBA'!A19='LIBRO MAYOR'!$D$68,'LIBRO MAYOR'!$D$78,IF('BALANCE DE PRUEBA'!A19='LIBRO MAYOR'!$G$68,'LIBRO MAYOR'!$G$78,IF('BALANCE DE PRUEBA'!A19='LIBRO MAYOR'!$A$79,'LIBRO MAYOR'!$A$89,IF('BALANCE DE PRUEBA'!A19='LIBRO MAYOR'!$D$79,'LIBRO MAYOR'!$D$89,IF('BALANCE DE PRUEBA'!A19='LIBRO MAYOR'!$G$79,'LIBRO MAYOR'!$G$89,IF('BALANCE DE PRUEBA'!A19='LIBRO MAYOR'!$A$90,'LIBRO MAYOR'!$A$100,IF('BALANCE DE PRUEBA'!A19='LIBRO MAYOR'!$D$90,'LIBRO MAYOR'!$D$100,IF('BALANCE DE PRUEBA'!A19='LIBRO MAYOR'!$G$90,'LIBRO MAYOR'!$G$100,0)))))))))))))))))))))))))))","v":0},{"$f":"IF(A19='LIBRO MAYOR'!$A$1,'LIBRO MAYOR'!$B$12,IF('BALANCE DE PRUEBA'!A19='LIBRO MAYOR'!$D$1,'LIBRO MAYOR'!$E$12,IF('BALANCE DE PRUEBA'!A19='LIBRO MAYOR'!$G$1,'LIBRO MAYOR'!$H$12,IF('BALANCE DE PRUEBA'!A19='LIBRO MAYOR'!$A$13,'LIBRO MAYOR'!$B$23,IF('BALANCE DE PRUEBA'!A19='LIBRO MAYOR'!$D$13,'LIBRO MAYOR'!$E$23,IF('BALANCE DE PRUEBA'!A19='LIBRO MAYOR'!$G$13,'LIBRO MAYOR'!$H$23,IF('BALANCE DE PRUEBA'!A19='LIBRO MAYOR'!$A$24,'LIBRO MAYOR'!$B$34,IF('BALANCE DE PRUEBA'!A19='LIBRO MAYOR'!$D$24,'LIBRO MAYOR'!$E$34,IF('BALANCE DE PRUEBA'!A19='LIBRO MAYOR'!$G$24,'LIBRO MAYOR'!$H$34,IF('BALANCE DE PRUEBA'!A19='LIBRO MAYOR'!$A$35,'LIBRO MAYOR'!$B$45,IF('BALANCE DE PRUEBA'!A19='LIBRO MAYOR'!$D$35,'LIBRO MAYOR'!$E$45,IF('BALANCE DE PRUEBA'!A19='LIBRO MAYOR'!$G$35,'LIBRO MAYOR'!$H$45,IF('BALANCE DE PRUEBA'!A19='LIBRO MAYOR'!$A$46,'LIBRO MAYOR'!$B$56,IF('BALANCE DE PRUEBA'!A19='LIBRO MAYOR'!$D$46,'LIBRO MAYOR'!$E$56,IF('BALANCE DE PRUEBA'!A19='LIBRO MAYOR'!$G$46,'LIBRO MAYOR'!$H$56,IF('BALANCE DE PRUEBA'!A19='LIBRO MAYOR'!$A$57,'LIBRO MAYOR'!$B$67,IF('BALANCE DE PRUEBA'!A19='LIBRO MAYOR'!$D$57,'LIBRO MAYOR'!$E$67,IF('BALANCE DE PRUEBA'!A19='LIBRO MAYOR'!$G$57,'LIBRO MAYOR'!$H$67,IF(A19='LIBRO MAYOR'!$A$68,'LIBRO MAYOR'!$B$78,IF('BALANCE DE PRUEBA'!A19='LIBRO MAYOR'!$D$68,'LIBRO MAYOR'!$E$78,IF('BALANCE DE PRUEBA'!A19='LIBRO MAYOR'!$G$68,'LIBRO MAYOR'!$H$78,IF('BALANCE DE PRUEBA'!A19='LIBRO MAYOR'!$A$79,'LIBRO MAYOR'!$B$89,IF('BALANCE DE PRUEBA'!A19='LIBRO MAYOR'!$D$79,'LIBRO MAYOR'!$E$89,IF('BALANCE DE PRUEBA'!A19='LIBRO MAYOR'!$G$79,'LIBRO MAYOR'!$H$89,IF('BALANCE DE PRUEBA'!A19='LIBRO MAYOR'!$A$90,'LIBRO MAYOR'!$B$100,IF('BALANCE DE PRUEBA'!A19='LIBRO MAYOR'!$D$90,'LIBRO MAYOR'!$E$100,IF('BALANCE DE PRUEBA'!A19='LIBRO MAYOR'!$G$90,'LIBRO MAYOR'!$H$100,0)))))))))))))))))))))))))))","v":0},0]
[null,"",{"$f":"IF(A20='LIBRO MAYOR'!$A$1,'LIBRO MAYOR'!$A$12,IF('BALANCE DE PRUEBA'!A20='LIBRO MAYOR'!$D$1,'LIBRO MAYOR'!$D$12,IF('BALANCE DE PRUEBA'!A20='LIBRO MAYOR'!$G$1,'LIBRO MAYOR'!$G$12,IF('BALANCE DE PRUEBA'!A20='LIBRO MAYOR'!$A$13,'LIBRO MAYOR'!$A$23,IF('BALANCE DE PRUEBA'!A20='LIBRO MAYOR'!$D$13,'LIBRO MAYOR'!$D$23,IF('BALANCE DE PRUEBA'!A20='LIBRO MAYOR'!$G$13,'LIBRO MAYOR'!$G$23,IF('BALANCE DE PRUEBA'!A20='LIBRO MAYOR'!$A$24,'LIBRO MAYOR'!$A$34,IF('BALANCE DE PRUEBA'!A20='LIBRO MAYOR'!$D$24,'LIBRO MAYOR'!$D$34,IF('BALANCE DE PRUEBA'!A20='LIBRO MAYOR'!$G$24,'LIBRO MAYOR'!$G$34,IF('BALANCE DE PRUEBA'!A20='LIBRO MAYOR'!$A$35,'LIBRO MAYOR'!$A$45,IF('BALANCE DE PRUEBA'!A20='LIBRO MAYOR'!$D$35,'LIBRO MAYOR'!$D$45,IF('BALANCE DE PRUEBA'!A20='LIBRO MAYOR'!$G$35,'LIBRO MAYOR'!$G$45,IF('BALANCE DE PRUEBA'!A20='LIBRO MAYOR'!$A$46,'LIBRO MAYOR'!$A$56,IF('BALANCE DE PRUEBA'!A20='LIBRO MAYOR'!$D$46,'LIBRO MAYOR'!$D$56,IF('BALANCE DE PRUEBA'!A20='LIBRO MAYOR'!$G$46,'LIBRO MAYOR'!$G$56,IF('BALANCE DE PRUEBA'!A20='LIBRO MAYOR'!$A$57,'LIBRO MAYOR'!$A$67,IF('BALANCE DE PRUEBA'!A20='LIBRO MAYOR'!$D$57,'LIBRO MAYOR'!$D$67,IF('BALANCE DE PRUEBA'!A20='LIBRO MAYOR'!$G$57,'LIBRO MAYOR'!$G$67,IF(A20='LIBRO MAYOR'!$A$68,'LIBRO MAYOR'!$A$78,IF('BALANCE DE PRUEBA'!A20='LIBRO MAYOR'!$D$68,'LIBRO MAYOR'!$D$78,IF('BALANCE DE PRUEBA'!A20='LIBRO MAYOR'!$G$68,'LIBRO MAYOR'!$G$78,IF('BALANCE DE PRUEBA'!A20='LIBRO MAYOR'!$A$79,'LIBRO MAYOR'!$A$89,IF('BALANCE DE PRUEBA'!A20='LIBRO MAYOR'!$D$79,'LIBRO MAYOR'!$D$89,IF('BALANCE DE PRUEBA'!A20='LIBRO MAYOR'!$G$79,'LIBRO MAYOR'!$G$89,IF('BALANCE DE PRUEBA'!A20='LIBRO MAYOR'!$A$90,'LIBRO MAYOR'!$A$100,IF('BALANCE DE PRUEBA'!A20='LIBRO MAYOR'!$D$90,'LIBRO MAYOR'!$D$100,IF('BALANCE DE PRUEBA'!A20='LIBRO MAYOR'!$G$90,'LIBRO MAYOR'!$G$100,0)))))))))))))))))))))))))))","v":0},{"$f":"IF(A20='LIBRO MAYOR'!$A$1,'LIBRO MAYOR'!$B$12,IF('BALANCE DE PRUEBA'!A20='LIBRO MAYOR'!$D$1,'LIBRO MAYOR'!$E$12,IF('BALANCE DE PRUEBA'!A20='LIBRO MAYOR'!$G$1,'LIBRO MAYOR'!$H$12,IF('BALANCE DE PRUEBA'!A20='LIBRO MAYOR'!$A$13,'LIBRO MAYOR'!$B$23,IF('BALANCE DE PRUEBA'!A20='LIBRO MAYOR'!$D$13,'LIBRO MAYOR'!$E$23,IF('BALANCE DE PRUEBA'!A20='LIBRO MAYOR'!$G$13,'LIBRO MAYOR'!$H$23,IF('BALANCE DE PRUEBA'!A20='LIBRO MAYOR'!$A$24,'LIBRO MAYOR'!$B$34,IF('BALANCE DE PRUEBA'!A20='LIBRO MAYOR'!$D$24,'LIBRO MAYOR'!$E$34,IF('BALANCE DE PRUEBA'!A20='LIBRO MAYOR'!$G$24,'LIBRO MAYOR'!$H$34,IF('BALANCE DE PRUEBA'!A20='LIBRO MAYOR'!$A$35,'LIBRO MAYOR'!$B$45,IF('BALANCE DE PRUEBA'!A20='LIBRO MAYOR'!$D$35,'LIBRO MAYOR'!$E$45,IF('BALANCE DE PRUEBA'!A20='LIBRO MAYOR'!$G$35,'LIBRO MAYOR'!$H$45,IF('BALANCE DE PRUEBA'!A20='LIBRO MAYOR'!$A$46,'LIBRO MAYOR'!$B$56,IF('BALANCE DE PRUEBA'!A20='LIBRO MAYOR'!$D$46,'LIBRO MAYOR'!$E$56,IF('BALANCE DE PRUEBA'!A20='LIBRO MAYOR'!$G$46,'LIBRO MAYOR'!$H$56,IF('BALANCE DE PRUEBA'!A20='LIBRO MAYOR'!$A$57,'LIBRO MAYOR'!$B$67,IF('BALANCE DE PRUEBA'!A20='LIBRO MAYOR'!$D$57,'LIBRO MAYOR'!$E$67,IF('BALANCE DE PRUEBA'!A20='LIBRO MAYOR'!$G$57,'LIBRO MAYOR'!$H$67,IF(A20='LIBRO MAYOR'!$A$68,'LIBRO MAYOR'!$B$78,IF('BALANCE DE PRUEBA'!A20='LIBRO MAYOR'!$D$68,'LIBRO MAYOR'!$E$78,IF('BALANCE DE PRUEBA'!A20='LIBRO MAYOR'!$G$68,'LIBRO MAYOR'!$H$78,IF('BALANCE DE PRUEBA'!A20='LIBRO MAYOR'!$A$79,'LIBRO MAYOR'!$B$89,IF('BALANCE DE PRUEBA'!A20='LIBRO MAYOR'!$D$79,'LIBRO MAYOR'!$E$89,IF('BALANCE DE PRUEBA'!A20='LIBRO MAYOR'!$G$79,'LIBRO MAYOR'!$H$89,IF('BALANCE DE PRUEBA'!A20='LIBRO MAYOR'!$A$90,'LIBRO MAYOR'!$B$100,IF('BALANCE DE PRUEBA'!A20='LIBRO MAYOR'!$D$90,'LIBRO MAYOR'!$E$100,IF('BALANCE DE PRUEBA'!A20='LIBRO MAYOR'!$G$90,'LIBRO MAYOR'!$H$100,0)))))))))))))))))))))))))))","v":0},0]
[null,"",{"$f":"IF(A21='LIBRO MAYOR'!$A$1,'LIBRO MAYOR'!$A$12,IF('BALANCE DE PRUEBA'!A21='LIBRO MAYOR'!$D$1,'LIBRO MAYOR'!$D$12,IF('BALANCE DE PRUEBA'!A21='LIBRO MAYOR'!$G$1,'LIBRO MAYOR'!$G$12,IF('BALANCE DE PRUEBA'!A21='LIBRO MAYOR'!$A$13,'LIBRO MAYOR'!$A$23,IF('BALANCE DE PRUEBA'!A21='LIBRO MAYOR'!$D$13,'LIBRO MAYOR'!$D$23,IF('BALANCE DE PRUEBA'!A21='LIBRO MAYOR'!$G$13,'LIBRO MAYOR'!$G$23,IF('BALANCE DE PRUEBA'!A21='LIBRO MAYOR'!$A$24,'LIBRO MAYOR'!$A$34,IF('BALANCE DE PRUEBA'!A21='LIBRO MAYOR'!$D$24,'LIBRO MAYOR'!$D$34,IF('BALANCE DE PRUEBA'!A21='LIBRO MAYOR'!$G$24,'LIBRO MAYOR'!$G$34,IF('BALANCE DE PRUEBA'!A21='LIBRO MAYOR'!$A$35,'LIBRO MAYOR'!$A$45,IF('BALANCE DE PRUEBA'!A21='LIBRO MAYOR'!$D$35,'LIBRO MAYOR'!$D$45,IF('BALANCE DE PRUEBA'!A21='LIBRO MAYOR'!$G$35,'LIBRO MAYOR'!$G$45,IF('BALANCE DE PRUEBA'!A21='LIBRO MAYOR'!$A$46,'LIBRO MAYOR'!$A$56,IF('BALANCE DE PRUEBA'!A21='LIBRO MAYOR'!$D$46,'LIBRO MAYOR'!$D$56,IF('BALANCE DE PRUEBA'!A21='LIBRO MAYOR'!$G$46,'LIBRO MAYOR'!$G$56,IF('BALANCE DE PRUEBA'!A21='LIBRO MAYOR'!$A$57,'LIBRO MAYOR'!$A$67,IF('BALANCE DE PRUEBA'!A21='LIBRO MAYOR'!$D$57,'LIBRO MAYOR'!$D$67,IF('BALANCE DE PRUEBA'!A21='LIBRO MAYOR'!$G$57,'LIBRO MAYOR'!$G$67,IF(A21='LIBRO MAYOR'!$A$68,'LIBRO MAYOR'!$A$78,IF('BALANCE DE PRUEBA'!A21='LIBRO MAYOR'!$D$68,'LIBRO MAYOR'!$D$78,IF('BALANCE DE PRUEBA'!A21='LIBRO MAYOR'!$G$68,'LIBRO MAYOR'!$G$78,IF('BALANCE DE PRUEBA'!A21='LIBRO MAYOR'!$A$79,'LIBRO MAYOR'!$A$89,IF('BALANCE DE PRUEBA'!A21='LIBRO MAYOR'!$D$79,'LIBRO MAYOR'!$D$89,IF('BALANCE DE PRUEBA'!A21='LIBRO MAYOR'!$G$79,'LIBRO MAYOR'!$G$89,IF('BALANCE DE PRUEBA'!A21='LIBRO MAYOR'!$A$90,'LIBRO MAYOR'!$A$100,IF('BALANCE DE PRUEBA'!A21='LIBRO MAYOR'!$D$90,'LIBRO MAYOR'!$D$100,IF('BALANCE DE PRUEBA'!A21='LIBRO MAYOR'!$G$90,'LIBRO MAYOR'!$G$100,0)))))))))))))))))))))))))))","v":0},{"$f":"IF(A21='LIBRO MAYOR'!$A$1,'LIBRO MAYOR'!$B$12,IF('BALANCE DE PRUEBA'!A21='LIBRO MAYOR'!$D$1,'LIBRO MAYOR'!$E$12,IF('BALANCE DE PRUEBA'!A21='LIBRO MAYOR'!$G$1,'LIBRO MAYOR'!$H$12,IF('BALANCE DE PRUEBA'!A21='LIBRO MAYOR'!$A$13,'LIBRO MAYOR'!$B$23,IF('BALANCE DE PRUEBA'!A21='LIBRO MAYOR'!$D$13,'LIBRO MAYOR'!$E$23,IF('BALANCE DE PRUEBA'!A21='LIBRO MAYOR'!$G$13,'LIBRO MAYOR'!$H$23,IF('BALANCE DE PRUEBA'!A21='LIBRO MAYOR'!$A$24,'LIBRO MAYOR'!$B$34,IF('BALANCE DE PRUEBA'!A21='LIBRO MAYOR'!$D$24,'LIBRO MAYOR'!$E$34,IF('BALANCE DE PRUEBA'!A21='LIBRO MAYOR'!$G$24,'LIBRO MAYOR'!$H$34,IF('BALANCE DE PRUEBA'!A21='LIBRO MAYOR'!$A$35,'LIBRO MAYOR'!$B$45,IF('BALANCE DE PRUEBA'!A21='LIBRO MAYOR'!$D$35,'LIBRO MAYOR'!$E$45,IF('BALANCE DE PRUEBA'!A21='LIBRO MAYOR'!$G$35,'LIBRO MAYOR'!$H$45,IF('BALANCE DE PRUEBA'!A21='LIBRO MAYOR'!$A$46,'LIBRO MAYOR'!$B$56,IF('BALANCE DE PRUEBA'!A21='LIBRO MAYOR'!$D$46,'LIBRO MAYOR'!$E$56,IF('BALANCE DE PRUEBA'!A21='LIBRO MAYOR'!$G$46,'LIBRO MAYOR'!$H$56,IF('BALANCE DE PRUEBA'!A21='LIBRO MAYOR'!$A$57,'LIBRO MAYOR'!$B$67,IF('BALANCE DE PRUEBA'!A21='LIBRO MAYOR'!$D$57,'LIBRO MAYOR'!$E$67,IF('BALANCE DE PRUEBA'!A21='LIBRO MAYOR'!$G$57,'LIBRO MAYOR'!$H$67,IF(A21='LIBRO MAYOR'!$A$68,'LIBRO MAYOR'!$B$78,IF('BALANCE DE PRUEBA'!A21='LIBRO MAYOR'!$D$68,'LIBRO MAYOR'!$E$78,IF('BALANCE DE PRUEBA'!A21='LIBRO MAYOR'!$G$68,'LIBRO MAYOR'!$H$78,IF('BALANCE DE PRUEBA'!A21='LIBRO MAYOR'!$A$79,'LIBRO MAYOR'!$B$89,IF('BALANCE DE PRUEBA'!A21='LIBRO MAYOR'!$D$79,'LIBRO MAYOR'!$E$89,IF('BALANCE DE PRUEBA'!A21='LIBRO MAYOR'!$G$79,'LIBRO MAYOR'!$H$89,IF('BALANCE DE PRUEBA'!A21='LIBRO MAYOR'!$A$90,'LIBRO MAYOR'!$B$100,IF('BALANCE DE PRUEBA'!A21='LIBRO MAYOR'!$D$90,'LIBRO MAYOR'!$E$100,IF('BALANCE DE PRUEBA'!A21='LIBRO MAYOR'!$G$90,'LIBRO MAYOR'!$H$100,0)))))))))))))))))))))))))))","v":0},0]
[null,"",{"$f":"IF(A22='LIBRO MAYOR'!$A$1,'LIBRO MAYOR'!$A$12,IF('BALANCE DE PRUEBA'!A22='LIBRO MAYOR'!$D$1,'LIBRO MAYOR'!$D$12,IF('BALANCE DE PRUEBA'!A22='LIBRO MAYOR'!$G$1,'LIBRO MAYOR'!$G$12,IF('BALANCE DE PRUEBA'!A22='LIBRO MAYOR'!$A$13,'LIBRO MAYOR'!$A$23,IF('BALANCE DE PRUEBA'!A22='LIBRO MAYOR'!$D$13,'LIBRO MAYOR'!$D$23,IF('BALANCE DE PRUEBA'!A22='LIBRO MAYOR'!$G$13,'LIBRO MAYOR'!$G$23,IF('BALANCE DE PRUEBA'!A22='LIBRO MAYOR'!$A$24,'LIBRO MAYOR'!$A$34,IF('BALANCE DE PRUEBA'!A22='LIBRO MAYOR'!$D$24,'LIBRO MAYOR'!$D$34,IF('BALANCE DE PRUEBA'!A22='LIBRO MAYOR'!$G$24,'LIBRO MAYOR'!$G$34,IF('BALANCE DE PRUEBA'!A22='LIBRO MAYOR'!$A$35,'LIBRO MAYOR'!$A$45,IF('BALANCE DE PRUEBA'!A22='LIBRO MAYOR'!$D$35,'LIBRO MAYOR'!$D$45,IF('BALANCE DE PRUEBA'!A22='LIBRO MAYOR'!$G$35,'LIBRO MAYOR'!$G$45,IF('BALANCE DE PRUEBA'!A22='LIBRO MAYOR'!$A$46,'LIBRO MAYOR'!$A$56,IF('BALANCE DE PRUEBA'!A22='LIBRO MAYOR'!$D$46,'LIBRO MAYOR'!$D$56,IF('BALANCE DE PRUEBA'!A22='LIBRO MAYOR'!$G$46,'LIBRO MAYOR'!$G$56,IF('BALANCE DE PRUEBA'!A22='LIBRO MAYOR'!$A$57,'LIBRO MAYOR'!$A$67,IF('BALANCE DE PRUEBA'!A22='LIBRO MAYOR'!$D$57,'LIBRO MAYOR'!$D$67,IF('BALANCE DE PRUEBA'!A22='LIBRO MAYOR'!$G$57,'LIBRO MAYOR'!$G$67,IF(A22='LIBRO MAYOR'!$A$68,'LIBRO MAYOR'!$A$78,IF('BALANCE DE PRUEBA'!A22='LIBRO MAYOR'!$D$68,'LIBRO MAYOR'!$D$78,IF('BALANCE DE PRUEBA'!A22='LIBRO MAYOR'!$G$68,'LIBRO MAYOR'!$G$78,IF('BALANCE DE PRUEBA'!A22='LIBRO MAYOR'!$A$79,'LIBRO MAYOR'!$A$89,IF('BALANCE DE PRUEBA'!A22='LIBRO MAYOR'!$D$79,'LIBRO MAYOR'!$D$89,IF('BALANCE DE PRUEBA'!A22='LIBRO MAYOR'!$G$79,'LIBRO MAYOR'!$G$89,IF('BALANCE DE PRUEBA'!A22='LIBRO MAYOR'!$A$90,'LIBRO MAYOR'!$A$100,IF('BALANCE DE PRUEBA'!A22='LIBRO MAYOR'!$D$90,'LIBRO MAYOR'!$D$100,IF('BALANCE DE PRUEBA'!A22='LIBRO MAYOR'!$G$90,'LIBRO MAYOR'!$G$100,0)))))))))))))))))))))))))))","v":0},{"$f":"IF(A22='LIBRO MAYOR'!$A$1,'LIBRO MAYOR'!$B$12,IF('BALANCE DE PRUEBA'!A22='LIBRO MAYOR'!$D$1,'LIBRO MAYOR'!$E$12,IF('BALANCE DE PRUEBA'!A22='LIBRO MAYOR'!$G$1,'LIBRO MAYOR'!$H$12,IF('BALANCE DE PRUEBA'!A22='LIBRO MAYOR'!$A$13,'LIBRO MAYOR'!$B$23,IF('BALANCE DE PRUEBA'!A22='LIBRO MAYOR'!$D$13,'LIBRO MAYOR'!$E$23,IF('BALANCE DE PRUEBA'!A22='LIBRO MAYOR'!$G$13,'LIBRO MAYOR'!$H$23,IF('BALANCE DE PRUEBA'!A22='LIBRO MAYOR'!$A$24,'LIBRO MAYOR'!$B$34,IF('BALANCE DE PRUEBA'!A22='LIBRO MAYOR'!$D$24,'LIBRO MAYOR'!$E$34,IF('BALANCE DE PRUEBA'!A22='LIBRO MAYOR'!$G$24,'LIBRO MAYOR'!$H$34,IF('BALANCE DE PRUEBA'!A22='LIBRO MAYOR'!$A$35,'LIBRO MAYOR'!$B$45,IF('BALANCE DE PRUEBA'!A22='LIBRO MAYOR'!$D$35,'LIBRO MAYOR'!$E$45,IF('BALANCE DE PRUEBA'!A22='LIBRO MAYOR'!$G$35,'LIBRO MAYOR'!$H$45,IF('BALANCE DE PRUEBA'!A22='LIBRO MAYOR'!$A$46,'LIBRO MAYOR'!$B$56,IF('BALANCE DE PRUEBA'!A22='LIBRO MAYOR'!$D$46,'LIBRO MAYOR'!$E$56,IF('BALANCE DE PRUEBA'!A22='LIBRO MAYOR'!$G$46,'LIBRO MAYOR'!$H$56,IF('BALANCE DE PRUEBA'!A22='LIBRO MAYOR'!$A$57,'LIBRO MAYOR'!$B$67,IF('BALANCE DE PRUEBA'!A22='LIBRO MAYOR'!$D$57,'LIBRO MAYOR'!$E$67,IF('BALANCE DE PRUEBA'!A22='LIBRO MAYOR'!$G$57,'LIBRO MAYOR'!$H$67,IF(A22='LIBRO MAYOR'!$A$68,'LIBRO MAYOR'!$B$78,IF('BALANCE DE PRUEBA'!A22='LIBRO MAYOR'!$D$68,'LIBRO MAYOR'!$E$78,IF('BALANCE DE PRUEBA'!A22='LIBRO MAYOR'!$G$68,'LIBRO MAYOR'!$H$78,IF('BALANCE DE PRUEBA'!A22='LIBRO MAYOR'!$A$79,'LIBRO MAYOR'!$B$89,IF('BALANCE DE PRUEBA'!A22='LIBRO MAYOR'!$D$79,'LIBRO MAYOR'!$E$89,IF('BALANCE DE PRUEBA'!A22='LIBRO MAYOR'!$G$79,'LIBRO MAYOR'!$H$89,IF('BALANCE DE PRUEBA'!A22='LIBRO MAYOR'!$A$90,'LIBRO MAYOR'!$B$100,IF('BALANCE DE PRUEBA'!A22='LIBRO MAYOR'!$D$90,'LIBRO MAYOR'!$E$100,IF('BALANCE DE PRUEBA'!A22='LIBRO MAYOR'!$G$90,'LIBRO MAYOR'!$H$100,0)))))))))))))))))))))))))))","v":0},0]
[null,"",{"$f":"IF(A23='LIBRO MAYOR'!$A$1,'LIBRO MAYOR'!$A$12,IF('BALANCE DE PRUEBA'!A23='LIBRO MAYOR'!$D$1,'LIBRO MAYOR'!$D$12,IF('BALANCE DE PRUEBA'!A23='LIBRO MAYOR'!$G$1,'LIBRO MAYOR'!$G$12,IF('BALANCE DE PRUEBA'!A23='LIBRO MAYOR'!$A$13,'LIBRO MAYOR'!$A$23,IF('BALANCE DE PRUEBA'!A23='LIBRO MAYOR'!$D$13,'LIBRO MAYOR'!$D$23,IF('BALANCE DE PRUEBA'!A23='LIBRO MAYOR'!$G$13,'LIBRO MAYOR'!$G$23,IF('BALANCE DE PRUEBA'!A23='LIBRO MAYOR'!$A$24,'LIBRO MAYOR'!$A$34,IF('BALANCE DE PRUEBA'!A23='LIBRO MAYOR'!$D$24,'LIBRO MAYOR'!$D$34,IF('BALANCE DE PRUEBA'!A23='LIBRO MAYOR'!$G$24,'LIBRO MAYOR'!$G$34,IF('BALANCE DE PRUEBA'!A23='LIBRO MAYOR'!$A$35,'LIBRO MAYOR'!$A$45,IF('BALANCE DE PRUEBA'!A23='LIBRO MAYOR'!$D$35,'LIBRO MAYOR'!$D$45,IF('BALANCE DE PRUEBA'!A23='LIBRO MAYOR'!$G$35,'LIBRO MAYOR'!$G$45,IF('BALANCE DE PRUEBA'!A23='LIBRO MAYOR'!$A$46,'LIBRO MAYOR'!$A$56,IF('BALANCE DE PRUEBA'!A23='LIBRO MAYOR'!$D$46,'LIBRO MAYOR'!$D$56,IF('BALANCE DE PRUEBA'!A23='LIBRO MAYOR'!$G$46,'LIBRO MAYOR'!$G$56,IF('BALANCE DE PRUEBA'!A23='LIBRO MAYOR'!$A$57,'LIBRO MAYOR'!$A$67,IF('BALANCE DE PRUEBA'!A23='LIBRO MAYOR'!$D$57,'LIBRO MAYOR'!$D$67,IF('BALANCE DE PRUEBA'!A23='LIBRO MAYOR'!$G$57,'LIBRO MAYOR'!$G$67,IF(A23='LIBRO MAYOR'!$A$68,'LIBRO MAYOR'!$A$78,IF('BALANCE DE PRUEBA'!A23='LIBRO MAYOR'!$D$68,'LIBRO MAYOR'!$D$78,IF('BALANCE DE PRUEBA'!A23='LIBRO MAYOR'!$G$68,'LIBRO MAYOR'!$G$78,IF('BALANCE DE PRUEBA'!A23='LIBRO MAYOR'!$A$79,'LIBRO MAYOR'!$A$89,IF('BALANCE DE PRUEBA'!A23='LIBRO MAYOR'!$D$79,'LIBRO MAYOR'!$D$89,IF('BALANCE DE PRUEBA'!A23='LIBRO MAYOR'!$G$79,'LIBRO MAYOR'!$G$89,IF('BALANCE DE PRUEBA'!A23='LIBRO MAYOR'!$A$90,'LIBRO MAYOR'!$A$100,IF('BALANCE DE PRUEBA'!A23='LIBRO MAYOR'!$D$90,'LIBRO MAYOR'!$D$100,IF('BALANCE DE PRUEBA'!A23='LIBRO MAYOR'!$G$90,'LIBRO MAYOR'!$G$100,0)))))))))))))))))))))))))))","v":0},{"$f":"IF(A23='LIBRO MAYOR'!$A$1,'LIBRO MAYOR'!$B$12,IF('BALANCE DE PRUEBA'!A23='LIBRO MAYOR'!$D$1,'LIBRO MAYOR'!$E$12,IF('BALANCE DE PRUEBA'!A23='LIBRO MAYOR'!$G$1,'LIBRO MAYOR'!$H$12,IF('BALANCE DE PRUEBA'!A23='LIBRO MAYOR'!$A$13,'LIBRO MAYOR'!$B$23,IF('BALANCE DE PRUEBA'!A23='LIBRO MAYOR'!$D$13,'LIBRO MAYOR'!$E$23,IF('BALANCE DE PRUEBA'!A23='LIBRO MAYOR'!$G$13,'LIBRO MAYOR'!$H$23,IF('BALANCE DE PRUEBA'!A23='LIBRO MAYOR'!$A$24,'LIBRO MAYOR'!$B$34,IF('BALANCE DE PRUEBA'!A23='LIBRO MAYOR'!$D$24,'LIBRO MAYOR'!$E$34,IF('BALANCE DE PRUEBA'!A23='LIBRO MAYOR'!$G$24,'LIBRO MAYOR'!$H$34,IF('BALANCE DE PRUEBA'!A23='LIBRO MAYOR'!$A$35,'LIBRO MAYOR'!$B$45,IF('BALANCE DE PRUEBA'!A23='LIBRO MAYOR'!$D$35,'LIBRO MAYOR'!$E$45,IF('BALANCE DE PRUEBA'!A23='LIBRO MAYOR'!$G$35,'LIBRO MAYOR'!$H$45,IF('BALANCE DE PRUEBA'!A23='LIBRO MAYOR'!$A$46,'LIBRO MAYOR'!$B$56,IF('BALANCE DE PRUEBA'!A23='LIBRO MAYOR'!$D$46,'LIBRO MAYOR'!$E$56,IF('BALANCE DE PRUEBA'!A23='LIBRO MAYOR'!$G$46,'LIBRO MAYOR'!$H$56,IF('BALANCE DE PRUEBA'!A23='LIBRO MAYOR'!$A$57,'LIBRO MAYOR'!$B$67,IF('BALANCE DE PRUEBA'!A23='LIBRO MAYOR'!$D$57,'LIBRO MAYOR'!$E$67,IF('BALANCE DE PRUEBA'!A23='LIBRO MAYOR'!$G$57,'LIBRO MAYOR'!$H$67,IF(A23='LIBRO MAYOR'!$A$68,'LIBRO MAYOR'!$B$78,IF('BALANCE DE PRUEBA'!A23='LIBRO MAYOR'!$D$68,'LIBRO MAYOR'!$E$78,IF('BALANCE DE PRUEBA'!A23='LIBRO MAYOR'!$G$68,'LIBRO MAYOR'!$H$78,IF('BALANCE DE PRUEBA'!A23='LIBRO MAYOR'!$A$79,'LIBRO MAYOR'!$B$89,IF('BALANCE DE PRUEBA'!A23='LIBRO MAYOR'!$D$79,'LIBRO MAYOR'!$E$89,IF('BALANCE DE PRUEBA'!A23='LIBRO MAYOR'!$G$79,'LIBRO MAYOR'!$H$89,IF('BALANCE DE PRUEBA'!A23='LIBRO MAYOR'!$A$90,'LIBRO MAYOR'!$B$100,IF('BALANCE DE PRUEBA'!A23='LIBRO MAYOR'!$D$90,'LIBRO MAYOR'!$E$100,IF('BALANCE DE PRUEBA'!A23='LIBRO MAYOR'!$G$90,'LIBRO MAYOR'!$H$100,0)))))))))))))))))))))))))))","v":0},0]
[null,"",{"$f":"IF(A24='LIBRO MAYOR'!$A$1,'LIBRO MAYOR'!$A$12,IF('BALANCE DE PRUEBA'!A24='LIBRO MAYOR'!$D$1,'LIBRO MAYOR'!$D$12,IF('BALANCE DE PRUEBA'!A24='LIBRO MAYOR'!$G$1,'LIBRO MAYOR'!$G$12,IF('BALANCE DE PRUEBA'!A24='LIBRO MAYOR'!$A$13,'LIBRO MAYOR'!$A$23,IF('BALANCE DE PRUEBA'!A24='LIBRO MAYOR'!$D$13,'LIBRO MAYOR'!$D$23,IF('BALANCE DE PRUEBA'!A24='LIBRO MAYOR'!$G$13,'LIBRO MAYOR'!$G$23,IF('BALANCE DE PRUEBA'!A24='LIBRO MAYOR'!$A$24,'LIBRO MAYOR'!$A$34,IF('BALANCE DE PRUEBA'!A24='LIBRO MAYOR'!$D$24,'LIBRO MAYOR'!$D$34,IF('BALANCE DE PRUEBA'!A24='LIBRO MAYOR'!$G$24,'LIBRO MAYOR'!$G$34,IF('BALANCE DE PRUEBA'!A24='LIBRO MAYOR'!$A$35,'LIBRO MAYOR'!$A$45,IF('BALANCE DE PRUEBA'!A24='LIBRO MAYOR'!$D$35,'LIBRO MAYOR'!$D$45,IF('BALANCE DE PRUEBA'!A24='LIBRO MAYOR'!$G$35,'LIBRO MAYOR'!$G$45,IF('BALANCE DE PRUEBA'!A24='LIBRO MAYOR'!$A$46,'LIBRO MAYOR'!$A$56,IF('BALANCE DE PRUEBA'!A24='LIBRO MAYOR'!$D$46,'LIBRO MAYOR'!$D$56,IF('BALANCE DE PRUEBA'!A24='LIBRO MAYOR'!$G$46,'LIBRO MAYOR'!$G$56,IF('BALANCE DE PRUEBA'!A24='LIBRO MAYOR'!$A$57,'LIBRO MAYOR'!$A$67,IF('BALANCE DE PRUEBA'!A24='LIBRO MAYOR'!$D$57,'LIBRO MAYOR'!$D$67,IF('BALANCE DE PRUEBA'!A24='LIBRO MAYOR'!$G$57,'LIBRO MAYOR'!$G$67,IF(A24='LIBRO MAYOR'!$A$68,'LIBRO MAYOR'!$A$78,IF('BALANCE DE PRUEBA'!A24='LIBRO MAYOR'!$D$68,'LIBRO MAYOR'!$D$78,IF('BALANCE DE PRUEBA'!A24='LIBRO MAYOR'!$G$68,'LIBRO MAYOR'!$G$78,IF('BALANCE DE PRUEBA'!A24='LIBRO MAYOR'!$A$79,'LIBRO MAYOR'!$A$89,IF('BALANCE DE PRUEBA'!A24='LIBRO MAYOR'!$D$79,'LIBRO MAYOR'!$D$89,IF('BALANCE DE PRUEBA'!A24='LIBRO MAYOR'!$G$79,'LIBRO MAYOR'!$G$89,IF('BALANCE DE PRUEBA'!A24='LIBRO MAYOR'!$A$90,'LIBRO MAYOR'!$A$100,IF('BALANCE DE PRUEBA'!A24='LIBRO MAYOR'!$D$90,'LIBRO MAYOR'!$D$100,IF('BALANCE DE PRUEBA'!A24='LIBRO MAYOR'!$G$90,'LIBRO MAYOR'!$G$100,0)))))))))))))))))))))))))))","v":0},{"$f":"IF(A24='LIBRO MAYOR'!$A$1,'LIBRO MAYOR'!$B$12,IF('BALANCE DE PRUEBA'!A24='LIBRO MAYOR'!$D$1,'LIBRO MAYOR'!$E$12,IF('BALANCE DE PRUEBA'!A24='LIBRO MAYOR'!$G$1,'LIBRO MAYOR'!$H$12,IF('BALANCE DE PRUEBA'!A24='LIBRO MAYOR'!$A$13,'LIBRO MAYOR'!$B$23,IF('BALANCE DE PRUEBA'!A24='LIBRO MAYOR'!$D$13,'LIBRO MAYOR'!$E$23,IF('BALANCE DE PRUEBA'!A24='LIBRO MAYOR'!$G$13,'LIBRO MAYOR'!$H$23,IF('BALANCE DE PRUEBA'!A24='LIBRO MAYOR'!$A$24,'LIBRO MAYOR'!$B$34,IF('BALANCE DE PRUEBA'!A24='LIBRO MAYOR'!$D$24,'LIBRO MAYOR'!$E$34,IF('BALANCE DE PRUEBA'!A24='LIBRO MAYOR'!$G$24,'LIBRO MAYOR'!$H$34,IF('BALANCE DE PRUEBA'!A24='LIBRO MAYOR'!$A$35,'LIBRO MAYOR'!$B$45,IF('BALANCE DE PRUEBA'!A24='LIBRO MAYOR'!$D$35,'LIBRO MAYOR'!$E$45,IF('BALANCE DE PRUEBA'!A24='LIBRO MAYOR'!$G$35,'LIBRO MAYOR'!$H$45,IF('BALANCE DE PRUEBA'!A24='LIBRO MAYOR'!$A$46,'LIBRO MAYOR'!$B$56,IF('BALANCE DE PRUEBA'!A24='LIBRO MAYOR'!$D$46,'LIBRO MAYOR'!$E$56,IF('BALANCE DE PRUEBA'!A24='LIBRO MAYOR'!$G$46,'LIBRO MAYOR'!$H$56,IF('BALANCE DE PRUEBA'!A24='LIBRO MAYOR'!$A$57,'LIBRO MAYOR'!$B$67,IF('BALANCE DE PRUEBA'!A24='LIBRO MAYOR'!$D$57,'LIBRO MAYOR'!$E$67,IF('BALANCE DE PRUEBA'!A24='LIBRO MAYOR'!$G$57,'LIBRO MAYOR'!$H$67,IF(A24='LIBRO MAYOR'!$A$68,'LIBRO MAYOR'!$B$78,IF('BALANCE DE PRUEBA'!A24='LIBRO MAYOR'!$D$68,'LIBRO MAYOR'!$E$78,IF('BALANCE DE PRUEBA'!A24='LIBRO MAYOR'!$G$68,'LIBRO MAYOR'!$H$78,IF('BALANCE DE PRUEBA'!A24='LIBRO MAYOR'!$A$79,'LIBRO MAYOR'!$B$89,IF('BALANCE DE PRUEBA'!A24='LIBRO MAYOR'!$D$79,'LIBRO MAYOR'!$E$89,IF('BALANCE DE PRUEBA'!A24='LIBRO MAYOR'!$G$79,'LIBRO MAYOR'!$H$89,IF('BALANCE DE PRUEBA'!A24='LIBRO MAYOR'!$A$90,'LIBRO MAYOR'!$B$100,IF('BALANCE DE PRUEBA'!A24='LIBRO MAYOR'!$D$90,'LIBRO MAYOR'!$E$100,IF('BALANCE DE PRUEBA'!A24='LIBRO MAYOR'!$G$90,'LIBRO MAYOR'!$H$100,0)))))))))))))))))))))))))))","v":0},0]
[null,"",{"$f":"IF(A25='LIBRO MAYOR'!$A$1,'LIBRO MAYOR'!$A$12,IF('BALANCE DE PRUEBA'!A25='LIBRO MAYOR'!$D$1,'LIBRO MAYOR'!$D$12,IF('BALANCE DE PRUEBA'!A25='LIBRO MAYOR'!$G$1,'LIBRO MAYOR'!$G$12,IF('BALANCE DE PRUEBA'!A25='LIBRO MAYOR'!$A$13,'LIBRO MAYOR'!$A$23,IF('BALANCE DE PRUEBA'!A25='LIBRO MAYOR'!$D$13,'LIBRO MAYOR'!$D$23,IF('BALANCE DE PRUEBA'!A25='LIBRO MAYOR'!$G$13,'LIBRO MAYOR'!$G$23,IF('BALANCE DE PRUEBA'!A25='LIBRO MAYOR'!$A$24,'LIBRO MAYOR'!$A$34,IF('BALANCE DE PRUEBA'!A25='LIBRO MAYOR'!$D$24,'LIBRO MAYOR'!$D$34,IF('BALANCE DE PRUEBA'!A25='LIBRO MAYOR'!$G$24,'LIBRO MAYOR'!$G$34,IF('BALANCE DE PRUEBA'!A25='LIBRO MAYOR'!$A$35,'LIBRO MAYOR'!$A$45,IF('BALANCE DE PRUEBA'!A25='LIBRO MAYOR'!$D$35,'LIBRO MAYOR'!$D$45,IF('BALANCE DE PRUEBA'!A25='LIBRO MAYOR'!$G$35,'LIBRO MAYOR'!$G$45,IF('BALANCE DE PRUEBA'!A25='LIBRO MAYOR'!$A$46,'LIBRO MAYOR'!$A$56,IF('BALANCE DE PRUEBA'!A25='LIBRO MAYOR'!$D$46,'LIBRO MAYOR'!$D$56,IF('BALANCE DE PRUEBA'!A25='LIBRO MAYOR'!$G$46,'LIBRO MAYOR'!$G$56,IF('BALANCE DE PRUEBA'!A25='LIBRO MAYOR'!$A$57,'LIBRO MAYOR'!$A$67,IF('BALANCE DE PRUEBA'!A25='LIBRO MAYOR'!$D$57,'LIBRO MAYOR'!$D$67,IF('BALANCE DE PRUEBA'!A25='LIBRO MAYOR'!$G$57,'LIBRO MAYOR'!$G$67,IF(A25='LIBRO MAYOR'!$A$68,'LIBRO MAYOR'!$A$78,IF('BALANCE DE PRUEBA'!A25='LIBRO MAYOR'!$D$68,'LIBRO MAYOR'!$D$78,IF('BALANCE DE PRUEBA'!A25='LIBRO MAYOR'!$G$68,'LIBRO MAYOR'!$G$78,IF('BALANCE DE PRUEBA'!A25='LIBRO MAYOR'!$A$79,'LIBRO MAYOR'!$A$89,IF('BALANCE DE PRUEBA'!A25='LIBRO MAYOR'!$D$79,'LIBRO MAYOR'!$D$89,IF('BALANCE DE PRUEBA'!A25='LIBRO MAYOR'!$G$79,'LIBRO MAYOR'!$G$89,IF('BALANCE DE PRUEBA'!A25='LIBRO MAYOR'!$A$90,'LIBRO MAYOR'!$A$100,IF('BALANCE DE PRUEBA'!A25='LIBRO MAYOR'!$D$90,'LIBRO MAYOR'!$D$100,IF('BALANCE DE PRUEBA'!A25='LIBRO MAYOR'!$G$90,'LIBRO MAYOR'!$G$100,0)))))))))))))))))))))))))))","v":0},{"$f":"IF(A25='LIBRO MAYOR'!$A$1,'LIBRO MAYOR'!$B$12,IF('BALANCE DE PRUEBA'!A25='LIBRO MAYOR'!$D$1,'LIBRO MAYOR'!$E$12,IF('BALANCE DE PRUEBA'!A25='LIBRO MAYOR'!$G$1,'LIBRO MAYOR'!$H$12,IF('BALANCE DE PRUEBA'!A25='LIBRO MAYOR'!$A$13,'LIBRO MAYOR'!$B$23,IF('BALANCE DE PRUEBA'!A25='LIBRO MAYOR'!$D$13,'LIBRO MAYOR'!$E$23,IF('BALANCE DE PRUEBA'!A25='LIBRO MAYOR'!$G$13,'LIBRO MAYOR'!$H$23,IF('BALANCE DE PRUEBA'!A25='LIBRO MAYOR'!$A$24,'LIBRO MAYOR'!$B$34,IF('BALANCE DE PRUEBA'!A25='LIBRO MAYOR'!$D$24,'LIBRO MAYOR'!$E$34,IF('BALANCE DE PRUEBA'!A25='LIBRO MAYOR'!$G$24,'LIBRO MAYOR'!$H$34,IF('BALANCE DE PRUEBA'!A25='LIBRO MAYOR'!$A$35,'LIBRO MAYOR'!$B$45,IF('BALANCE DE PRUEBA'!A25='LIBRO MAYOR'!$D$35,'LIBRO MAYOR'!$E$45,IF('BALANCE DE PRUEBA'!A25='LIBRO MAYOR'!$G$35,'LIBRO MAYOR'!$H$45,IF('BALANCE DE PRUEBA'!A25='LIBRO MAYOR'!$A$46,'LIBRO MAYOR'!$B$56,IF('BALANCE DE PRUEBA'!A25='LIBRO MAYOR'!$D$46,'LIBRO MAYOR'!$E$56,IF('BALANCE DE PRUEBA'!A25='LIBRO MAYOR'!$G$46,'LIBRO MAYOR'!$H$56,IF('BALANCE DE PRUEBA'!A25='LIBRO MAYOR'!$A$57,'LIBRO MAYOR'!$B$67,IF('BALANCE DE PRUEBA'!A25='LIBRO MAYOR'!$D$57,'LIBRO MAYOR'!$E$67,IF('BALANCE DE PRUEBA'!A25='LIBRO MAYOR'!$G$57,'LIBRO MAYOR'!$H$67,IF(A25='LIBRO MAYOR'!$A$68,'LIBRO MAYOR'!$B$78,IF('BALANCE DE PRUEBA'!A25='LIBRO MAYOR'!$D$68,'LIBRO MAYOR'!$E$78,IF('BALANCE DE PRUEBA'!A25='LIBRO MAYOR'!$G$68,'LIBRO MAYOR'!$H$78,IF('BALANCE DE PRUEBA'!A25='LIBRO MAYOR'!$A$79,'LIBRO MAYOR'!$B$89,IF('BALANCE DE PRUEBA'!A25='LIBRO MAYOR'!$D$79,'LIBRO MAYOR'!$E$89,IF('BALANCE DE PRUEBA'!A25='LIBRO MAYOR'!$G$79,'LIBRO MAYOR'!$H$89,IF('BALANCE DE PRUEBA'!A25='LIBRO MAYOR'!$A$90,'LIBRO MAYOR'!$B$100,IF('BALANCE DE PRUEBA'!A25='LIBRO MAYOR'!$D$90,'LIBRO MAYOR'!$E$100,IF('BALANCE DE PRUEBA'!A25='LIBRO MAYOR'!$G$90,'LIBRO MAYOR'!$H$100,0)))))))))))))))))))))))))))","v":0},0]
[null,"",{"$f":"IF(A26='LIBRO MAYOR'!$A$1,'LIBRO MAYOR'!$A$12,IF('BALANCE DE PRUEBA'!A26='LIBRO MAYOR'!$D$1,'LIBRO MAYOR'!$D$12,IF('BALANCE DE PRUEBA'!A26='LIBRO MAYOR'!$G$1,'LIBRO MAYOR'!$G$12,IF('BALANCE DE PRUEBA'!A26='LIBRO MAYOR'!$A$13,'LIBRO MAYOR'!$A$23,IF('BALANCE DE PRUEBA'!A26='LIBRO MAYOR'!$D$13,'LIBRO MAYOR'!$D$23,IF('BALANCE DE PRUEBA'!A26='LIBRO MAYOR'!$G$13,'LIBRO MAYOR'!$G$23,IF('BALANCE DE PRUEBA'!A26='LIBRO MAYOR'!$A$24,'LIBRO MAYOR'!$A$34,IF('BALANCE DE PRUEBA'!A26='LIBRO MAYOR'!$D$24,'LIBRO MAYOR'!$D$34,IF('BALANCE DE PRUEBA'!A26='LIBRO MAYOR'!$G$24,'LIBRO MAYOR'!$G$34,IF('BALANCE DE PRUEBA'!A26='LIBRO MAYOR'!$A$35,'LIBRO MAYOR'!$A$45,IF('BALANCE DE PRUEBA'!A26='LIBRO MAYOR'!$D$35,'LIBRO MAYOR'!$D$45,IF('BALANCE DE PRUEBA'!A26='LIBRO MAYOR'!$G$35,'LIBRO MAYOR'!$G$45,IF('BALANCE DE PRUEBA'!A26='LIBRO MAYOR'!$A$46,'LIBRO MAYOR'!$A$56,IF('BALANCE DE PRUEBA'!A26='LIBRO MAYOR'!$D$46,'LIBRO MAYOR'!$D$56,IF('BALANCE DE PRUEBA'!A26='LIBRO MAYOR'!$G$46,'LIBRO MAYOR'!$G$56,IF('BALANCE DE PRUEBA'!A26='LIBRO MAYOR'!$A$57,'LIBRO MAYOR'!$A$67,IF('BALANCE DE PRUEBA'!A26='LIBRO MAYOR'!$D$57,'LIBRO MAYOR'!$D$67,IF('BALANCE DE PRUEBA'!A26='LIBRO MAYOR'!$G$57,'LIBRO MAYOR'!$G$67,IF(A26='LIBRO MAYOR'!$A$68,'LIBRO MAYOR'!$A$78,IF('BALANCE DE PRUEBA'!A26='LIBRO MAYOR'!$D$68,'LIBRO MAYOR'!$D$78,IF('BALANCE DE PRUEBA'!A26='LIBRO MAYOR'!$G$68,'LIBRO MAYOR'!$G$78,IF('BALANCE DE PRUEBA'!A26='LIBRO MAYOR'!$A$79,'LIBRO MAYOR'!$A$89,IF('BALANCE DE PRUEBA'!A26='LIBRO MAYOR'!$D$79,'LIBRO MAYOR'!$D$89,IF('BALANCE DE PRUEBA'!A26='LIBRO MAYOR'!$G$79,'LIBRO MAYOR'!$G$89,IF('BALANCE DE PRUEBA'!A26='LIBRO MAYOR'!$A$90,'LIBRO MAYOR'!$A$100,IF('BALANCE DE PRUEBA'!A26='LIBRO MAYOR'!$D$90,'LIBRO MAYOR'!$D$100,IF('BALANCE DE PRUEBA'!A26='LIBRO MAYOR'!$G$90,'LIBRO MAYOR'!$G$100,0)))))))))))))))))))))))))))","v":0},{"$f":"IF(A26='LIBRO MAYOR'!$A$1,'LIBRO MAYOR'!$B$12,IF('BALANCE DE PRUEBA'!A26='LIBRO MAYOR'!$D$1,'LIBRO MAYOR'!$E$12,IF('BALANCE DE PRUEBA'!A26='LIBRO MAYOR'!$G$1,'LIBRO MAYOR'!$H$12,IF('BALANCE DE PRUEBA'!A26='LIBRO MAYOR'!$A$13,'LIBRO MAYOR'!$B$23,IF('BALANCE DE PRUEBA'!A26='LIBRO MAYOR'!$D$13,'LIBRO MAYOR'!$E$23,IF('BALANCE DE PRUEBA'!A26='LIBRO MAYOR'!$G$13,'LIBRO MAYOR'!$H$23,IF('BALANCE DE PRUEBA'!A26='LIBRO MAYOR'!$A$24,'LIBRO MAYOR'!$B$34,IF('BALANCE DE PRUEBA'!A26='LIBRO MAYOR'!$D$24,'LIBRO MAYOR'!$E$34,IF('BALANCE DE PRUEBA'!A26='LIBRO MAYOR'!$G$24,'LIBRO MAYOR'!$H$34,IF('BALANCE DE PRUEBA'!A26='LIBRO MAYOR'!$A$35,'LIBRO MAYOR'!$B$45,IF('BALANCE DE PRUEBA'!A26='LIBRO MAYOR'!$D$35,'LIBRO MAYOR'!$E$45,IF('BALANCE DE PRUEBA'!A26='LIBRO MAYOR'!$G$35,'LIBRO MAYOR'!$H$45,IF('BALANCE DE PRUEBA'!A26='LIBRO MAYOR'!$A$46,'LIBRO MAYOR'!$B$56,IF('BALANCE DE PRUEBA'!A26='LIBRO MAYOR'!$D$46,'LIBRO MAYOR'!$E$56,IF('BALANCE DE PRUEBA'!A26='LIBRO MAYOR'!$G$46,'LIBRO MAYOR'!$H$56,IF('BALANCE DE PRUEBA'!A26='LIBRO MAYOR'!$A$57,'LIBRO MAYOR'!$B$67,IF('BALANCE DE PRUEBA'!A26='LIBRO MAYOR'!$D$57,'LIBRO MAYOR'!$E$67,IF('BALANCE DE PRUEBA'!A26='LIBRO MAYOR'!$G$57,'LIBRO MAYOR'!$H$67,IF(A26='LIBRO MAYOR'!$A$68,'LIBRO MAYOR'!$B$78,IF('BALANCE DE PRUEBA'!A26='LIBRO MAYOR'!$D$68,'LIBRO MAYOR'!$E$78,IF('BALANCE DE PRUEBA'!A26='LIBRO MAYOR'!$G$68,'LIBRO MAYOR'!$H$78,IF('BALANCE DE PRUEBA'!A26='LIBRO MAYOR'!$A$79,'LIBRO MAYOR'!$B$89,IF('BALANCE DE PRUEBA'!A26='LIBRO MAYOR'!$D$79,'LIBRO MAYOR'!$E$89,IF('BALANCE DE PRUEBA'!A26='LIBRO MAYOR'!$G$79,'LIBRO MAYOR'!$H$89,IF('BALANCE DE PRUEBA'!A26='LIBRO MAYOR'!$A$90,'LIBRO MAYOR'!$B$100,IF('BALANCE DE PRUEBA'!A26='LIBRO MAYOR'!$D$90,'LIBRO MAYOR'!$E$100,IF('BALANCE DE PRUEBA'!A26='LIBRO MAYOR'!$G$90,'LIBRO MAYOR'!$H$100,0)))))))))))))))))))))))))))","v":0},0]
[null,null,{"$f":"SUM(C2:C26)","v":119600200},{"$f":"SUM(D2:D26)","v":119600200}]
[]
[null,null,{"$f":"IF(C27=D27,\"CONTABILIDAD CORRECTA\",\"REVISAR REGISTROS CONTABLES\")","v":"CONTABILIDAD CORRECTA"}]

{"sheet":"BALANCE GENERAL","index":4,"n_rows":25,"n_cols":6,"rows_kept":25,"cut":false,"hidden":false,"merged":[[17,0,17,5],[22,0,22,3],[2,0,2,2],[0,0,0,5],[1,0,1,5],[2,3,2,5],[11,3,11,5]]}
["BALANCE GENERAL"]
[{"$f":"'LIBRO DIARIO'!E1","v":0}]
["ACTIVOS",null,null,"PASIVOS"]
["CODIGO","CUENTA","SALDO","CODIGO","CUENTA","SALDO"]
[1105,{"$f":"IFERROR(VLOOKUP(A5,BALANCEPRUEBA,2,0),\"\")","v":"CAJA"},{"$f":"IFERROR(VLOOKUP(A5,BALANCEPRUEBA,5,0),0)","v":19130500},2408,{"$f":"IFERROR(VLOOKUP(D5,BALANCEPRUEBA,2,0),\"\")","v":"IVA X PAGAR"},{"$f":"IFERROR(VLOOKUP(D5,BALANCEPRUEBA,5,0),0)","v":12000}]
[1435,"MERCANCIAS NO FABRICADAS",{"$f":"IFERROR(VLOOKUP(A6,BALANCEPRUEBA,5,0),0)","v":600000},2205,"PROVEEDORES NACIONALES",313200]
[1516,"EDIFICIO",{"$f":"IFERROR(VLOOKUP(A7,BALANCEPRUEBA,5,0),0)","v":90000000},2105,"BANCOS NACIONALES",{"$f":"IFERROR(VLOOKUP(D7,BALANCEPRUEBA,5,0),0)","v":3000000}]
[1305,"CUENTAS POR COBRAR CLIENTES",65250,2380,"ACREEDORES VARIOS",2000000]
[1110,"BANCO",7204450,null,"",0]
[1524,"EQUIPOS DE OFICINA",{"$f":"IFERROR(VLOOKUP(A10,BALANCEPRUEBA,5,0),0)","v":2000000},null,"",0]
[null,"",0,"TOTAL PASIVOS",null,{"$f":"SUM(F5:F10)","v":5325200}]
[null,"",{"$f":"IFERROR(VLOOKUP(A12,BALANCEPRUEBA,5,0),0)","v":0},"PATRIMONIO"]
[null,"",0,"CODIGO","CUENTA","SALDO"]
[null,"",0]
[null,"",0,3115,{"$f":"IFERROR(VLOOKUP(D15,BALANCEPRUEBA,2,0),\"\")","v":"APORTES SOCIALES"},{"$f":"IFERROR(VLOOKUP(D15,BALANCEPRUEBA,5,0),0)","v":113300000}]
[null,"",0,null,{"$f":"IFERROR(VLOOKUP(D16,CUENTAS,2,0),\"\")","v":""},{"$f":"'ESTADO DE RESULTADO'!D16","v":375000}]
["TOTAL ACTIVOS",null,{"$f":"SUM(C5:C16)","v":119000200},"TOTAL PATRIMONIO",null,{"$f":"SUM(F15:F16)","v":113675000}]
["ECUACION PATRIMONIAL"]
["ACTIVO",null,"PASIVO","PATRIMONIO"]
[{"$f":"C17","v":119000200},null,{"$f":"F11","v":5325200},{"$f":"F17","v":113675000}]
[{"$f":"A20","v":119000200},null,null,{"$f":"SUM(C20:D20)","v":119000200}]
[]
[{"$f":"IF(AND(A21,D21)=0,\"\",IF(A21=D21,\"BALANCE GENERAL CORRECTO\",\"\"))","v":"BALANCE GENERAL CORRECTO"}]
[]
[{"$f":"D21-A21","v":0}]

{"sheet":"ESTADO DE RESULTADO","index":5,"n_rows":16,"n_cols":4,"rows_kept":16,"cut":false,"hidden":false,"merged":[[15,0,15,2],[14,0,14,1],[6,0,6,1],[7,0,7,2],[8,0,8,1],[9,0,9,1],[10,0,10,1],[13,0,13,1],[11,0,11,1],[12,0,12,1],[5,0,5,1],[0,0,0,3],[1,0,1,3],[2,0,2,2],[3,0,3,1],[4,0,4,1]]}
["ESTADO DE RESULTADOS"]
[{"$f":"'LIBRO DIARIO'!E1","v":0}]
["INGRESOS",null,null,{"$f":"SUM(D5:D7)","v":975000}]
["CODIGO",null,"CUENTA","SALDO"]
[4135,null,{"$f":"IFERROR(VLOOKUP(A5,BALANCEPRUEBA,2,0),\"\")","v":"COMERCIO POR MAYOR POR MENOR"},{"$f":"IFERROR(VLOOKUP(A5,BALANCEPRUEBA,5,0),0)","v":975000}]
[null,null,{"$f":"IFERROR(VLOOKUP(A6,BALANCEPRUEBA,2,0),\"\")","v":""},{"$f":"IFERROR(VLOOKUP(A6,BALANCEPRUEBA,5,0),0)","v":0}]
[null,null,{"$f":"IFERROR(VLOOKUP(A7,BALANCEPRUEBA,2,0),\"\")","v":""},{"$f":"IFERROR(VLOOKUP(A7,BALANCEPRUEBA,5,0),0)","v":0}]
["GASTOS Y COSTOS",null,null,{"$f":"SUM(D10:D15)","v":600000}]
["CODIGO",null,"CUENTA","SALDO"]
[6205,null,{"$f":"IFERROR(VLOOKUP(A10,BALANCEPRUEBA,2,0),\"\")","v":"DE VENTAS"},{"$f":"IFERROR(VLOOKUP(A10,BALANCEPRUEBA,5,0),0)","v":600000}]
[null,null,{"$f":"IFERROR(VLOOKUP(A11,BALANCEPRUEBA,2,0),\"\")","v":""},0]
[null,null,{"$f":"IFERROR(VLOOKUP(A12,BALANCEPRUEBA,2,0),\"\")","v":""},0]
[null,null,null,0]
[null,null,{"$f":"IFERROR(VLOOKUP(A14,BALANCEPRUEBA,2,0),\"\")","v":""},0]
[null,null,{"$f":"IFERROR(VLOOKUP(A15,BALANCEPRUEBA,2,0),\"\")","v":""},0]
["UTILIDAD DEL EJERCICIO",null,null,{"$f":"D3-D8","v":375000}]